Workbook

Sheet FAME Persistence2 (hidden)
A1: 47 | B1: Base original
A2: Base original | B2: $AW$11 | C2: A1:A144 | D2: 19.92 | E2: 2017-05-04T15:50:31 | F2: TRUE | G2: F022.COL.TIN.MA03.NO.Z.M | H2: 2006 | I2: 2017 | J2: 0 | K2: Monthly | L2: FALSE | M2: FALSE | N2: FALSE
A3: Base original | B3: $AF$11 | C3: A1:A144 | D3: 1040.99 | E3: 2017-05-04T15:50:30 | F3: TRUE | G3: F021.BOT.STO.N.CLP.0.M | H3: 2006 | I3: 2017 | J3: 0 | K3: Monthly | L3: FALSE | M3: FALSE | N3: FALSE
A4: Base original | B4: $P$11 | C4: A1:A144 | E4: 2017-05-04T15:50:30 | F4: TRUE | G4: F022.CMXIMPT.TIP.Z.US.Z.M | H4: 2006 | I4: 2017 | J4: 0 | K4: Monthly | L4: FALSE | M4: FALSE | N4: FALSE
A5: Base original | B5: $AV$11 | C5: A1:A144 | D5: 6.36 | E5: 2017-05-04T15:50:31 | F5: TRUE | G5: F022.CAP.TIN.MA03.NO.Z.M | H5: 2006 | I5: 2017 | J5: 0 | K5: Monthly | L5: FALSE | M5: FALSE | N5: FALSE
A6: Base original | B6: $AE$11 | C6: A1:A144 | D6: 6603.07 | E6: 2017-05-04T15:50:30 | F6: TRUE | G6: F021.DBC.STO.N.CLP.0.M | H6: 2006 | I6: 2017 | J6: 0 | K6: Monthly | L6: FALSE | M6: FALSE | N6: FALSE
A7: Base original | B7: $O$11 | C7: A1:A144 | E7: 2017-05-04T15:50:30 | F7: TRUE | G7: F022.CMXEXPT.TIP.Z.US.Z.M | H7: 2006 | I7: 2017 | J7: 0 | K7: Monthly | L7: FALSE | M7: FALSE | N7: FALSE
A8: Base original | B8: $AU$11 | C8: A1:A144 | D8: 17.64 | E8: 2017-05-04T15:50:31 | F8: TRUE | G8: F022.COL.TIN.AN03.NO.Z.M | H8: 2006 | I8: 2017 | J8: 0 | K8: Monthly | L8: FALSE | M8: FALSE | N8: FALSE
A9: Base original | B9: $AD$11 | C9: A1:A144 | D9: 3263.92 | E9: 2017-05-04T15:50:30 | F9: TRUE | G9: F021.DME.STO.N.CLP.0.M | H9: 2006 | I9: 2017 | J9: 0 | K9: Monthly | L9: FALSE | M9: FALSE | N9: FALSE
A10: Base original | B10: $N$11 | C10: A1:A144 | D10: 5.289234388 | E10: 2017-05-04T15:50:30 | F10: TRUE | G10: F022.CMX.TIP.Z.US.Z.M | H10: 2006 | I10: 2017 | J10: 0 | K10: Monthly | L10: FALSE | M10: FALSE | N10: FALSE
A11: Base original | B11: $AT$11 | C11: A1:A144 | D11: 6.24 | E11: 2017-05-04T15:50:31 | F11: TRUE | G11: F022.CAP.TIN.AN03.NO.Z.M | H11: 2006 | I11: 2017 | J11: 0 | K11: Monthly | L11: FALSE | M11: FALSE | N11: FALSE
A12: Base original | B12: $AC$11 | C12: A1:A144 | D12: 33036.28 | E12: 2017-05-04T15:50:30 | F12: TRUE | G12: F021.M2.STO.N.CLP.0.M | H12: 2006 | I12: 2017 | J12: 0 | K12: Monthly | L12: FALSE | M12: FALSE | N12: FALSE
A13: Base original | B13: $M$11 | C13: A1:A144 | E13: 2017-05-04T15:50:30 | F13: TRUE | G13: F022.COMSOBR.TIP.Z.NO.Z.M | H13: 2006 | I13: 2017 | J13: 0 | K13: Monthly | L13: FALSE | M13: FALSE | N13: FALSE
A14: Base original | B14: $AS$11 | C14: A1:A144 | D14: 14.76 | E14: 2017-05-04T15:50:31 | F14: TRUE | G14: F022.CAP.TIN.Z.NO.Z.M | H14: 2006 | I14: 2017 | J14: 0 | K14: Monthly | L14: FALSE | M14: FALSE | N14: FALSE
A15: Base original | B15: $L$11 | C15: A1:A144 | E15: 2017-05-04T15:50:30 | F15: TRUE | G15: F022.COMCUOT.TIP.Z.NO.Z.M | H15: 2006 | I15: 2017 | J15: 0 | K15: Monthly | L15: FALSE | M15: FALSE | N15: FALSE
A16: Base original | B16: $AA$11 | C16: A1:A144 | D16: 3111.66 | E16: 2017-05-04T15:50:30 | F16: TRUE | G16: F021.FM2.STO.N.CLP.0.M | H16: 2006 | I16: 2017 | J16: 0 | K16: Monthly | L16: FALSE | M16: FALSE | N16: FALSE
A17: Base original | B17: $Z$11 | C17: A1:A144 | D17: 110.16 | E17: 2017-05-04T15:50:30 | F17: TRUE | G17: F021.CAC.STO.N.CLP.0.M | H17: 2006 | I17: 2017 | J17: 0 | K17: Monthly | L17: FALSE | M17: FALSE | N17: FALSE
A18: Base original | B18: $Y$11 | C18: A1:A144 | D18: 3330.57 | E18: 2017-05-04T15:50:30 | F18: TRUE | G18: F021.FM.STO.N.CLP.0.M | H18: 2006 | I18: 2017 | J18: 0 | K18: Monthly | L18: FALSE | M18: FALSE | N18: FALSE
A19: Base original | B19: $AN$11 | C19: A1:A144 | D19: 58173.05 | E19: 2017-05-04T15:50:31 | F19: TRUE | G19: F021.M3.STO.N.CLP.0.M | H19: 2006 | I19: 2017 | J19: 0 | K19: Monthly | L19: FALSE | M19: FALSE | N19: FALSE
A20: Base original | B20: $X$11 | C20: A1:A144 | D20: 2244.97 | E20: 2017-05-04T15:50:30 | F20: TRUE | G20: F021.AHP.STO.N.CLP.0.M | H20: 2006 | I20: 2017 | J20: 0 | K20: Monthly | L20: FALSE | M20: FALSE | N20: FALSE
A21: Base original | B21: $H$11 | C21: A1:A144 | E21: 2017-05-04T15:50:30 | F21: TRUE | G21: F022.CONTARJ.TIP.Z.NO.Z.M | H21: 2006 | I21: 2017 | J21: 0 | K21: Monthly | L21: FALSE | M21: FALSE | N21: FALSE
A22: Base original | B22: $AM$11 | C22: A1:A144 | D22: 161.41 | E22: 2017-05-04T15:50:31 | F22: TRUE | G22: F021.AF3.STO.N.CLP.0.M | H22: 2006 | I22: 2017 | J22: 0 | K22: Monthly | L22: FALSE | M22: FALSE | N22: FALSE
A23: Base original | B23: $W$11 | C23: A1:A144 | D23: 22893.1 | E23: 2017-05-04T15:50:30 | F23: TRUE | G23: F021.DP.STO.N.CLP.0.M | H23: 2006 | I23: 2017 | J23: 0 | K23: Monthly | L23: FALSE | M23: FALSE | N23: FALSE
A24: Base original | B24: $G$11 | C24: A1:A144 | D24: 26.84010551 | E24: 2017-05-04T15:50:30 | F24: TRUE | G24: F022.CON.TIP.Z.NO.Z.M | H24: 2006 | I24: 2017 | J24: 0 | K24: Monthly | L24: FALSE | M24: FALSE | N24: FALSE
A25: Base original | B25: $AL$11 | C25: A1:A144 | D25: 2312.86 | E25: 2017-05-04T15:50:31 | F25: TRUE | G25: F021.FM3.STO.N.CLP.0.M | H25: 2006 | I25: 2017 | J25: 0 | K25: Monthly | L25: FALSE | M25: FALSE | N25: FALSE
A26: Base original | B26: $V$11 | C26: A1:A144 | D26: 7577.61 | E26: 2017-05-04T15:50:30 | F26: TRUE | G26: F021.M1.STO.N.CLP.0.M | H26: 2006 | I26: 2017 | J26: 0 | K26: Monthly | L26: FALSE | M26: FALSE | N26: FALSE
A27: Base original | B27: $F$11 | C27: A1:A144 | D27: 44671.106 | E27: 2017-05-04T15:50:30 | F27: TRUE | G27: F022.CTOBI.STO.Z.Z.CLP.M | H27: 2006 | I27: 2017 | J27: 0 | K27: Monthly | L27: FALSE | M27: FALSE | N27: FALSE
A28: Base original | B28: $AK$11 | C28: A1:A144 | D28: 408.65 | E28: 2017-05-04T15:50:31 | F28: TRUE | G28: F021.CAV.STO.N.CLP.0.M | H28: 2006 | I28: 2017 | J28: 0 | K28: Monthly | L28: FALSE | M28: FALSE | N28: FALSE
A29: Base original | B29: $U$11 | C29: A1:A144 | D29: 1619.63 | E29: 2017-05-04T15:50:30 | F29: TRUE | G29: F021.DA.STO.N.CLP.0.M | H29: 2006 | I29: 2017 | J29: 0 | K29: Monthly | L29: FALSE | M29: FALSE | N29: FALSE
A30: Base original | B30: $E$11 | C30: A1:A144 | D30: 3905.426 | E30: 2017-05-04T15:50:30 | F30: TRUE | G30: F022.CMXBI.STO.Z.Z.CLP.M | H30: 2006 | I30: 2017 | J30: 0 | K30: Monthly | L30: FALSE | M30: FALSE | N30: FALSE
A31: Base original | B31: $AJ$11 | C31: A1:A144 | D31: 3443.76 | E31: 2017-05-04T15:50:31 | F31: TRUE | G31: F021.FMR.STO.N.CLP.0.M | H31: 2006 | I31: 2017 | J31: 0 | K31: Monthly | L31: FALSE | M31: FALSE | N31: FALSE
A32: Base original | B32: $T$11 | C32: A1:A144 | D32: 4263.98 | E32: 2017-05-04T15:50:30 | F32: TRUE | G32: F021.DCC.STO.N.CLP.0.M | H32: 2006 | I32: 2017 | J32: 0 | K32: Monthly | L32: FALSE | M32: FALSE | N32: FALSE
A33: Base original | B33: $D$11 | C33: A1:A144 | D33: 9317.488 | E33: 2017-05-04T15:50:30 | F33: TRUE | G33: F022.VIVBI.STO.Z.Z.CLP.M | H33: 2006 | I33: 2017 | J33: 0 | K33: Monthly | L33: FALSE | M33: FALSE | N33: FALSE
A34: Base original | B34: $AI$11 | C34: A1:A144 | D34: 8243.95 | E34: 2017-05-04T15:50:31 | F34: TRUE | G34: F021.BOE.STO.N.CLP.0.M | H34: 2006 | I34: 2017 | J34: 0 | K34: Monthly | L34: FALSE | M34: FALSE | N34: FALSE
A35: Base original | B35: $S$11 | C35: A1:A144 | D35: 1694 | E35: 2017-05-04T15:50:30 | F35: TRUE | G35: F021.CIR.STO.N.CLP.0.M | H35: 2006 | I35: 2017 | J35: 0 | K35: Monthly | L35: FALSE | M35: FALSE | N35: FALSE
A36: Base original | B36: $C$11 | C36: A1:A144 | D36: 5571.003 | E36: 2017-05-04T15:50:30 | F36: TRUE | G36: F022.CONBI.STO.Z.Z.CLP.M | H36: 2006 | I36: 2017 | J36: 0 | K36: Monthly | L36: FALSE | M36: FALSE | N36: FALSE
A37: Base original | B37: $AH$11 | C37: A1:A144 | D37: 352.74 | E37: 2017-05-04T15:50:30 | F37: TRUE | G37: F021.ECO.STO.N.CLP.0.M | H37: 2006 | I37: 2017 | J37: 0 | K37: Monthly | L37: FALSE | M37: FALSE | N37: FALSE
A38: Base original | B38: $R$11 | C38: A1:A144 | D38: 2757.7 | E38: 2017-05-04T15:50:30 | F38: TRUE | G38: F021.BMO.STO.N.CLP.0.M | H38: 2006 | I38: 2017 | J38: 0 | K38: Monthly | L38: FALSE | M38: FALSE | N38: FALSE
A39: Base original | B39: $B$11 | C39: A1:A144 | D39: 25877.189 | E39: 2017-05-04T15:50:30 | F39: TRUE | G39: F022.COMBI.STO.Z.Z.CLP.M | H39: 2006 | I39: 2017 | J39: 0 | K39: Monthly | L39: FALSE | M39: FALSE | N39: FALSE
A40: Base original | B40: $AG$11 | C40: A1:A144 | D40: 4253.96 | E40: 2017-05-04T15:50:30 | F40: TRUE | G40: F021.LCR.STO.N.CLP.0.M | H40: 2006 | I40: 2017 | J40: 0 | K40: Monthly | L40: FALSE | M40: FALSE | N40: FALSE
A41: Base original | B41: $Q$11 | C41: A1:A144 | D41: 5.31 | E41: 2017-05-04T15:50:30 | F41: TRUE | G41: F022.VIV.TIP.MA03.UF.Z.M | H41: 2006 | I41: 2017 | J41: 0 | K41: Monthly | L41: FALSE | M41: FALSE | N41: FALSE
A42: Base original | B42: $AB$11 | C42: A1:A144 | D42: 8.47 | E42: 2017-05-04T15:50:30 | F42: TRUE | G42: F021.CA2.STO.N.CLP.0.M | H42: 2006 | I42: 2017 | J42: 0 | K42: Monthly | L42: FALSE | M42: FALSE | N42: FALSE
A43: Base original | B43: $AR$11 | C43: A1:A144 | D43: 5.52 | E43: 2017-05-04T15:50:31 | F43: TRUE | G43: F022.CAP.TIN.AN01.NO.Z.M | H43: 2006 | I43: 2017 | J43: 0 | K43: Monthly | L43: FALSE | M43: FALSE | N43: FALSE
A44: Base original | B44: $K$11 | C44: A1:A144 | D44: 10.27317257 | E44: 2017-05-04T15:50:30 | F44: TRUE | G44: F022.COM.TIP.Z.NO.Z.M | H44: 2006 | I44: 2017 | J44: 0 | K44: Monthly | L44: FALSE | M44: FALSE | N44: FALSE
A45: Base original | B45: $AQ$11 | C45: A1:A144 | D45: 7.56 | E45: 2017-05-04T15:50:31 | F45: TRUE | G45: F022.COL.TIN.D089.NO.Z.M | H45: 2006 | I45: 2017 | J45: 0 | K45: Monthly | L45: FALSE | M45: FALSE | N45: FALSE
A46: Base original | B46: $J$11 | C46: A1:A144 | E46: 2017-05-04T15:50:30 | F46: TRUE | G46: F022.CONSOBR.TIP.Z.NO.Z.M | H46: 2006 | I46: 2017 | J46: 0 | K46: Monthly | L46: FALSE | M46: FALSE | N46: FALSE
A47: Base original | B47: $AP$11 | C47: A1:A144 | D47: 4.92 | E47: 2017-05-04T15:50:31 | F47: TRUE | G47: F022.CAP.TIN.D089.NO.Z.M | H47: 2006 | I47: 2017 | J47: 0 | K47: Monthly | L47: FALSE | M47: FALSE | N47: FALSE
A48: Base original | B48: $I$11 | C48: A1:A144 | E48: 2017-05-04T15:50:30 | F48: TRUE | G48: F022.CONCUOT.TIP.Z.NO.Z.M | H48: 2006 | I48: 2017 | J48: 0 | K48: Monthly | L48: FALSE | M48: FALSE | N48: FALSE

Sheet Base original
B1: COLOCACIONES (*) | G1: TASAS DE INTERÉS POR TIPO (*) | R1: AGREGADOS MONETARIOS (*) | AP1: TASAS DE INTERÉS POR PLAZO (*)
B2: Colocaciones balances individuales | G2: consumo ($) | K2: comerciales ($) | N2: comercio exterior (US$) | Q2: vivienda (UF) | R2: M1 | W2: M2 | AD2: M3 | AP2: 30 a 89 días nominal | AR2: 90 días a 1 año nominal | AT2: 1 a 3 años nominal | AV2: más de 3 años nominal
B3: Comerciales | C3: Consumo | D3: Vivienda | E3: Comercio exterior | F3: Total | G3: consumo promedio | H3: tarjetas de crédito | I3: crédito en cuotas | J3: sobregiros | K3: comercio promedio | L3: crédito en cuotas | M3: sobregiros | N3: comex promedio | O3: exportación | P3: importación | R3: Base monetaria | S3: C | T3: D1 | U3: Dvb + Ahv | V3: M1 | W3: Dp | X3: Ahp | Y3: Cuotas de FM en instr. de hasta un año | Z3: Captaciones de CAC | AA3: Inversiones de FM en M2 | AB3: Inversiones de CAC en M2 | AC3: M2 | AD3: Depósito en moneda extranjera | AE3: Documentos del Banco Central | AF3: Bonos de Tesorería | AG3: Letras de crédito | AH3: Efectos de comercio | AI3: Bono de Empresa | AJ3: Cuotas del resto de FM | AK3: Cuotas de ahorro voluntario AFP | AL3: Inversión de FM en M3 | AM3: Inversión de AFP en M3 | AN3: M3 | AP3: captación | AQ3: colocación | AR3: captación | AS3: colocación | AT3: captación | AU3: colocación | AV3: captación | AW3: colocación
B4: miles de millones de pesos | G4: tasas base anual 360 días, porcentaje | R4: miles de millones de pesos | AP4: tasas base anual 360 días, porcentaje
B5: Fuente: Banco Central de Chile y Superintendencia de Bancos e Instituciones Financieras. | G5: Fuente: Banco Central de Chile | R5: Fuente: Banco Central de Chile | AP5: Fuente: Banco Central de Chile
B6: F022.COMBI.STO.Z.Z.CLP.M | C6: F022.CONBI.STO.Z.Z.CLP.M | D6: F022.VIVBI.STO.Z.Z.CLP.M | E6: F022.CMXBI.STO.Z.Z.CLP.M | F6: F022.CTOBI.STO.Z.Z.CLP.M | G6: F022.CON.TIP.Z.NO.Z.M | H6: F022.CONTARJ.TIP.Z.NO.Z.M | I6: F022.CONCUOT.TIP.Z.NO.Z.M | J6: F022.CONSOBR.TIP.Z.NO.Z.M | K6: F022.COM.TIP.Z.NO.Z.M | L6: F022.COMCUOT.TIP.Z.NO.Z.M | M6: F022.COMSOBR.TIP.Z.NO.Z.M | N6: F022.CMX.TIP.Z.US.Z.M | O6: F022.CMXEXPT.TIP.Z.US.Z.M | P6: F022.CMXIMPT.TIP.Z.US.Z.M | Q6: F022.VIV.TIP.MA03.UF.Z.M | R6: F021.BMO.STO.N.CLP.0.M | S6: F021.CIR.STO.N.CLP.0.M | T6: F021.DCC.STO.N.CLP.0.M | U6: F021.DA.STO.N.CLP.0.M | V6: F021.M1.STO.N.CLP.0.M | W6: F021.DP.STO.N.CLP.0.M | X6: F021.AHP.STO.N.CLP.0.M | Y6: F021.FM.STO.N.CLP.0.M | Z6: F021.CAC.STO.N.CLP.0.M | AA6: F021.FM2.STO.N.CLP.0.M | AB6: F021.CA2.STO.N.CLP.0.M | AC6: F021.M2.STO.N.CLP.0.M | AD6: F021.DME.STO.N.CLP.0.M | AE6: F021.DBC.STO.N.CLP.0.M | AF6: F021.BOT.STO.N.CLP.0.M | AG6: F021.LCR.STO.N.CLP.0.M | AH6: F021.ECO.STO.N.CLP.0.M | AI6: F021.BOE.STO.N.CLP.0.M | AJ6: F021.FMR.STO.N.CLP.0.M | AK6: F021.CAV.STO.N.CLP.0.M | AL6: F021.FM3.STO.N.CLP.0.M | AM6: F021.AF3.STO.N.CLP.0.M | AN6: F021.M3.STO.N.CLP.0.M | AP6: F022.CAP.TIN.D089.NO.Z.M | AQ6: F022.COL.TIN.D089.NO.Z.M | AR6: F022.CAP.TIN.AN01.NO.Z.M | AS6: F022.CAP.TIN.Z.NO.Z.M | AT6: F022.CAP.TIN.AN03.NO.Z.M | AU6: F022.COL.TIN.AN03.NO.Z.M | AV6: F022.CAP.TIN.MA03.NO.Z.M | AW6: F022.COL.TIN.MA03.NO.Z.M
A11: 2006-01-01 | B11: =[1]!FAMEData(B6, "2006", "2017", 0,"Monthly", "Down", "No Heading", "Normal") -> 25877.189 | C11: =[1]!FAMEData(C6, "2006", "2017", 0,"Monthly", "Down", "No Heading", "Normal") -> 5571.003 | D11: =[1]!FAMEData(D6, "2006", "2017", 0,"Monthly", "Down", "No Heading", "Normal") -> 9317.488 | E11: =[1]!FAMEData(E6, "2006", "2017", 0,"Monthly", "Down", "No Heading", "Normal") -> 3905.426 | F11: =[1]!FAMEData(F6, "2006", "2017", 0,"Monthly", "Down", "No Heading", "Normal") -> 44671.106 | G11: =[1]!FAMEData(G6, "2006", "2017", 0,"Monthly", "Down", "No Heading", "Normal") -> 26.84010551 | H11: =[1]!FAMEData(H6, "2006", "2017", 0,"Monthly", "Down", "No Heading", "Normal") ->  | I11: =[1]!FAMEData(I6, "2006", "2017", 0,"Monthly", "Down", "No Heading", "Normal") ->  | J11: =[1]!FAMEData(J6, "2006", "2017", 0,"Monthly", "Down", "No Heading", "Normal") ->  | K11: =[1]!FAMEData(K6, "2006", "2017", 0,"Monthly", "Down", "No Heading", "Normal") -> 10.27317257 | L11: =[1]!FAMEData(L6, "2006", "2017", 0,"Monthly", "Down", "No Heading", "Normal") ->  | M11: =[1]!FAMEData(M6, "2006", "2017", 0,"Monthly", "Down", "No Heading", "Normal") ->  | N11: =[1]!FAMEData(N6, "2006", "2017", 0,"Monthly", "Down", "No Heading", "Normal") -> 5.289234388 | O11: =[1]!FAMEData(O6, "2006", "2017", 0,"Monthly", "Down", "No Heading", "Normal") ->  | P11: =[1]!FAMEData(P6, "2006", "2017", 0,"Monthly", "Down", "No Heading", "Normal") ->  | Q11: =[1]!FAMEData(Q6, "2006", "2017", 0,"Monthly", "Down", "No Heading", "Normal") -> 5.31 | R11: =[1]!FAMEData(R6, "2006", "2017", 0,"Monthly", "Down", "No Heading", "Normal") -> 2757.7 | S11: =[1]!FAMEData(S6, "2006", "2017", 0,"Monthly", "Down", "No Heading", "Normal") -> 1694 | T11: =[1]!FAMEData(T6, "2006", "2017", 0,"Monthly", "Down", "No Heading", "Normal") -> 4263.98 | U11: =[1]!FAMEData(U6, "2006", "2017", 0,"Monthly", "Down", "No Heading", "Normal") -> 1619.63 | V11: =[1]!FAMEData(V6, "2006", "2017", 0,"Monthly", "Down", "No Heading", "Normal") -> 7577.61 | W11: =[1]!FAMEData(W6, "2006", "2017", 0,"Monthly", "Down", "No Heading", "Normal") -> 22893.1 | X11: =[1]!FAMEData(X6, "2006", "2017", 0,"Monthly", "Down", "No Heading", "Normal") -> 2244.97 | Y11: =[1]!FAMEData(Y6, "2006", "2017", 0,"Monthly", "Down", "No Heading", "Normal") -> 3330.57 | Z11: =[1]!FAMEData(Z6, "2006", "2017", 0,"Monthly", "Down", "No Heading", "Normal") -> 110.16 | AA11: =[1]!FAMEData(AA6, "2006", "2017", 0,"Monthly", "Down", "No Heading", "Normal") -> 3111.66 | AB11: =[1]!FAMEData(AB6, "2006", "2017", 0,"Monthly", "Down", "No Heading", "Normal") -> 8.47 | AC11: =[1]!FAMEData(AC6, "2006", "2017", 0,"Monthly", "Down", "No Heading", "Normal") -> 33036.28 | AD11: =[1]!FAMEData(AD6, "2006", "2017", 0,"Monthly", "Down", "No Heading", "Normal") -> 3263.92 | AE11: =[1]!FAMEData(AE6, "2006", "2017", 0,"Monthly", "Down", "No Heading", "Normal") -> 6603.07 | AF11: =[1]!FAMEData(AF6, "2006", "2017", 0,"Monthly", "Down", "No Heading", "Normal") -> 1040.99 | AG11: =[1]!FAMEData(AG6, "2006", "2017", 0,"Monthly", "Down", "No Heading", "Normal") -> 4253.96 | AH11: =[1]!FAMEData(AH6, "2006", "2017", 0,"Monthly", "Down", "No Heading", "Normal") -> 352.74 | AI11: =[1]!FAMEData(AI6, "2006", "2017", 0,"Monthly", "Down", "No Heading", "Normal") -> 8243.95 | AJ11: =[1]!FAMEData(AJ6, "2006", "2017", 0,"Monthly", "Down", "No Heading", "Normal") -> 3443.76 | AK11: =[1]!FAMEData(AK6, "2006", "2017", 0,"Monthly", "Down", "No Heading", "Normal") -> 408.65 | AL11: =[1]!FAMEData(AL6, "2006", "2017", 0,"Monthly", "Down", "No Heading", "Normal") -> 2312.86 | AM11: =[1]!FAMEData(AM6, "2006", "2017", 0,"Monthly", "Down", "No Heading", "Normal") -> 161.41 | AN11: =[1]!FAMEData(AN6, "2006", "2017", 0,"Monthly", "Down", "No Heading", "Normal") -> 58173.05 | AP11: =[1]!FAMEData(AP6, "2006", "2017", 0,"Monthly", "Down", "No Heading", "Normal") -> 4.92 | AQ11: =[1]!FAMEData(AQ6, "2006", "2017", 0,"Monthly", "Down", "No Heading", "Normal") -> 7.56 | AR11: =[1]!FAMEData(AR6, "2006", "2017", 0,"Monthly", "Down", "No Heading", "Normal") -> 5.52 | AS11: =[1]!FAMEData(AS6, "2006", "2017", 0,"Monthly", "Down", "No Heading", "Normal") -> 14.76 | AT11: =[1]!FAMEData(AT6, "2006", "2017", 0,"Monthly", "Down", "No Heading", "Normal") -> 6.24 | AU11: =[1]!FAMEData(AU6, "2006", "2017", 0,"Monthly", "Down", "No Heading", "Normal") -> 17.64 | AV11: =[1]!FAMEData(AV6, "2006", "2017", 0,"Monthly", "Down", "No Heading", "Normal") -> 6.36 | AW11: =[1]!FAMEData(AW6, "2006", "2017", 0,"Monthly", "Down", "No Heading", "Normal") -> 19.92
A12: 2006-02-01 | B12: 25995.919 | C12: 5649.901 | D12: 9409.751 | E12: 3971.411 | F12: 45026.982 | G12: 28.08001067 | K12: 10.69175166 | N12: 5.488292681 | Q12: 5.33 | R12: 2800.8 | S12: 1718.6 | T12: 4226.79 | U12: 1602.98 | V12: 7548.37 | W12: 23081.63 | X12: 2237.55 | Y12: 3233.72 | Z12: 123.01 | AA12: 3034.93 | AB12: 5.84 | AC12: 33183.51 | AD12: 3379.45 | AE12: 6469.58 | AF12: 1053.09 | AG12: 4269.98 | AH12: 358.48 | AI12: 8174.45 | AJ12: 3670.98 | AK12: 420.38 | AL12: 2365.22 | AM12: 163.97 | AN12: 58450.71 | AP12: 4.56 | AQ12: 7.56 | AR12: 5.16 | AS12: 15.48 | AT12: 6.36 | AU12: 17.64 | AV12: 7.2 | AW12: 18.6
A13: 2006-03-01 | B13: 26532.268 | C13: 5831.413 | D13: 9540.067 | E13: 4086.012 | F13: 45989.76 | G13: 25.2206299 | K13: 10.24201215 | N13: 5.847508201 | Q13: 5.22 | R13: 2897.1 | S13: 1708.3 | T13: 4271.7 | U13: 1559.58 | V13: 7539.58 | W13: 23481.8 | X13: 2238.86 | Y13: 3752.51 | Z13: 127.13 | AA13: 3546.99 | AB13: 6.15 | AC13: 33586.74 | AD13: 3311.26 | AE13: 6343.46 | AF13: 1063.27 | AG13: 4348.74 | AH13: 354.14 | AI13: 8242.23 | AJ13: 3777.33 | AK13: 430.6 | AL13: 2420.59 | AM13: 166.01 | AN13: 58871.17 | AP13: 4.68 | AQ13: 7.32 | AR13: 5.28 | AS13: 14.64 | AT13: 6 | AU13: 15.96 | AV13: 7.2 | AW13: 19.08
A14: 2006-04-01 | B14: 27144.354 | C14: 5934.604 | D14: 9634.727 | E14: 4126.392 | F14: 46840.077 | G14: 26.81238125 | K14: 10.69633422 | N14: 5.653472987 | Q14: 5.04 | R14: 3019.9 | S14: 1710.9 | T14: 4306.13 | U14: 1619.61 | V14: 7636.64 | W14: 23929.04 | X14: 2239.71 | Y14: 4222.62 | Z14: 123.45 | AA14: 4032.18 | AB14: 11.32 | AC14: 34107.96 | AD14: 3342.52 | AE14: 6252.99 | AF14: 1067.84 | AG14: 4250.3 | AH14: 330.64 | AI14: 8372.4 | AJ14: 3828.1 | AK14: 445.85 | AL14: 2485.1 | AM14: 168.26 | AN14: 59345.24 | AP14: 4.8 | AQ14: 7.44 | AR14: 5.52 | AS14: 14.52 | AT14: 6.12 | AU14: 18.84 | AV14: 6.96 | AW14: 20.52
A15: 2006-05-01 | B15: 27224.795 | C15: 6010.176 | D15: 9795.954 | E15: 4360.806 | F15: 47391.731 | G15: 27.49968525 | K15: 10.69976304 | N15: 6.069324926 | Q15: 5.03 | R15: 2891.7 | S15: 1719 | T15: 4375.74 | U15: 1600.8 | V15: 7695.54 | W15: 24246.24 | X15: 2258.06 | Y15: 3957.82 | Z15: 124.65 | AA15: 3797.24 | AB15: 11.71 | AC15: 34473.36 | AD15: 3514.52 | AE15: 6039.46 | AF15: 1065.26 | AG15: 4309.05 | AH15: 313.96 | AI15: 8445.32 | AJ15: 3866.9 | AK15: 455.5 | AL15: 2471.92 | AM15: 179.66 | AN15: 59831.75 | AP15: 4.92 | AQ15: 7.44 | AR15: 5.52 | AS15: 15.12 | AT15: 6.12 | AU15: 18.48 | AW15: 20.04
A16: 2006-06-01 | B16: 27538.088 | C16: 6095.037 | D16: 9949.017 | E16: 4700.001 | F16: 48282.143 | G16: 27.54061454 | K16: 10.0914888 | N16: 6.098626848 | Q16: 5 | R16: 2910.9 | S16: 1755.2 | T16: 4449.54 | U16: 1617.06 | V16: 7821.8 | W16: 24651.76 | X16: 2289.71 | Y16: 4054.03 | Z16: 128.52 | AA16: 3856.88 | AB16: 7.17 | AC16: 35081.77 | AD16: 3629.06 | AE16: 5881.13 | AF16: 1057.38 | AG16: 4419.18 | AH16: 316.05 | AI16: 8469.06 | AJ16: 3777.34 | AK16: 452.49 | AL16: 2419.68 | AM16: 184.36 | AN16: 60479.42 | AP16: 5.04 | AQ16: 7.56 | AR16: 5.4 | AS16: 14.28 | AT16: 6.12 | AU16: 17.04 | AV16: 7.56 | AW16: 16.8
A17: 2006-07-01 | B17: 27878.936 | C17: 6188.033 | D17: 10134.075 | E17: 4504.95 | F17: 48705.994 | G17: 27.28323577 | K17: 9.956696994 | N17: 6.294930372 | Q17: 5.1 | R17: 2889.3 | S17: 1744.3 | T17: 4319.55 | U17: 1626.34 | V17: 7690.19 | W17: 24894.17 | X17: 2298.52 | Y17: 4091.77 | Z17: 128.53 | AA17: 3878.73 | AB17: 8.41 | AC17: 35216.04 | AD17: 3630.31 | AE17: 5722.86 | AF17: 1063.1 | AG17: 4334.56 | AH17: 337.86 | AI17: 8430.67 | AJ17: 3818.66 | AK17: 455.8 | AL17: 2486.57 | AM17: 185.74 | AN17: 60337.55 | AP17: 5.04 | AQ17: 7.8 | AR17: 5.52 | AS17: 13.92 | AT17: 6.12 | AU17: 17.88 | AV17: 7.68 | AW17: 19.32
A18: 2006-08-01 | B18: 28247.624 | C18: 6337.786 | D18: 10348.575 | E18: 4524.201 | F18: 49458.186 | G18: 26.63961018 | K18: 10.30839481 | N18: 6.222757439 | Q18: 5.05 | R18: 2764.6 | S18: 1724.9 | T18: 4273.77 | U18: 1658.92 | V18: 7657.59 | W18: 25240.11 | X18: 2303.31 | Y18: 3801.64 | Z18: 127.65 | AA18: 3148.09 | AB18: 9.9 | AC18: 35972.31 | AD18: 3597.79 | AE18: 6004.8 | AF18: 1071.25 | AG18: 4281.36 | AH18: 363.45 | AI18: 8510.22 | AJ18: 4004.45 | AK18: 469 | AL18: 2893.12 | AM18: 189.31 | AN18: 61192.2 | AP18: 5.16 | AQ18: 8.16 | AR18: 5.52 | AS18: 14.16 | AT18: 6.12 | AU18: 17.28 | AV18: 7.8 | AW18: 15.96
A19: 2006-09-01 | B19: 28286.672 | C19: 6452.131 | D19: 10481.288 | E19: 4639.071 | F19: 49859.162 | G19: 26.5372798 | K19: 10.34509493 | N19: 6.288846604 | Q19: 5.01 | R19: 3018.5 | S19: 1805.7 | T19: 4356.11 | U19: 1763.2 | V19: 7925.01 | W19: 25631.79 | X19: 2309.45 | Y19: 4298.29 | Z19: 151.95 | AA19: 3592.98 | AB19: 9.93 | AC19: 36713.58 | AD19: 3605.23 | AE19: 6394.11 | AF19: 1079.8 | AG19: 4379.06 | AH19: 371.07 | AI19: 8652.03 | AJ19: 4126.88 | AK19: 482.11 | AL19: 2999.78 | AM19: 191.47 | AN19: 62612.62 | AP19: 5.16 | AQ19: 8.16 | AR19: 5.52 | AS19: 14.4 | AT19: 6 | AU19: 17.28 | AV19: 6.12 | AW19: 15.6
A20: 2006-10-01 | B20: 28525.246 | C20: 6567.021 | D20: 10583.667 | E20: 4580.337 | F20: 50256.271 | G20: 26.87426644 | K20: 10.32842561 | N20: 6.177634104 | Q20: 4.95 | R20: 3003.1 | S20: 1781.4 | T20: 4251.24 | U20: 1706.93 | V20: 7739.57 | W20: 26090.65 | X20: 2313.98 | Y20: 4781.81 | Z20: 176.88 | AA20: 4504.55 | AB20: 11.2 | AC20: 36587.14 | AD20: 3638.46 | AE20: 6187.42 | AF20: 1089.92 | AG20: 4337.05 | AH20: 371.05 | AI20: 8713.07 | AJ20: 4168.04 | AK20: 498.26 | AL20: 2737.7 | AM20: 193.7 | AN20: 62659.01 | AP20: 5.16 | AQ20: 8.04 | AR20: 5.52 | AS20: 14.16 | AT20: 5.88 | AU20: 18.6 | AV20: 6.48 | AW20: 20.28
A21: 2006-11-01 | B21: 29148.369 | C21: 6690.599 | D21: 10695.628 | E21: 4696.927 | F21: 51231.523 | G21: 26.97083773 | K21: 10.16942247 | N21: 6.107811217 | Q21: 4.82 | R21: 3011.8 | S21: 1804.2 | T21: 4348.96 | U21: 1714.08 | V21: 7867.24 | W21: 26364 | X21: 2304.87 | Y21: 4571.5 | Z21: 177.92 | AA21: 4354.2 | AB21: 12.42 | AC21: 36918.91 | AD21: 3679.09 | AE21: 6044.24 | AF21: 1082.9 | AG21: 4440.1 | AH21: 368.02 | AI21: 8780.32 | AJ21: 4245.68 | AK21: 516.44 | AL21: 2714.6 | AM21: 197.76 | AN21: 63163.34 | AP21: 5.16 | AQ21: 7.92 | AR21: 5.52 | AS21: 14.4 | AT21: 5.76 | AU21: 18.12 | AV21: 7.08 | AW21: 16.92
A22: 2006-12-01 | B22: 29910.708 | C22: 6786.221 | D22: 10799.63 | E22: 4805.611 | F22: 52302.17 | G22: 27.08498 | K22: 10.24621563 | N22: 6.077732562 | Q22: 4.77 | R22: 3504.1 | S22: 1958.1 | T22: 4738.61 | U22: 1883.39 | V22: 8580.1 | W22: 26945.88 | X22: 2282.73 | Y22: 4613.79 | Z22: 174.56 | AA22: 4388.79 | AB22: 12.87 | AC22: 38195.4 | AD22: 3630.32 | AE22: 5879.37 | AF22: 1058.49 | AG22: 4467.42 | AH22: 364.22 | AI22: 8999.03 | AJ22: 4359.52 | AK22: 538.89 | AL22: 2696.8 | AM22: 202.16 | AN22: 64593.7 | AP22: 5.28 | AQ22: 7.68 | AR22: 5.64 | AS22: 13.44 | AT22: 5.88 | AU22: 18 | AV22: 6.12 | AW22: 18.72
A23: 2007-01-01 | B23: 30104.209 | C23: 6864.27 | D23: 10928.962 | E23: 4950.368 | F23: 52847.809 | G23: 27.90456465 | K23: 10.08135097 | N23: 6.104881737 | Q23: 4.68 | R23: 3035.9 | S23: 1944.3 | T23: 4940.37 | U23: 1907.18 | V23: 8791.85 | W23: 27722.48 | X23: 2275.7 | Y23: 4558.09 | Z23: 170.67 | AA23: 4356.94 | AB23: 12.05 | AC23: 39149.8 | AD23: 3630.65 | AE23: 5344.41 | AF23: 1039.43 | AG23: 4352.59 | AH23: 361.04 | AI23: 9272.74 | AJ23: 4565.59 | AK23: 558.19 | AL23: 2684.67 | AM23: 208.05 | AN23: 65381.72 | AP23: 5.04 | AQ23: 7.44 | AR23: 5.4 | AS23: 13.56 | AT23: 5.64 | AU23: 17.88 | AV23: 6.12 | AW23: 20.04
A24: 2007-02-01 | B24: 30453.855 | C24: 6925.246 | D24: 11070.237 | E24: 4981.741 | F24: 53431.079 | G24: 28.68203617 | K24: 9.948701138 | N24: 6.092187817 | Q24: 4.58 | R24: 3250.9 | S24: 1974 | T24: 4840.67 | U24: 1924.77 | V24: 8739.44 | W24: 28168.01 | X24: 2273.95 | Y24: 4242.7 | Z24: 172.72 | AA24: 4138.21 | AB24: 12.09 | AC24: 39446.52 | AD24: 3755.68 | AE24: 5159.6 | AF24: 1049.47 | AG24: 4365.9 | AH24: 363.87 | AI24: 9393.7 | AJ24: 4755.82 | AK24: 566.44 | AL24: 2714.44 | AM24: 205.13 | AN24: 65937.43 | AP24: 5.04 | AQ24: 8.04 | AR24: 5.4 | AS24: 14.16 | AT24: 5.64 | AU24: 19.2 | AV24: 6.6 | AW24: 16.32
A25: 2007-03-01 | B25: 30797.955 | C25: 7057.045 | D25: 11237.238 | E25: 4974.938 | F25: 54067.176 | G25: 26.98843784 | K25: 9.818966191 | N25: 5.992904891 | Q25: 4.56 | R25: 3466.2 | S25: 1967.6 | T25: 4882.75 | U25: 1931.18 | V25: 8781.53 | W25: 28824.3 | X25: 2277.19 | Y25: 4764.35 | Z25: 176.15 | AA25: 4639.47 | AB25: 11.9 | AC25: 40172.15 | AD25: 3758.09 | AE25: 5135.92 | AF25: 1035.84 | AG25: 4402.84 | AH25: 369.8 | AI25: 9433.62 | AJ25: 4940.53 | AK25: 574.64 | AL25: 2836.48 | AM25: 210.66 | AN25: 66776.29 | AP25: 5.04 | AQ25: 7.8 | AR25: 5.28 | AS25: 14.16 | AT25: 5.52 | AU25: 17.64 | AV25: 6.6 | AW25: 13.32
A26: 2007-04-01 | B26: 31287.592 | C26: 7145.561 | D26: 11391.856 | E26: 5143.099 | F26: 54968.108 | G26: 27.73739058 | K26: 9.949041121 | N26: 6.026521309 | Q26: 4.54 | R26: 3604.7 | S26: 1972.8 | T26: 4974.98 | U26: 2048.24 | V26: 8996.02 | W26: 29174.45 | X26: 2277.08 | Y26: 5255.88 | Z26: 177.89 | AA26: 5054.87 | AB26: 14.28 | AC26: 40812.17 | AD26: 3808.68 | AE26: 5050.13 | AF26: 1012.14 | AG26: 4048.81 | AH26: 372.27 | AI26: 9423.35 | AJ26: 5234.03 | AK26: 598.3 | AL26: 2952.32 | AM26: 213.44 | AN26: 67194.12 | AP26: 5.04 | AQ26: 7.8 | AR26: 5.4 | AS26: 13.08 | AT26: 5.64 | AU26: 17.16 | AV26: 6 | AW26: 18.48
A27: 2007-05-01 | B27: 31686.086 | C27: 7187.303 | D27: 11616.996 | E27: 5319.282 | F27: 55809.667 | G27: 27.88672215 | K27: 10.02925436 | N27: 6.07313798 | Q27: 4.39 | R27: 3718.4 | S27: 1985.9 | T27: 5068.25 | U27: 1994.74 | V27: 9048.89 | W27: 29712.25 | X27: 2292.68 | Y27: 5086.24 | Z27: 189.13 | AA27: 4850.32 | AB27: 16.92 | AC27: 41461.95 | AD27: 3961.75 | AE27: 4914.41 | AF27: 1067.46 | AG27: 4189.04 | AH27: 372.17 | AI27: 9500.48 | AJ27: 5422.62 | AK27: 625.74 | AL27: 2894.61 | AM27: 220.86 | AN27: 68400.15 | AP27: 5.04 | AQ27: 7.92 | AR27: 5.64 | AS27: 13.44 | AT27: 5.76 | AU27: 14.64 | AV27: 6.72 | AW27: 17.64
A28: 2007-06-01 | B28: 32190.674 | C28: 7240.03 | D28: 11889.188 | E28: 5286.989 | F28: 56606.881 | G28: 27.94304786 | K28: 9.824916651 | N28: 6.135268702 | Q28: 4.42 | R28: 3666.5 | S28: 2006.5 | T28: 5052.45 | U28: 2033.84 | V28: 9092.79 | W28: 30370.14 | X28: 2317.05 | Y28: 5315.17 | Z28: 203.23 | AA28: 5089.07 | AB28: 16.45 | AC28: 42192.86 | AD28: 3932.11 | AE28: 4718.73 | AF28: 1133.57 | AG28: 4213.57 | AH28: 381.92 | AI28: 9597.02 | AJ28: 5560.25 | AK28: 650.12 | AL28: 2805.23 | AM28: 228.88 | AN28: 69346.04 | AP28: 5.4 | AQ28: 7.44 | AR28: 5.52 | AS28: 12.84 | AT28: 6.36 | AU28: 16.2 | AV28: 7.56 | AW28: 17.16
A29: 2007-07-01 | B29: 32687.58 | C29: 7329.254 | D29: 12122.924 | E29: 5263.157 | F29: 57402.915 | G29: 28.85455598 | K29: 9.985638792 | N29: 6.062530955 | Q29: 4.51 | R29: 3650.6 | S29: 1991.3 | T29: 5086.13 | U29: 2063.76 | V29: 9141.19 | W29: 30765.41 | X29: 2321.37 | Y29: 5253.62 | Z29: 211.65 | AA29: 4889.29 | AB29: 17.42 | AC29: 42786.53 | AD29: 3926.29 | AE29: 4653.62 | AF29: 1160.63 | AG29: 4096.74 | AH29: 389.69 | AI29: 9609.62 | AJ29: 5782.33 | AK29: 671.26 | AL29: 2805.97 | AM29: 234.6 | AN29: 70036.14 | AP29: 5.4 | AQ29: 7.56 | AR29: 5.76 | AS29: 13.08 | AT29: 6.36 | AU29: 15.36 | AV29: 7.08 | AW29: 17.88
A30: 2007-08-01 | B30: 33344.21 | C30: 7456.144 | D30: 12409.393 | E30: 5359.948 | F30: 58569.695 | G30: 27.59263685 | K30: 9.911397133 | N30: 6.19990909 | Q30: 4.69 | R30: 3503 | S30: 1969.9 | T30: 5021.79 | U30: 2129.76 | V30: 9121.45 | W30: 30781.62 | X30: 2327.08 | Y30: 5407.28 | Z30: 220.73 | AA30: 4995.61 | AB30: 19.91 | AC30: 42842.64 | AD30: 3958.81 | AE30: 4744.24 | AF30: 1160.28 | AG30: 4146.57 | AH30: 397.83 | AI30: 9734.06 | AJ30: 5885.32 | AK30: 672.26 | AL30: 2898.11 | AM30: 233.27 | AN30: 70410.63 | AP30: 5.52 | AQ30: 7.68 | AR30: 6.12 | AS30: 12.84 | AT30: 6.6 | AU30: 15.72 | AV30: 7.8 | AW30: 18.6
A31: 2007-09-01 | B31: 34064.347 | C31: 7529.568 | D31: 12721.028 | E31: 5310.816 | F31: 59625.759 | G31: 28.88864487 | K31: 10.12611294 | N31: 6.144116389 | Q31: 4.79 | R31: 4118.5 | S31: 2059.3 | T31: 4968.59 | U31: 2381.34 | V31: 9409.23 | W31: 31125.25 | X31: 2340.96 | Y31: 5425.09 | Z31: 229.26 | AA31: 5262.59 | AB31: 19.99 | AC31: 43247.21 | AD31: 3967.61 | AE31: 4687.45 | AF31: 1185.22 | AG31: 4227.91 | AH31: 397.53 | AI31: 9905.39 | AJ31: 5964.2 | AK31: 681.5 | AL31: 2984.07 | AM31: 225.16 | AN31: 71054.79 | AP31: 5.88 | AQ31: 8.4 | AR31: 6.36 | AS31: 14.04 | AT31: 6.72 | AU31: 16.32 | AV31: 7.68 | AW31: 19.68
A32: 2007-10-01 | B32: 34709.024 | C32: 7628.024 | D32: 12982.869 | E32: 5237.779 | F32: 60557.696 | G32: 29.01098504 | K32: 10.15083518 | N32: 5.853360697 | Q32: 4.83 | R32: 3533.6 | S32: 2018.9 | T32: 4965.54 | U32: 2206.39 | V32: 9190.83 | W32: 31971.79 | X32: 2357.69 | Y32: 5528.08 | Z32: 234.83 | AA32: 5508.11 | AB32: 17.06 | AC32: 43758.05 | AD32: 4089.22 | AE32: 4596.54 | AF32: 1184.14 | AG32: 4137.27 | AH32: 393.47 | AI32: 10064.37 | AJ32: 6212.2 | AK32: 716.88 | AL32: 3014.92 | AM32: 230.2 | AN32: 71907.02 | AP32: 5.88 | AQ32: 9.72 | AR32: 6.36 | AS32: 14.4 | AT32: 6.84 | AU32: 15.84 | AV32: 7.44 | AW32: 19.44
A33: 2007-11-01 | B33: 35764.525 | C33: 7740.683 | D33: 13182.559 | E33: 5543.69 | F33: 62231.457 | G33: 28.91827827 | K33: 10.16639217 | N33: 5.682430127 | Q33: 4.81 | R33: 3515.1 | S33: 2041.2 | T33: 4863.48 | U33: 2665.85 | V33: 9570.53 | W33: 32853.27 | X33: 2363.57 | Y33: 6338.14 | Z33: 229.9 | AA33: 6247.86 | AB33: 15.74 | AC33: 45091.81 | AD33: 4144.98 | AE33: 4450.98 | AF33: 1231.92 | AG33: 4167.13 | AH33: 405.73 | AI33: 10272.13 | AJ33: 6296.57 | AK33: 723.79 | AL33: 3081.23 | AM33: 242.1 | AN33: 73461.71 | AP33: 5.88 | AQ33: 10.44 | AR33: 6.36 | AS33: 14.04 | AT33: 6.84 | AU33: 15.96 | AV33: 10.2 | AW33: 18.24
A34: 2007-12-01 | B34: 36669.066 | C34: 7827.114911 | D34: 13431.649 | E34: 5403.179 | F34: 63331.00891 | G34: 29.9564244 | K34: 10.20759446 | N34: 5.890780774 | Q34: 4.83 | R34: 3660.6 | S34: 2210.3 | T34: 5417.21 | U34: 2502.35 | V34: 10129.86 | W34: 33217.52 | X34: 2356.44 | Y34: 6176.76 | Z34: 221.39 | AA34: 6053.72 | AB34: 16.56 | AC34: 46031.69 | AD34: 4142.89 | AE34: 4082.7 | AF34: 1327.55 | AG34: 4138.16 | AH34: 389.53 | AI34: 10443.17 | AJ34: 6094.77 | AK34: 706.55 | AL34: 3017.96 | AM34: 248.08 | AN34: 74090.97 | AP34: 6.48 | AQ34: 9.84 | AR34: 6.96 | AS34: 13.32 | AT34: 7.08 | AU34: 16.08 | AV34: 7.32 | AW34: 19.2
A35: 2008-01-01 | B35: 36532.93751 | C35: 7916.375832 | D35: 13711.53259 | E35: 5095.808267 | F35: 63256.6542 | G35: 32.06297709 | K35: 10.54607256 | N35: 4.909974714 | Q35: 4.8 | R35: 3746.5 | S35: 2190.6 | T35: 5469.3 | U35: 2544.2 | V35: 10204.1 | W35: 34957.5 | X35: 2362.9 | Y35: 5566.9 | Z35: 229.4 | AA35: 5520 | AB35: 18.5 | AC35: 47782.3 | AD35: 4208.8 | AE35: 4142.8 | AF35: 1397.2 | AG35: 4131.3 | AH35: 368.7 | AI35: 10541.2 | AJ35: 5674.1 | AK35: 666 | AL35: 2953.2 | AM35: 253.8 | AN35: 75705.4 | AP35: 6.36 | AQ35: 10.68 | AR35: 6.6 | AS35: 14.04 | AT35: 7.32 | AU35: 18 | AV35: 7.92 | AW35: 21.36
A36: 2008-02-01 | B36: 36902.59123 | C36: 7975.891219 | D36: 13854.58514 | E36: 5196.531323 | F36: 63929.59891 | G36: 31.96068943 | K36: 10.52429586 | N36: 4.19445297 | Q36: 4.9 | R36: 3755.4 | S36: 2228.8 | T36: 5374.2 | U36: 2553.8 | V36: 10156.8 | W36: 35352.7 | X36: 2374.7 | Y36: 5860.6 | Z36: 240.4 | AA36: 5697.6 | AB36: 16.6 | AC36: 48271 | AD36: 4258.9 | AE36: 4376.3 | AF36: 1301.8 | AG36: 4084 | AH36: 369.8 | AI36: 10558.6 | AJ36: 5491.9 | AK36: 638.8 | AL36: 3171 | AM36: 249 | AN36: 75931.1 | AP36: 6.24 | AQ36: 10.68 | AR36: 6.6 | AS36: 13.8 | AT36: 7.08 | AU36: 17.88 | AV36: 7.68 | AW36: 19.68
A37: 2008-03-01 | B37: 37065.95947 | C37: 8059.479026 | D37: 14054.6845 | E37: 5151.148232 | F37: 64331.27123 | G37: 29.8751708 | K37: 10.60816322 | N37: 3.909952199 | Q37: 4.82 | R37: 3909.5 | S37: 2229.3 | T37: 5347.5 | U37: 2524.9 | V37: 10101.7 | W37: 35841 | X37: 2380.3 | Y37: 5949.5 | Z37: 250.8 | AA37: 5714.1 | AB37: 14.8 | AC37: 48794.4 | AD37: 4172.9 | AE37: 4370.4 | AF37: 1336.5 | AG37: 4081.2 | AH37: 365.9 | AI37: 10620.1 | AJ37: 5702.6 | AK37: 638.3 | AL37: 3450 | AM37: 258.2 | AN37: 76374.1 | AP37: 6.48 | AQ37: 10.68 | AR37: 6.96 | AS37: 14.16 | AT37: 7.32 | AU37: 16.44 | AV37: 7.44 | AW37: 19.08
A38: 2008-04-01 | B38: 37929.25986 | C38: 8157.740165 | D38: 14333.60615 | E38: 5818.984932 | F38: 66239.59111 | G38: 30.12632972 | K38: 10.5928774 | N38: 4.016354928 | Q38: 4.76 | R38: 3768.9 | S38: 2213.8 | T38: 5333.4 | U38: 2554.1 | V38: 10101.3 | W38: 36588.2 | X38: 2392.4 | Y38: 6075.6 | Z38: 261.4 | AA38: 5909.6 | AB38: 16.1 | AC38: 49493.2 | AD38: 4431.3 | AE38: 4342.6 | AF38: 1426.3 | AG38: 4082.3 | AH38: 375.2 | AI38: 10823.6 | AJ38: 5906.2 | AK38: 636.6 | AL38: 3513.8 | AM38: 252.7 | AN38: 77750.8 | AP38: 6.48 | AQ38: 10.92 | AR38: 6.96 | AS38: 14.64 | AT38: 7.32 | AU38: 17.28 | AV38: 7.44 | AW38: 19.8
A39: 2008-05-01 | B39: 38480.92771 | C39: 8155.671818 | D39: 14529.4222 | E39: 6335.393903 | F39: 67501.41563 | G39: 30.9324869 | K39: 10.67956961 | N39: 4.116003773 | Q39: 4.63 | R39: 3922.1 | S39: 2257.2 | T39: 5535.4 | U39: 2623.8 | V39: 10416.4 | W39: 36375.2 | X39: 2427.4 | Y39: 6895.9 | Z39: 274.5 | AA39: 6684 | AB39: 18.8 | AC39: 49686.6 | AD39: 4876.2 | AE39: 4531.7 | AF39: 1556.6 | AG39: 3987.2 | AH39: 396 | AI39: 11137.4 | AJ39: 6041 | AK39: 655.2 | AL39: 3503.9 | AM39: 251 | AN39: 79113 | AP39: 6.6 | AQ39: 10.92 | AR39: 6.96 | AS39: 13.68 | AT39: 7.32 | AU39: 17.28 | AV39: 7.8 | AW39: 20.4
A40: 2008-06-01 | B40: 39280.5813 | C40: 8190.377374 | D40: 14847.07102 | E40: 7018.991106 | F40: 69337.0208 | G40: 30.74424815 | K40: 10.87630127 | N40: 4.238679367 | Q40: 4.72 | R40: 3942.2 | S40: 2274.2 | T40: 5585.8 | U40: 2631.7 | V40: 10491.7 | W40: 36715.1 | X40: 2468.3 | Y40: 6562.2 | Z40: 293.5 | AA40: 6357.7 | AB40: 22 | AC40: 50151.1 | AD40: 5370 | AE40: 4879.8 | AF40: 1630.8 | AG40: 4083.1 | AH40: 413.2 | AI40: 11329.1 | AJ40: 6013.4 | AK40: 657.3 | AL40: 3453.4 | AM40: 250.4 | AN40: 80824 | AP40: 6.72 | AQ40: 11.28 | AR40: 7.32 | AS40: 14.28 | AT40: 7.68 | AU40: 18 | AV40: 8.52 | AW40: 20.28
A41: 2008-07-01 | B41: 39742.06483 | C41: 8230.370095 | D41: 15178.60382 | E41: 6694.507948 | F41: 69845.54669 | G41: 31.24031374 | K41: 11.42875372 | N41: 4.404424868 | Q41: 4.87 | R41: 3885.2 | S41: 2254.4 | T41: 5357.3 | U41: 2338.5 | V41: 9950.2 | W41: 36965.8 | X41: 2498.7 | Y41: 6257 | Z41: 307.9 | AA41: 6006.6 | AB41: 23.7 | AC41: 49949.3 | AD41: 5832.1 | AE41: 5436.9 | AF41: 1685.6 | AG41: 4002.9 | AH41: 420.3 | AI41: 11377.4 | AJ41: 5891.9 | AK41: 638.9 | AL41: 3507.2 | AM41: 263.5 | AN41: 81464.6 | AP41: 6.84 | AQ41: 10.56 | AR41: 7.56 | AS41: 15.36 | AT41: 8.64 | AU41: 18.12 | AV41: 8.76 | AW41: 21
A42: 2008-08-01 | B42: 40257.88392 | C42: 8288.808897 | D42: 15482.081 | E42: 6706.784942 | F42: 70735.55877 | G42: 32.01457109 | K42: 11.87277186 | N42: 4.682843065 | Q42: 4.82 | R42: 3888.7 | S42: 2232 | T42: 5252.6 | U42: 2578.2 | V42: 10062.8 | W42: 36845.8 | X42: 2523.5 | Y42: 6316.2 | Z42: 321.3 | AA42: 5907.8 | AB42: 24.4 | AC42: 50137.4 | AD42: 6044.2 | AE42: 6257.8 | AF42: 1827.6 | AG42: 4007.5 | AH42: 436.4 | AI42: 11696.9 | AJ42: 5802.1 | AK42: 619.6 | AL42: 3699.5 | AM42: 266.2 | AN42: 82863.8 | AP42: 7.44 | AQ42: 11.64 | AR42: 8.04 | AS42: 15.24 | AT42: 8.64 | AU42: 19.2 | AV42: 9.24 | AW42: 23.28
A43: 2008-09-01 | B43: 40957.88284 | C43: 8315.656005 | D43: 15741.79555 | E43: 7268.870571 | F43: 72284.20497 | G43: 34.02436491 | K43: 12.80472031 | N43: 5.126385627 | Q43: 4.8 | R43: 3946.5 | S43: 2315 | T43: 5278.6 | U43: 2599.7 | V43: 10193.3 | W43: 37274.3 | X43: 2546.6 | Y43: 5893.7 | Z43: 328.1 | AA43: 5393 | AB43: 22.8 | AC43: 50820.2 | AD43: 6220.8 | AE43: 6968.1 | AF43: 1974.3 | AG43: 3983.4 | AH43: 457.6 | AI43: 12067.3 | AJ43: 5505.3 | AK43: 582.1 | AL43: 3542.9 | AM43: 271.1 | AN43: 84765.1 | AP43: 8.4 | AQ43: 12.48 | AR43: 9.48 | AS43: 16.44 | AT43: 9.6 | AU43: 19.08 | AV43: 9.36 | AW43: 24.36
A44: 2008-10-01 | B44: 42404.14236 | C44: 8325.853397 | D44: 15986.53123 | E44: 8464.093896 | F44: 75180.62088 | G44: 35.7608978 | K44: 15.14850576 | N44: 8.027125743 | Q44: 5.34 | R44: 3936.6 | S44: 2305.9 | T44: 5486.3 | U44: 2624.3 | V44: 10416.5 | W44: 38920.1 | X44: 2563.5 | Y44: 6055.2 | Z44: 326.4 | AA44: 5559.3 | AB44: 18.1 | AC44: 52704.3 | AD44: 6550.1 | AE44: 6842 | AF44: 2137.4 | AG44: 3925.9 | AH44: 465.1 | AI44: 12231.4 | AJ44: 4853.4 | AK44: 510.9 | AL44: 3183 | AM44: 268.3 | AN44: 86769.2 | AP44: 9 | AQ44: 16.56 | AR44: 9.96 | AS44: 17.16 | AT44: 9.84 | AU44: 22.56 | AW44: 23.52
A45: 2008-11-01 | B45: 42751.92068 | C45: 8365.910376 | D45: 16177.99934 | E45: 8393.288363 | F45: 75689.11876 | G45: 36.07184204 | K45: 15.12878623 | N45: 5.927597244 | Q45: 5.69 | R45: 4137.2 | S45: 2331.1 | T45: 5394.2 | U45: 2557.5 | V45: 10282.8 | W45: 39857.8 | X45: 2571.9 | Y45: 6236.7 | Z45: 330.4 | AA45: 5757.5 | AB45: 18.4 | AC45: 53503.7 | AD45: 6857.2 | AE45: 6481.1 | AF45: 2293.6 | AG45: 3944.6 | AH45: 487 | AI45: 12405 | AJ45: 4328.1 | AK45: 465.9 | AL45: 3078.7 | AM45: 255 | AN45: 87432.5 | AP45: 8.04 | AQ45: 17.04 | AR45: 8.88 | AS45: 16.68 | AT45: 9.24 | AU45: 22.44 | AV45: 8.88 | AW45: 27
A46: 2008-12-01 | B46: 42262.40887 | C46: 8356.583898 | D46: 16275.07166 | E46: 7828.050024 | F46: 74722.11446 | G46: 36.85158168 | K46: 14.91091061 | N46: 5.831500249 | Q46: 5.77 | R46: 4287.6 | S46: 2484.8 | T46: 5621.4 | U46: 2701.7 | V46: 10807.9 | W46: 40415.5 | X46: 2563.5 | Y46: 6512 | Z46: 342.6 | AA46: 6021.2 | AB46: 22.2 | AC46: 54598.1 | AD46: 6666.5 | AE46: 6330.6 | AF46: 2335.7 | AG46: 3816.7 | AH46: 503.4 | AI46: 12650.5 | AJ46: 4091.8 | AK46: 459.9 | AL46: 2953.5 | AM46: 248.3 | AN46: 88251.4 | AP46: 8.28 | AQ46: 16.44 | AR46: 8.76 | AS46: 16.92 | AT46: 8.52 | AU46: 22.32 | AV46: 7.2 | AW46: 24.96
A47: 2009-01-01 | B47: 41620.5329 | C47: 8342.315144 | D47: 16266.58066 | E47: 7488.709613 | F47: 73718.13831 | G47: 36.33417145 | K47: 13.51124586 | N47: 5.323566282 | Q47: 5.92 | R47: 4305.8 | S47: 2445.4 | T47: 5600.8 | U47: 2706.6 | V47: 10752.8 | W47: 40571.9 | X47: 2555 | Y47: 7657.4 | Z47: 348.9 | AA47: 7157.4 | AB47: 24.9 | AC47: 54703.7 | AD47: 6548.5 | AE47: 6051.9 | AF47: 2350.2 | AG47: 3670.3 | AH47: 500.4 | AI47: 13010.6 | AJ47: 4144.4 | AK47: 453.1 | AL47: 3108.8 | AM47: 239 | AN47: 88085.3 | AP47: 7.08 | AQ47: 14.04 | AR47: 6.72 | AS47: 19.56 | AT47: 6.6 | AU47: 22.08 | AW47: 23.04
A48: 2009-02-01 | B48: 41119.3856 | C48: 8282.983976 | D48: 16154.00607 | E48: 7068.389425 | F48: 72624.76507 | G48: 36.18977679 | K48: 12.21579471 | N48: 5.117256562 | Q48: 5.53 | R48: 4164.8 | S48: 2446 | T48: 5652.6 | U48: 2436.6 | V48: 10535.2 | W48: 40313.1 | X48: 2541.2 | Y48: 8278.8 | Z48: 355.9 | AA48: 7709 | AB48: 25.7 | AC48: 54289.5 | AD48: 6554.7 | AE48: 6124.9 | AF48: 2445.3 | AG48: 3715.3 | AH48: 529 | AI48: 13196.2 | AJ48: 4551 | AK48: 446.6 | AL48: 3610.3 | AM48: 239 | AN48: 88003.2 | AP48: 5.16 | AQ48: 12.96 | AR48: 4.92 | AS48: 15.12 | AT48: 4.68 | AU48: 19.92 | AV48: 5.76 | AW48: 24.24
A49: 2009-03-01 | B49: 40445.08225 | C49: 8286.758878 | D49: 16177.83183 | E49: 6733.923758 | F49: 71643.59671 | G49: 32.23109006 | K49: 10.05881629 | N49: 4.683590798 | Q49: 4.9 | R49: 4218.5 | S49: 2459.9 | T49: 5902.3 | U49: 2280.3 | V49: 10642.5 | W49: 37600.8 | X49: 2533.7 | Y49: 8098.2 | Z49: 363.2 | AA49: 7551.7 | AB49: 25.9 | AC49: 51660.8 | AD49: 6489.1 | AE49: 6655.6 | AF49: 2500.7 | AG49: 3599.9 | AH49: 559.5 | AI49: 13297.4 | AJ49: 4865.2 | AK49: 445 | AL49: 4017.7 | AM49: 241.5 | AN49: 85814 | AP49: 2.88 | AQ49: 10.08 | AR49: 3.12 | AS49: 14.88 | AT49: 3.24 | AU49: 15.12 | AW49: 20.64
A50: 2009-04-01 | B50: 40860.99227 | C50: 8322.734132 | D50: 16217.03066 | E50: 6398.891221 | F50: 71799.64829 | G50: 29.97497029 | K50: 8.766351447 | N50: 3.947299689 | Q50: 4.42 | R50: 4234.4 | S50: 2462.6 | T50: 6024.4 | U50: 2402.8 | V50: 10889.8 | W50: 36814.3 | X50: 2549.4 | Y50: 8882.9 | Z50: 367.1 | AA50: 8634.1 | AB50: 22.1 | AC50: 50847.3 | AD50: 6254.1 | AE50: 6811.1 | AF50: 2540.2 | AG50: 3479.9 | AH50: 581.5 | AI50: 13804.3 | AJ50: 5011.4 | AK50: 457.7 | AL50: 4069.3 | AM50: 234.3 | AN50: 85483.9 | AP50: 2.28 | AQ50: 9.48 | AR50: 2.52 | AS50: 13.08 | AT50: 2.88 | AU50: 11.76 | AW50: 17.64
A51: 2009-05-01 | B51: 40716.10378 | C51: 8264.660025 | D51: 16297.69606 | E51: 6183.376553 | F51: 71461.83641 | G51: 29.56658702 | K51: 8.071368334 | N51: 3.776842156 | Q51: 4.455645369 | R51: 4344.9 | S51: 2493.5 | T51: 6188.7 | U51: 2652.1 | V51: 11334.3 | W51: 36523.8 | X51: 2589.9 | Y51: 9185.3 | Z51: 373.4 | AA51: 8999.2 | AB51: 23 | AC51: 50984.5 | AD51: 5840.2 | AE51: 6723.3 | AF51: 2596.2 | AG51: 3469 | AH51: 600.2 | AI51: 14288.6 | AJ51: 5157.5 | AK51: 484.1 | AL51: 3958.6 | AM51: 222.5 | AN51: 85962.5 | AP51: 1.56 | AQ51: 7.08 | AR51: 1.8 | AS51: 12.12 | AT51: 2.52 | AU51: 13.56 | AW51: 18.96
A52: 2009-06-01 | B52: 40399.39512 | C52: 8203.665652 | D52: 16441.35447 | E52: 5403.769367 | F52: 70448.18461 | G52: 28.9061915 | K52: 7.984518349 | N52: 3.496964596 | Q52: 4.61 | R52: 4430.6 | S52: 2504.8 | T52: 6291.6 | U52: 2818.5 | V52: 11614.9 | W52: 36470.2 | X52: 2627.5 | Y52: 8599.7 | Z52: 371.3 | AA52: 8163.3 | AB52: 26.3 | AC52: 51494 | AD52: 5373.4 | AE52: 6917.2 | AF52: 2653.5 | AG52: 3435.3 | AH52: 598 | AI52: 14355.7 | AJ52: 5191.6 | AK52: 506.4 | AL52: 3819.8 | AM52: 208.4 | AN52: 86496.9 | AP52: 1.32 | AQ52: 5.88 | AR52: 1.68 | AS52: 14.16 | AT52: 2.76 | AU52: 13.08 | AW52: 14.88
A53: 2009-07-01 | B53: 40444.88165 | C53: 8213.907189 | D53: 16579.80784 | E53: 5362.954307 | F53: 70601.55098 | G53: 27.90935239 | K53: 7.240847234 | N53: 2.713315794 | Q53: 4.62 | R53: 4308.2 | S53: 2487 | T53: 6303.6 | U53: 2811.5 | V53: 11602.1 | W53: 36705.1 | X53: 2640.4 | Y53: 9977.7 | Z53: 367.8 | AA53: 9280 | AB53: 24.2 | AC53: 51988.9 | AD53: 5141.7 | AE53: 6460 | AF53: 2778.2 | AG53: 3339.5 | AH53: 609.4 | AI53: 14256.1 | AJ53: 5355 | AK53: 527.9 | AL53: 3911.6 | AM53: 206.6 | AN53: 86338.5 | AP53: 0.84 | AQ53: 5.04 | AR53: 1.44 | AS53: 11.4 | AT53: 1.8 | AU53: 16.2 | AW53: 18.84
A54: 2009-08-01 | B54: 40852.69961 | C54: 8220.545874 | D54: 16692.06583 | E54: 5389.531063 | F54: 71154.84237 | G54: 24.57374351 | K54: 5.987396699 | N54: 3.394973906 | Q54: 4.56 | R54: 4487.9 | S54: 2505.8 | T54: 6290.1 | U54: 2952.3 | V54: 11748.2 | W54: 36460 | X54: 2652.7 | Y54: 10236.6 | Z54: 365.5 | AA54: 9492.9 | AB54: 21.6 | AC54: 51948.5 | AD54: 5360.1 | AE54: 6128.7 | AF54: 2906.9 | AG54: 3309.1 | AH54: 614.3 | AI54: 14330.7 | AJ54: 5723.9 | AK54: 552.7 | AL54: 4174.6 | AM54: 200.9 | AN54: 86499.4 | AP54: 0.48 | AQ54: 4.2 | AR54: 0.72 | AS54: 10.56 | AT54: 1.44 | AU54: 9.48 | AV54: 4.68 | AW54: 14.76
A55: 2009-09-01 | B55: 41035.87044 | C55: 8242.085323 | D55: 16810.68889 | E55: 5246.605182 | F55: 71335.24984 | G55: 26.52326424 | K55: 5.774980921 | N55: 2.545047012 | Q55: 4.49 | R55: 4558.8 | S55: 2612.6 | T55: 6470.7 | U55: 3214.1 | V55: 12297.4 | W55: 36281.5 | X55: 2663.4 | Y55: 9042 | Z55: 363.8 | AA55: 8393.2 | AB55: 21.5 | AC55: 52233.4 | AD55: 5369 | AE55: 6576.2 | AF55: 3040.4 | AG55: 3282.4 | AH55: 607 | AI55: 13900.9 | AJ55: 6234.5 | AK55: 580.9 | AL55: 4371.3 | AM55: 200.3 | AN55: 87253.1 | AP55: 0.6 | AQ55: 3.84 | AR55: 1.08 | AS55: 11.4 | AT55: 2.16 | AU55: 12.24 | AV55: 4.44 | AW55: 17.4
A56: 2009-10-01 | B56: 41079.07672 | C56: 8300.790008 | D56: 17052.11346 | E56: 5224.977959 | F56: 71656.95815 | G56: 26.66781426 | K56: 5.613465454 | N56: 2.660928912 | Q56: 4.35 | R56: 4379.1 | S56: 2571.2 | T56: 6492.6 | U56: 3280.4 | V56: 12344.2 | W56: 35231.4 | X56: 2670.1 | Y56: 9653.9 | Z56: 358.3 | AA56: 8873.3 | AB56: 24.8 | AC56: 51359.8 | AD56: 5266 | AE56: 6458.5 | AF56: 3201.8 | AG56: 3182 | AH56: 591.6 | AI56: 13440.4 | AJ56: 6669.4 | AK56: 607.5 | AL56: 4552.1 | AM56: 192.7 | AN56: 86032.2 | AP56: 0.6 | AQ56: 3.72 | AR56: 1.2 | AS56: 11.64 | AT56: 2.52 | AU56: 11.88 | AV56: 5.04 | AW56: 16.56
A57: 2009-11-01 | B57: 40973.89827 | C57: 8346.10289 | D57: 17292.09993 | E57: 4819.113992 | F57: 71431.21508 | G57: 27.25833994 | K57: 5.247571939 | N57: 2.546599361 | Q57: 4.28 | R57: 4558.9 | S57: 2585.4 | T57: 6575.7 | U57: 3161.3 | V57: 12322.4 | W57: 35176.8 | X57: 2643.8 | Y57: 9434.3 | Z57: 347.8 | AA57: 8629 | AB57: 23.9 | AC57: 51272.2 | AD57: 5365.9 | AE57: 6421.3 | AF57: 3396.7 | AG57: 2992.3 | AH57: 533.7 | AI57: 13640.6 | AJ57: 6644.4 | AK57: 615.5 | AL57: 4382.8 | AM57: 183.4 | AN57: 86316.4 | AP57: 0.6 | AQ57: 3.72 | AR57: 1.44 | AS57: 11.28 | AT57: 2.88 | AU57: 12.36 | AV57: 4.8 | AW57: 16.68
A58: 2009-12-01 | B58: 42490.42915 | C58: 8424.088013 | D58: 17435.79351 | E58: 4624.035573 | F58: 72974.34625 | G58: 26.55652398 | K58: 4.739766636 | N58: 2.220797364 | Q58: 4.541432542 | R58: 4735.2 | S58: 2754.5 | T58: 7257.6 | U58: 3267 | V58: 13279.1 | W58: 34751.3 | X58: 2628 | Y58: 9448.2 | Z58: 346.3 | AA58: 8712.9 | AB58: 24 | AC58: 51716 | AD58: 5387.9 | AE58: 6214.4 | AF58: 3451.2 | AG58: 2965.1 | AH58: 496.9 | AI58: 13853.4 | AJ58: 6548.9 | AK58: 624.2 | AL58: 4071.8 | AM58: 180 | AN58: 87006.2 | AP58: 0.72 | AQ58: 3.48 | AR58: 1.44 | AS58: 9.84 | AT58: 2.52 | AU58: 7.68 | AV58: 4.68 | AW58: 14.76
A59: 2010-01-01 | B59: 42328.99862 | C59: 8459.64858 | D59: 17483.62977 | E59: 5245.58657 | F59: 73517.86355 | G59: 30.35391496 | K59: 7.040624887 | N59: 1.837065704 | Q59: 4.583830998 | R59: 4802.9 | S59: 2744.3 | T59: 7443.5 | U59: 3592.8 | V59: 13780.6 | W59: 35378.8 | X59: 2656.8 | Y59: 9729.9 | Z59: 351.9 | AA59: 8973 | AB59: 25 | AC59: 52900 | AD59: 5513.4 | AE59: 5823.5 | AF59: 3528.4 | AG59: 2818.5 | AH59: 495.1 | AI59: 13930.3 | AJ59: 6640.9 | AK59: 635.4 | AL59: 4138.9 | AM59: 218.4 | AN59: 87928.2 | AP59: 0.6 | AQ59: 3.96 | AR59: 1.2 | AS59: 11.88 | AT59: 2.28 | AU59: 13.32 | AV59: 5.04 | AW59: 20.28
A60: 2010-02-01 | B60: 42565.73597 | C60: 8474.471061 | D60: 17597.78179 | E60: 5118.180715 | F60: 73756.16954 | G60: 29.546126 | K60: 5.62794949 | N60: 1.978243918 | Q60: 4.602983966 | R60: 4952.2 | S60: 2801.8 | T60: 7361.1 | U60: 3713.2 | V60: 13876.1 | W60: 35333 | X60: 2634.1 | Y60: 8937.2 | Z60: 358.3 | AA60: 8217.1 | AB60: 25.2 | AC60: 52896.4 | AD60: 5581.3 | AE60: 6024.2 | AF60: 3639.8 | AG60: 2773.5 | AH60: 477.8 | AI60: 13893.7 | AJ60: 6848.9 | AK60: 639.3 | AL60: 4291.7 | AM60: 219.3 | AN60: 88263.9 | AP60: 0.6 | AQ60: 4.08 | AR60: 1.56 | AS60: 13.8 | AT60: 2.88 | AU60: 17.64 | AV60: 4.8 | AW60: 19.08
A61: 2010-03-01 | B61: 42411.28149 | C61: 8531.434368 | D61: 17711.91058 | E61: 5141.598752 | F61: 73796.2252 | G61: 27.98245903 | K61: 5.420358692 | N61: 2.201231503 | Q61: 4.275585515 | R61: 5066 | S61: 2869.8 | T61: 7629.4 | U61: 3705.5 | V61: 14204.7 | W61: 35235.3 | X61: 2654.9 | Y61: 9111.7 | Z61: 363.7 | AA61: 8195.2 | AB61: 22.5 | AC61: 53352.6 | AD61: 5580.5 | AE61: 6253.2 | AF61: 3908.2 | AG61: 2940 | AH61: 465.5 | AI61: 13899.1 | AJ61: 7295 | AK61: 656.9 | AL61: 4671.3 | AM61: 222.4 | AN61: 89457.3 | AP61: 0.6 | AQ61: 3.96 | AR61: 1.32 | AS61: 11.52 | AT61: 2.52 | AU61: 13.92 | AV61: 5.64 | AW61: 15.24
A62: 2010-04-01 | B62: 42721.57489 | C62: 8650.120887 | D62: 17821.45227 | E62: 5346.385341 | F62: 74539.53339 | G62: 27.30835546 | K62: 5.444336526 | N62: 1.820821489 | Q62: 4.127527784 | R62: 4965.6 | S62: 2918.6 | T62: 7687.8 | U62: 3727.4 | V62: 14333.8 | W62: 35446.4 | X62: 2726.8 | Y62: 10228.3 | Z62: 378.7 | AA62: 9122 | AB62: 21 | AC62: 53971 | AD62: 5716.3 | AE62: 6582.8 | AF62: 4137.5 | AG62: 2734 | AH62: 468.9 | AI62: 13936 | AJ62: 7771.4 | AK62: 680.1 | AL62: 5179.6 | AM62: 225 | AN62: 90593.4 | AP62: 0.6 | AQ62: 3.72 | AR62: 1.2 | AS62: 11.28 | AT62: 2.88 | AU62: 12.12 | AV62: 6.24 | AW62: 17.52
A63: 2010-05-01 | B63: 43016.76997 | C63: 8664.317883 | D63: 18041.26693 | E63: 5634.652399 | F63: 75357.00718 | G63: 27.304549 | K63: 5.104336024 | N63: 2.343192732 | Q63: 4.180987597 | R63: 5140.5 | S63: 2982.1 | T63: 7971.9 | U63: 4072.7 | V63: 15026.7 | W63: 35833.7 | X63: 2738.3 | Y63: 10010.7 | Z63: 397.4 | AA63: 9143 | AB63: 22.6 | AC63: 54841.2 | AD63: 5942 | AE63: 5973.6 | AF63: 4394 | AG63: 2760.5 | AH63: 465.6 | AI63: 14023.2 | AJ63: 7915.7 | AK63: 678.3 | AL63: 5058.8 | AM63: 230.5 | AN63: 91704.8 | AP63: 0.72 | AQ63: 3.84 | AR63: 1.8 | AS63: 12.48 | AT63: 3.84 | AU63: 10.2 | AV63: 6 | AW63: 15.12
A64: 2010-06-01 | B64: 43297.5842 | C64: 8717.965819 | D64: 18296.44437 | E64: 5852.445006 | F64: 76164.43939 | G64: 27.30581746 | K64: 5.264501639 | N64: 2.17113661 | Q64: 4.064804216 | R64: 5258.3 | S64: 3009.4 | T64: 8098.3 | U64: 4214.7 | V64: 15322.4 | W64: 35769.6 | X64: 2798.4 | Y64: 8713.5 | Z64: 407 | AA64: 8152.6 | AB64: 22.9 | AC64: 54835.4 | AD64: 6170 | AE64: 5144.3 | AF64: 4613.5 | AG64: 2870.4 | AH64: 457 | AI64: 14141.4 | AJ64: 7964.7 | AK64: 677.6 | AL64: 4616.6 | AM64: 233.2 | AN64: 92024.5 | AP64: 0.96 | AQ64: 3.6 | AR64: 2.16 | AS64: 10.44 | AT64: 3.96 | AU64: 13.56 | AV64: 5.28 | AW64: 16.08
A65: 2010-07-01 | B65: 42961.69648 | C65: 8799.311256 | D65: 18435.64867 | E65: 5574.450985 | F65: 75771.10739 | G65: 28.12090691 | K65: 5.864711137 | N65: 2.049669513 | Q65: 4.025876708 | R65: 5172.6 | S65: 3005.2 | T65: 7956.5 | U65: 4183.6 | V65: 15145.3 | W65: 35315 | X65: 2838.2 | Y65: 9277.2 | Z65: 405.8 | AA65: 8628.5 | AB65: 23.8 | AC65: 54329.2 | AD65: 6019.6 | AE65: 4632.7 | AF65: 4800.5 | AG65: 2778.6 | AH65: 411 | AI65: 14197.3 | AJ65: 8126.9 | AK65: 701.6 | AL65: 4952.2 | AM65: 229.6 | AN65: 90815.6 | AP65: 1.68 | AQ65: 3.96 | AR65: 2.64 | AS65: 12.12 | AT65: 4.56 | AU65: 14.4 | AV65: 5.4 | AW65: 17.4
A66: 2010-08-01 | B66: 43165.96213 | C66: 8927.681728 | D66: 18682.83754 | E66: 5506.390068 | F66: 76282.87147 | G66: 27.51463276 | K66: 6.913705921 | N66: 2.107778798 | Q66: 4.064727342 | R66: 5211.8 | S66: 2950.8 | T66: 7878.1 | U66: 4296.7 | V66: 15125.6 | W66: 34421 | X66: 2831.9 | Y66: 8683 | Z66: 403.4 | AA66: 7991.7 | AB66: 22.9 | AC66: 53450.3 | AD66: 5958.8 | AE66: 4398.4 | AF66: 4880.4 | AG66: 2781.2 | AH66: 356.8 | AI66: 14245.6 | AJ66: 8407.2 | AK66: 714.9 | AL66: 5060.1 | AM66: 228.1 | AN66: 89905.4 | AP66: 2.64 | AQ66: 5.04 | AR66: 3.72 | AS66: 12.96 | AT66: 5.4 | AU66: 14.28 | AV66: 6.24 | AW66: 20.4
A67: 2010-09-01 | B67: 43483.00586 | C67: 9004.575778 | D67: 18850.86494 | E67: 5320.740188 | F67: 76659.18677 | G67: 28.00297126 | K67: 6.868685981 | N67: 1.959424999 | Q67: 4.000279187 | R67: 5266.2 | S67: 3056.3 | T67: 7790 | U67: 4802.5 | V67: 15648.8 | W67: 34594.2 | X67: 2869.5 | Y67: 7354.6 | Z67: 404.1 | AA67: 6787.8 | AB67: 21.9 | AC67: 54061.5 | AD67: 6293.5 | AE67: 4471.1 | AF67: 5042 | AG67: 2817 | AH67: 342.7 | AI67: 14343.3 | AJ67: 8619.4 | AK67: 728.6 | AL67: 4535.9 | AM67: 227.1 | AN67: 91956.1 | AP67: 3 | AQ67: 5.76 | AR67: 4.08 | AS67: 11.28 | AT67: 5.52 | AU67: 12.36 | AV67: 6.36 | AW67: 15.84
A68: 2010-10-01 | B68: 43988.90595 | C68: 9116.528754 | D68: 19068.30828 | E68: 5707.592108 | F68: 77881.33509 | G68: 27.25242528 | K68: 7.13997477 | N68: 1.765055047 | Q68: 4.140442383 | R68: 5293.4 | S68: 3025.5 | T68: 7809.4 | U68: 4614.1 | V68: 15449 | W68: 35056 | X68: 2849.5 | Y68: 8166.7 | Z68: 400.9 | AA68: 7487.8 | AB68: 21.8 | AC68: 54412.5 | AD68: 6754.4 | AE68: 4500.4 | AF68: 5267.3 | AG68: 2697.6 | AH68: 335 | AI68: 14370 | AJ68: 8659.3 | AK68: 753.2 | AL68: 4343.3 | AM68: 223.8 | AN68: 93182.6 | AP68: 3.24 | AQ68: 5.76 | AR68: 4.32 | AS68: 11.16 | AT68: 5.4 | AU68: 15.84 | AV68: 4.68 | AW68: 16.08
A69: 2010-11-01 | B69: 44217.75877 | C69: 9262.826265 | D69: 19244.20113 | E69: 5824.234729 | F69: 78549.02089 | G69: 27.34191012 | K69: 7.187239134 | N69: 1.86573893 | Q69: 4.350280261 | R69: 5330.5 | S69: 3035.3 | T69: 7941.6 | U69: 4371.3 | V69: 15348.2 | W69: 35625.9 | X69: 2861.7 | Y69: 8195.6 | Z69: 400 | AA69: 7605.3 | AB69: 22.9 | AC69: 54803.2 | AD69: 6943.4 | AE69: 4609.8 | AF69: 5680.4 | AG69: 2668.5 | AH69: 338.9 | AI69: 14413.2 | AJ69: 8700.5 | AK69: 766.5 | AL69: 4126.1 | AM69: 229.9 | AN69: 94568.4 | AP69: 3.36 | AQ69: 5.76 | AR69: 4.2 | AS69: 11.16 | AT69: 5.28 | AU69: 15.96 | AV69: 6.48 | AW69: 18.96
A70: 2010-12-01 | B70: 44826.24336 | C70: 9390.75168 | D70: 19481.39258 | E70: 5283.800004 | F70: 78982.18763 | G70: 26.44170293 | K70: 7.379796927 | N70: 1.934379118 | Q70: 4.371130622 | R70: 5595 | S70: 3209.2 | T70: 8214.1 | U70: 4682.1 | V70: 16105.4 | W70: 36535.7 | X70: 2840.7 | Y70: 8249.4 | Z70: 405 | AA70: 7601.9 | AB70: 23.3 | AC70: 56511 | AD70: 6927.6 | AE70: 4369 | AF70: 6063.7 | AG70: 2574.1 | AH70: 325.4 | AI70: 14487.8 | AJ70: 8651.9 | AK70: 773.1 | AL70: 3735.7 | AM70: 239 | AN70: 96708.9 | AP70: 3.72 | AQ70: 6.36 | AR70: 4.56 | AS70: 11.04 | AT70: 5.52 | AU70: 15.12 | AV70: 6.6 | AW70: 17.64
A71: 2011-01-01 | B71: 45140.2364 | C71: 9515.07226 | D71: 19599.88231 | E71: 6010.49504 | F71: 80265.68601 | G71: 27.09389282 | K71: 7.599103818 | N71: 1.777727046 | Q71: 4.337310721 | R71: 5707.3 | S71: 3195.2 | T71: 8439 | U71: 4851.6 | V71: 16485.8 | W71: 36815.9 | X71: 2861.7 | Y71: 8329.6 | Z71: 417.4 | AA71: 7828.5 | AB71: 22.2 | AC71: 57059.7 | AD71: 7037.6 | AE71: 4404.9 | AF71: 6945.2 | AG71: 2333.5 | AH71: 307.3 | AI71: 14665.5 | AJ71: 8534.2 | AK71: 776.7 | AL71: 3339.2 | AM71: 241.3 | AN71: 98484.1 | AP71: 3.72 | AQ71: 6.72 | AR71: 4.44 | AS71: 11.4 | AT71: 5.64 | AU71: 15.48 | AV71: 4.56 | AW71: 20.16
A72: 2011-02-01 | B72: 45314.42583 | C72: 9619.609073 | D72: 19752.34582 | E72: 6182.367385 | F72: 80868.74811 | G72: 26.44719241 | K72: 7.906570832 | N72: 1.742377773 | Q72: 4.353309404 | R72: 5661.5 | S72: 3217.8 | T72: 8703.8 | U72: 4176.3 | V72: 16097.9 | W72: 36593.3 | X72: 2841.1 | Y72: 7469.7 | Z72: 427 | AA72: 7173.2 | AB72: 23.4 | AC72: 56232.4 | AD72: 6993.2 | AE72: 5082 | AF72: 7171.5 | AG72: 2329 | AH72: 306.7 | AI72: 14864.9 | AJ72: 8344.2 | AK72: 774.5 | AL72: 3128.1 | AM72: 243.7 | AN72: 98726.6 | AP72: 3.84 | AQ72: 7.44 | AR72: 4.8 | AS72: 12 | AT72: 5.4 | AU72: 14.76 | AV72: 4.56 | AW72: 20.04
A73: 2011-03-01 | B73: 45890.50077 | C73: 9832.270987 | D73: 19950.67805 | E73: 6472.759263 | F73: 82146.20908 | G73: 25.88126176 | K73: 8.252341346 | N73: 1.894617682 | Q73: 4.392648861 | R73: 5614.7 | S73: 3174.1 | T73: 8733.8 | U73: 4118.6 | V73: 16026.5 | W73: 36762.8 | X73: 2827.7 | Y73: 7470.1 | Z73: 441.8 | AA73: 7029 | AB73: 23.3 | AC73: 56476.6 | AD73: 6759.6 | AE73: 5282.3 | AF73: 7513.8 | AG73: 2501.8 | AH73: 306.5 | AI73: 14920.9 | AJ73: 8378.6 | AK73: 521.9 | AL73: 3397.7 | AM73: 250.4 | AN73: 99013.9 | AP73: 4.2 | AQ73: 7.2 | AR73: 5.16 | AS73: 13.08 | AT73: 6.72 | AU73: 17.16 | AV73: 4.68 | AW73: 18.84
A74: 2011-04-01 | B74: 46504.27644 | C74: 9997.982936 | D74: 20168.48584 | E74: 6537.726729 | F74: 83208.47194 | G74: 27.11788572 | K74: 8.423425558 | N74: 1.639951833 | Q74: 4.305976651 | R74: 5685.5 | S74: 3199.8 | T74: 8829.8 | U74: 4271.9 | V74: 16301.5 | W74: 37693.7 | X74: 2869 | Y74: 8298.4 | Z74: 473.1 | AA74: 7876.4 | AB74: 20.3 | AC74: 57739 | AD74: 6689.8 | AE74: 5349.9 | AF74: 7688.1 | AG74: 2367.1 | AH74: 287.5 | AI74: 14987.4 | AJ74: 8608.8 | AK74: 801.3 | AL74: 3825.1 | AM74: 258.7 | AN74: 100435.1 | AP74: 4.68 | AQ74: 7.44 | AR74: 5.52 | AS74: 12.84 | AT74: 6.36 | AU74: 16.2 | AV74: 5.4 | AW74: 18.84
A75: 2011-05-01 | B75: 47315.03892 | C75: 10061.32488 | D75: 20375.73539 | E75: 6969.563642 | F75: 84721.66284 | G75: 27.31975229 | K75: 8.658781184 | N75: 1.628783103 | Q75: 4.16 | R75: 5966.3 | S75: 3250.6 | T75: 8952.6 | U75: 4376.4 | V75: 16579.6 | W75: 38275.7 | X75: 2878.3 | Y75: 8297.7 | Z75: 490.6 | AA75: 7890.4 | AB75: 22.6 | AC75: 58608.9 | AD75: 6778.7 | AE75: 5639.5 | AF75: 7823.7 | AG75: 2166.5 | AH75: 268.1 | AI75: 15081.7 | AJ75: 8691.3 | AK75: 811.3 | AL75: 3977.4 | AM75: 263.5 | AN75: 101628.8 | AP75: 5.4 | AQ75: 7.8 | AR75: 6 | AS75: 12.48 | AT75: 6.48 | AU75: 15.36 | AV75: 4.8 | AW75: 18.48
A76: 2011-06-01 | B76: 47636.25474 | C76: 10177.31521 | D76: 20615.75739 | E76: 6805.410625 | F76: 85234.73796 | G76: 26.94085067 | K76: 9.099138038 | N76: 1.775944227 | Q76: 4.13 | R76: 5832.1 | S76: 3289.4 | T76: 9209.6 | U76: 4208 | V76: 16707 | W76: 39544.8 | X76: 2918.6 | Y76: 7394.5 | Z76: 495.5 | AA76: 6916.6 | AB76: 24.5 | AC76: 60119.3 | AD76: 6771.4 | AE76: 5987.1 | AF76: 7918.3 | AG76: 2094.7 | AH76: 291.5 | AI76: 15310.3 | AJ76: 8611.6 | AK76: 809.6 | AL76: 3903.5 | AM76: 266.5 | AN76: 103743.8 | AP76: 5.64 | AQ76: 9 | AR76: 6 | AS76: 12.36 | AT76: 5.76 | AU76: 17.4 | AV76: 4.08 | AW76: 16.8
A77: 2011-07-01 | B77: 47794.15562 | C77: 10296.95643 | D77: 20800.21688 | E77: 6964.254449 | F77: 85855.58338 | G77: 27.43814138 | K77: 9.480908349 | N77: 1.786425558 | Q77: 4.13 | R77: 5952.7 | S77: 3288.1 | T77: 8868.8 | U77: 4141.8 | V77: 16298.7 | W77: 41096.3 | X77: 2933.6 | Y77: 7167.1 | Z77: 495.3 | AA77: 6714.7 | AB77: 24.5 | AC77: 61251.8 | AD77: 6721.3 | AE77: 6584.2 | AF77: 8194.4 | AG77: 2143.8 | AH77: 309.3 | AI77: 15470 | AJ77: 8258.5 | AK77: 797.9 | AL77: 3848.4 | AM77: 277.8 | AN77: 105605 | AP77: 5.76 | AQ77: 9 | AR77: 6.12 | AS77: 12.96 | AT77: 6.6 | AU77: 18.24 | AW77: 17.64
A78: 2011-08-01 | B78: 48232.4719 | C78: 10469.93113 | D78: 20972.75349 | E78: 7219.442139 | F78: 86894.59866 | G78: 27.68 | K78: 9.61 | N78: 1.75 | Q78: 4.17 | R78: 5765.9 | S78: 3274.4 | T78: 8970.5 | U78: 4287.1 | V78: 16532 | W78: 42222.3 | X78: 2935.5 | Y78: 7212 | Z78: 492.2 | AA78: 7003.4 | AB78: 25.8 | AC78: 62364.8 | AD78: 6753.7 | AE78: 6997.6 | AF78: 8654.4 | AG78: 2182.8 | AH78: 301.6 | AI78: 15484.9 | AJ78: 7832 | AK78: 772.6 | AL78: 3849.3 | AM78: 297.5 | AN78: 107197.6 | AP78: 5.64 | AQ78: 9.84 | AR78: 5.88 | AS78: 12.36 | AT78: 6.24 | AU78: 18.48 | AV78: 5.16 | AW78: 20.28
A79: 2011-09-01 | B79: 49463.90602 | C79: 10567.06338 | D79: 21138.08055 | E79: 8180.102422 | F79: 89349.15237 | G79: 28.74 | K79: 9.3 | N79: 1.81 | Q79: 4.17 | R79: 5933 | S79: 3394 | T79: 8784 | U79: 4634 | V79: 16812 | W79: 42201 | X79: 2964 | Y79: 8283 | Z79: 497 | AA79: 8111 | AB79: 28 | AC79: 62618 | AD79: 7003 | AE79: 7895 | AF79: 9054 | AG79: 2287 | AH79: 310 | AI79: 15541 | AJ79: 7565 | AK79: 744 | AL79: 4006 | AM79: 313 | AN79: 108698 | AP79: 5.52 | AQ79: 9.72 | AR79: 5.64 | AS79: 13.08 | AT79: 5.76 | AU79: 18.12 | AV79: 7.2 | AW79: 18.6
A80: 2011-10-01 | B80: 50153.98998 | C80: 10687.71499 | D80: 21334.41147 | E80: 7741.481012 | F80: 89917.59745 | G80: 27.73 | K80: 9.59 | N80: 2.02 | Q80: 4.11 | R80: 6166.1 | S80: 3402.2 | T80: 9055.4 | U80: 4460.5 | V80: 16918.1 | W80: 44800 | X80: 2979.3 | Y80: 9587.2 | Z80: 498.9 | AA80: 9319.3 | AB80: 28.9 | AC80: 65435.3 | AD80: 7200.1 | AE80: 8930.2 | AF80: 9495.6 | AG80: 2069.4 | AH80: 305.8 | AI80: 15692 | AJ80: 7494.7 | AK80: 738.2 | AL80: 4041 | AM80: 313.7 | AN80: 113006.6 | AP80: 5.52 | AQ80: 9.72 | AR80: 5.76 | AS80: 13.2 | AT80: 5.76 | AU80: 15.12 | AV80: 7.2 | AW80: 20.16
A81: 2011-11-01 | B81: 50977.5773 | C81: 10939.562 | D81: 21601.08746 | E81: 8058.723701 | F81: 91576.95046 | G81: 26.96 | K81: 9.5 | N81: 2.22 | Q81: 4.15 | R81: 6145.2 | S81: 3458.7 | T81: 9223.1 | U81: 4124.6 | V81: 16806.4 | W81: 45475.5 | X81: 2990.1 | Y81: 9160.3 | Z81: 497.2 | AA81: 8943.5 | AB81: 26.9 | AC81: 65959.1 | AD81: 7154.2 | AE81: 9203.3 | AF81: 9532.5 | AG81: 2115.2 | AH81: 288.5 | AI81: 15880.1 | AJ81: 7413.4 | AK81: 734.9 | AL81: 3852.4 | AM81: 308.3 | AN81: 114120.5 | AP81: 5.76 | AQ81: 9.96 | AR81: 5.88 | AS81: 12 | AT81: 6 | AU81: 18.48 | AW81: 19.2
A82: 2011-12-01 | B82: 51805.62433 | C82: 11054.38578 | D82: 21895.70707 | E82: 7604.47151 | F82: 92360.1887 | G82: 27.48 | K82: 9.28 | N82: 2.75 | Q82: 4.26 | R82: 6719.6 | S82: 3646.9 | T82: 9807.7 | U82: 4554.5 | V82: 18009.1 | W82: 45170.4 | X82: 2984.7 | Y82: 9215.7 | Z82: 500.5 | AA82: 8903.9 | AB82: 32.5 | AC82: 66944 | AD82: 7085.4 | AE82: 8929.3 | AF82: 9719.2 | AG82: 2093.8 | AH82: 275.9 | AI82: 16073.8 | AJ82: 7228.7 | AK82: 724.2 | AL82: 3769 | AM82: 307.1 | AN82: 114998.2 | AP82: 6.24 | AQ82: 10.2 | AR82: 6.12 | AS82: 11.4 | AT82: 6.36 | AU82: 17.88 | AV82: 7.2 | AW82: 15.12
A83: 2012-01-01 | B83: 52322.87588 | C83: 11155.81596 | D83: 22101.95932 | E83: 7054.350622 | F83: 92635.00178 | G83: 28.04 | K83: 9.39 | N83: 2.7 | Q83: 4.33 | R83: 6524.376273 | S83: 3635.929 | T83: 9930.899 | U83: 4621.485 | V83: 18188.313 | W83: 46461.466 | X83: 2999.076 | Y83: 9465.568166 | Z83: 504.8856531 | AA83: 9013.687266 | AB83: 31.25266642 | AC83: 68574.36889 | AD83: 7411.18 | AE83: 9154.34 | AF83: 9900.314 | AG83: 2343.864 | AH83: 274.5804445 | AI83: 16247.2624 | AJ83: 7250.24569 | AK83: 726.9968395 | AL83: 3788.633171 | AM83: 306.5393002 | AN83: 117787.9798 | AP83: 5.52 | AQ83: 9.84 | AR83: 5.52 | AS83: 11.4 | AT83: 6 | AU83: 16.2 | AV83: 7.2 | AW83: 19.8
A84: 2012-02-01 | B84: 52673.6117 | C84: 11252.14866 | D84: 22284.89276 | E84: 7154.813511 | F84: 93365.46664 | G84: 29.81 | K84: 9.46 | N84: 2.5 | Q84: 4.32 | R84: 6450.647476 | S84: 3661.118 | T84: 9719.267 | U84: 4355.706 | V84: 17736.091 | W84: 46117.076 | X84: 3013.262 | Y84: 8673.488747 | Z84: 508.5559775 | AA84: 8474.064081 | AB84: 25.02642235 | AC84: 67549.38322 | AD84: 7310.31 | AE84: 9648.501 | AF84: 9776.472 | AG84: 2434.177 | AH84: 292.4436995 | AI84: 16327.44581 | AJ84: 7455.653888 | AK84: 737.8202715 | AL84: 3820.738686 | AM84: 307.7448068 | AN84: 117403.7234 | AP84: 5.28 | AQ84: 9.48 | AR84: 5.52 | AS84: 12.6 | AT84: 6 | AU84: 20.64 | AW84: 19.8
A85: 2012-03-01 | B85: 53657.9767 | C85: 11401.10618 | D85: 22517.07119 | E85: 7478.101969 | F85: 95054.25604 | G85: 27.97 | K85: 9.33 | N85: 2.34 | Q85: 4.29 | R85: 6446.219045 | S85: 3643.521 | T85: 9836.87 | U85: 4382.993 | V85: 17863.384 | W85: 47096.806 | X85: 3033.127 | Y85: 8949.593973 | Z85: 512.6323701 | AA85: 8924.821379 | AB85: 27.11221645 | AC85: 68503.60975 | AD85: 7483.0155 | AE85: 9818.9 | AF85: 9856.851 | AG85: 2226.57 | AH85: 284.5983425 | AI85: 16388.61157 | AJ85: 7646.173202 | AK85: 744.4243595 | AL85: 3827.311799 | AM85: 304.3709199 | AN85: 118821.071 | AP85: 5.64 | AQ85: 9.72 | AR85: 6 | AS85: 13.08 | AT85: 6.36 | AU85: 18.24 | AV85: 5.4 | AW85: 14.28
A86: 2012-04-01 | B86: 54225.70622 | C86: 11503.0073 | D86: 22710.35047 | E86: 7703.082728 | F86: 96142.14671 | G86: 28.97 | K86: 9.84 | N86: 2.45 | Q86: 4.37 | R86: 6517.71905 | S86: 3684.829 | T86: 10087.196 | U86: 4497.788 | V86: 18269.813 | W86: 48143.584 | X86: 3062.04 | Y86: 9762.353286 | Z86: 487.3684326 | AA86: 9732.622863 | AB86: 27.6982611 | AC86: 69964.83759 | AD86: 7598.71 | AE86: 9889.01 | AF86: 9909.42 | AG86: 2090.987 | AH86: 265.141608 | AI86: 16544.29128 | AJ86: 7667.674436 | AK86: 742.749658 | AL86: 3734.188049 | AM86: 303.2681857 | AN86: 120635.3653 | AP86: 5.76 | AQ86: 10.56 | AR86: 6.12 | AS86: 14.4 | AT86: 6.6 | AU86: 18.12 | AV86: 10.08 | AW86: 17.88
A87: 2012-05-01 | B87: 55406.60762 | C87: 11567.54168 | D87: 22885.51588 | E87: 8574.771491 | F87: 98434.43667 | G87: 27.93154458 | K87: 9.969018526 | N87: 2.294966394 | Q87: 4.35 | R87: 6701.867762 | S87: 3749.783 | T87: 10280.134 | U87: 4708.899 | V87: 18738.816 | W87: 49058.965 | X87: 3097.427 | Y87: 9235.778367 | Z87: 504.2732878 | AA87: 9363.780161 | AB87: 26.88665777 | AC87: 71244.59284 | AD87: 7710.342 | AE87: 9929.83 | AF87: 9936.47 | AG87: 2022.715 | AH87: 262.152711 | AI87: 16678.41451 | AJ87: 7515.817497 | AK87: 733.5375985 | AL87: 3705.101962 | AM87: 309.9081552 | AN87: 122018.862 | AP87: 5.76 | AQ87: 10.2 | AR87: 6 | AS87: 14.04 | AT87: 6.6 | AU87: 17.16 | AV87: 6.6 | AW87: 16.92
A88: 2012-06-01 | B88: 56105.20379 | C88: 11645.66512 | D88: 23083.91106 | E88: 8315.527406 | F88: 99150.30737 | G88: 28.01329261 | K88: 9.44907718 | N88: 2.369475938 | Q88: 4.3 | R88: 6716.810095 | S88: 3788.317 | T88: 10176.674 | U88: 4465.405 | V88: 18430.396 | W88: 49244.899 | X88: 3194.396 | Y88: 9427.956582 | Z88: 556.3529885 | AA88: 9386.651616 | AB88: 28.49766907 | AC88: 71438.85129 | AD88: 7623.736 | AE88: 9811.431 | AF88: 9962.13 | AG88: 1941.626 | AH88: 257.99859 | AI88: 16623.34841 | AJ88: 7352.503433 | AK88: 726.6149785 | AL88: 3749.466706 | AM88: 313.6095991 | AN88: 121675.1634 | AP88: 5.76 | AQ88: 10.44 | AR88: 6.12 | AS88: 13.56 | AT88: 6.6 | AU88: 18.96 | AV88: 6.24 | AW88: 13.8
A89: 2012-07-01 | B89: 56089.79431 | C89: 11737.52164 | D89: 23172.72478 | E89: 8120.903272 | F89: 99120.944 | G89: 28.00703443 | K89: 9.428934698 | N89: 2.177293478 | Q89: 4.35 | R89: 6829.8286 | S89: 3821.878 | T89: 10165.996 | U89: 4351.944 | V89: 18339.818 | W89: 50367.881 | X89: 3162.57 | Y89: 9877.499887 | Z89: 553.9071786 | AA89: 9748.931484 | AB89: 31.04231781 | AC89: 72521.70226 | AD89: 7475.79 | AE89: 9741.712 | AF89: 10014.9 | AG89: 1825.82 | AH89: 220.0447975 | AI89: 16529.92883 | AJ89: 7132.421692 | AK89: 724.731136 | AL89: 3630.028803 | AM89: 313.6193411 | AN89: 122243.4026 | AP89: 5.52 | AQ89: 8.64 | AR89: 5.76 | AS89: 14.04 | AT89: 6.36 | AU89: 20.16 | AV89: 6 | AW89: 17.28
A90: 2012-08-01 | B90: 56120.19828 | C90: 11899.88833 | D90: 23334.95977 | E90: 8380.348146 | F90: 99735.39453 | G90: 27.72897033 | K90: 9.643124618 | N90: 1.778553408 | Q90: 4.27 | R90: 6675.824318 | S90: 3815.609 | T90: 9790.391 | U90: 4202.11 | V90: 17808.11 | W90: 49612.987 | X90: 3214.391 | Y90: 10180.12029 | Z90: 553.1805573 | AA90: 10304.64565 | AB90: 32.95418359 | AC90: 71031.18901 | AD90: 7291.74 | AE90: 10120.03029 | AF90: 10066.56 | AG90: 1844.4 | AH90: 178.745237 | AI90: 16537.1986 | AJ90: 7014.604048 | AK90: 721.011687 | AL90: 3644.445461 | AM90: 313.903513 | AN90: 120847.1299 | AP90: 5.52 | AQ90: 9.72 | AR90: 5.52 | AS90: 14.52 | AT90: 6.36 | AU90: 20.4 | AV90: 6.24 | AW90: 18.12
A91: 2012-09-01 | B91: 56659.48563 | C91: 11974.53444 | D91: 23502.78464 | E91: 8206.639969 | F91: 100343.4447 | G91: 28.48198197 | K91: 9.53469323 | N91: 1.795980594 | Q91: 4.31 | R91: 7014.227353 | S91: 4002.335 | T91: 9962.572 | U91: 4673.83 | V91: 18638.737 | W91: 49060.187 | X91: 3165.861 | Y91: 10011.32435 | Z91: 552.172394 | AA91: 10183.06897 | AB91: 30.06356434 | AC91: 71215.14921 | AD91: 7141.35 | AE91: 10073.174 | AF91: 10202.66 | AG91: 1796.84 | AH91: 176.096407 | AI91: 16526.57696 | AJ91: 7102.991203 | AK91: 725.1906475 | AL91: 3668.740828 | AM91: 315.8669362 | AN91: 120975.4207 | AP91: 5.64 | AQ91: 9.36 | AR91: 5.88 | AS91: 13.68 | AT91: 6.48 | AU91: 23.04 | AV91: 6.24 | AW91: 18.6
A92: 2012-10-01 | B92: 57336.54197 | C92: 12103.43232 | D92: 23791.32161 | E92: 8151.998943 | F92: 101383.2948 | G92: 27.42840714 | K92: 9.428074432 | N92: 1.806457925 | Q92: 4.34 | R92: 6918.429 | S92: 3917.452 | T92: 9823.225 | U92: 4572.12 | V92: 18312.797 | W92: 49858.524 | X92: 3183.35 | Y92: 10090.47875 | Z92: 535.0446437 | AA92: 10133.0429 | AB92: 27.22417828 | AC92: 71819.92731 | AD92: 7301.2 | AE92: 10228.42 | AF92: 10347.36 | AG92: 1551.78 | AH92: 181.2706465 | AI92: 16438.67503 | AJ92: 7231.505002 | AK92: 732.3382395 | AL92: 3768.891909 | AM92: 315.7486086 | AN92: 121747.8357 | AP92: 5.76 | AQ92: 9.36 | AR92: 6.12 | AS92: 13.68 | AT92: 6.6 | AU92: 18.96 | AV92: 6.72 | AW92: 18.72
A93: 2012-11-01 | B93: 58331.72409 | C93: 12245.00659 | D93: 24113.22909 | E93: 8170.370977 | F93: 102860.3307 | G93: 25.90477067 | K93: 9.191525358 | N93: 1.992071979 | Q93: 4.34 | R93: 7052.075 | S93: 3957.408 | T93: 9969.626 | U93: 4345 | V93: 18272.034 | W93: 49658.112 | X93: 3196.913 | Y93: 11169.68116 | Z93: 527.5382424 | AA93: 11179.92304 | AB93: 28.92422472 | AC93: 71615.43113 | AD93: 7697.52 | AE93: 10694.7 | AF93: 10373.4 | AG93: 1419.86 | AH93: 196.574506 | AI93: 16453.53462 | AJ93: 7291.999692 | AK93: 733.36134 | AL93: 3955.957098 | AM93: 310.8083738 | AN93: 122209.6158 | AP93: 5.64 | AQ93: 8.88 | AR93: 6.12 | AS93: 14.16 | AT93: 6.6 | AU93: 19.44 | AV93: 5.88 | AW93: 15.96
A94: 2012-12-01 | B94: 59124.13789 | C94: 12332.83773 | D94: 24293.66394 | E94: 8052.019987 | F94: 103802.6595 | G94: 25.65805527 | K94: 8.938005482 | N94: 1.93347586 | Q94: 4.38 | R94: 7659.542 | S94: 4199.081 | T94: 10634.747 | U94: 4764.588 | V94: 19598.416 | W94: 48631.315 | X94: 3189.679 | Y94: 10935.48089 | Z94: 523.7141161 | AA94: 10835.85506 | AB94: 26.46338428 | AC94: 72016.28657 | AD94: 8068.6 | AE94: 9420.48 | AF94: 10453.84 | AG94: 1490.72 | AH94: 209.4110235 | AI94: 16610.99121 | AJ94: 7217.612406 | AK94: 736.3422055 | AL94: 3745.45057 | AM94: 306.9823773 | AN94: 122171.8505 | AP94: 5.88 | AQ94: 9.24 | AR94: 6.12 | AS94: 12.96 | AT94: 6.72 | AU94: 21.36 | AV94: 6 | AW94: 16.8
A95: 2013-01-01 | B95: 59058.49436 | C95: 12430.11316 | D95: 24441.38699 | E95: 7941.889052 | F95: 103871.8836 | G95: 25.89170233 | H95: 34.27667985 | I95: 17.8792415 | J95: 35.48727809 | K95: 9.311266328 | L95: 7.93454902 | M95: 13.88597558 | N95: 1.871029095 | O95: 1.599260577 | P95: 2.142317947 | Q95: 4.43 | R95: 7586.608409 | S95: 4180.455 | T95: 10934.297 | U95: 4998.801 | V95: 20113.553 | W95: 49943.276 | X95: 3186.914 | Y95: 9935.896277 | Z95: 524.6539743 | AA95: 9749.685055 | AB95: 26.63459876 | AC95: 73927.9736 | AD95: 8082.71 | AE95: 9113.26 | AF95: 11068.03 | AG95: 1478.92 | AH95: 222.8338685 | AI95: 16821.84678 | AJ95: 7191.878636 | AK95: 745.356212 | AL95: 3654.971506 | AM95: 301.0859187 | AN95: 124696.7517 | AP95: 5.52 | AQ95: 8.76 | AR95: 5.52 | AS95: 12.72 | AT95: 6.6 | AU95: 19.56 | AV95: 6.84 | AW95: 17.64
A96: 2013-02-01 | B96: 59462.1138 | C96: 12490.05634 | D96: 24646.68703 | E96: 8031.979076 | F96: 104630.8362 | G96: 26.68675123 | H96: 35.73798421 | I96: 18.0116299 | J96: 36.97620387 | K96: 9.676705484 | L96: 8.747926564 | M96: 12.84107908 | N96: 1.841396797 | O96: 1.520183349 | P96: 2.095366567 | Q96: 4.52 | R96: 7432.5704 | S96: 4212.295208 | T96: 10693.768 | U96: 4729.77855 | V96: 19635.84176 | W96: 50246.544 | X96: 3193.579 | Y96: 9192.13919 | Z96: 530.6521215 | AA96: 9063.626735 | AB96: 30.35186009 | AC96: 73704.77747 | AD96: 8002.754 | AE96: 9729.96 | AF96: 11053.27 | AG96: 1450.55 | AH96: 231.037621 | AI96: 16932.29529 | AJ96: 7304.973782 | AK96: 754.293234 | AL96: 3768.253393 | AM96: 299.3039784 | AN96: 125096.354 | AP96: 5.28 | AQ96: 9.6 | AR96: 5.4 | AS96: 14.16 | AT96: 5.64 | AU96: 23.28 | AV96: 5.76 | AW96: 17.64
A97: 2013-03-01 | B97: 59953.77853 | C97: 12643.4891 | D97: 24884.62805 | E97: 8215.005209 | F97: 105696.9009 | G97: 26.56176715 | H97: 26.1732683 | I97: 15.95679296 | J97: 35.53668681 | K97: 9.285254494 | L97: 6.842489207 | M97: 10.99320885 | N97: 1.721195408 | O97: 1.453641926 | P97: 2.050779484 | Q97: 4.53 | R97: 7537.5744 | S97: 4204.371923 | T97: 10800.172 | U97: 4921.77945 | V97: 19926.32337 | W97: 51363.183 | X97: 3214.194 | Y97: 9313.492355 | Z97: 540.2446586 | AA97: 9174.924468 | AB97: 30.67166512 | AC97: 75151.84125 | AD97: 8012.34 | AE97: 9597.14 | AF97: 11168.83 | AG97: 1527.664 | AH97: 218.2914475 | AI97: 16967.06351 | AJ97: 7442.963225 | AK97: 760.2649925 | AL97: 3687.849685 | AM97: 302.6438966 | AN97: 126855.9048 | AP97: 5.28 | AQ97: 9 | AR97: 5.4 | AS97: 14.16 | AT97: 6 | AU97: 23.28 | AV97: 5.52 | AW97: 16.92
A98: 2013-04-01 | B98: 60066.75263 | C98: 12768.33474 | D98: 25126.47963 | E98: 8447.866076 | F98: 106409.4331 | G98: 25.74 | H98: 25.09990968 | I98: 16.21847419 | J98: 35.47639022 | K98: 9.22 | L98: 7.153719351 | M98: 11.11862966 | N98: 1.52 | O98: 1.276649063 | P98: 1.887655636 | Q98: 4.53 | R98: 7364.748773 | S98: 4208.288 | T98: 10876 | U98: 4907.674 | V98: 19991.962 | W98: 52377.928 | X98: 3241.144 | Y98: 10557.86644 | Z98: 545.5120548 | AA98: 10287.60457 | AB98: 30.5164186 | AC98: 76396.29151 | AD98: 8184.93 | AE98: 10276.59 | AF98: 11433.98 | AG98: 1333.83 | AH98: 212.920044 | AI98: 17134.2639 | AJ98: 7462.843477 | AK98: 764.0567085 | AL98: 3893.433591 | AM98: 312.8101646 | AN98: 128993.4619 | AP98: 4.92 | AQ98: 9.12 | AR98: 5.04 | AS98: 13.8 | AT98: 5.76 | AU98: 22.08 | AV98: 5.28 | AW98: 16.44
A99: 2013-05-01 | B99: 60844.64044 | C99: 12814.39697 | D99: 25239.42067 | E99: 9149.131648 | F99: 108047.5897 | G99: 26.62 | H99: 27.21457188 | I99: 16.35023127 | J99: 35.79288413 | K99: 9.13 | L99: 7.092409215 | M99: 10.89278011 | N99: 1.44 | O99: 1.165245712 | P99: 1.983332412 | Q99: 4.51 | R99: 7436.335619 | S99: 4336.638 | T99: 11106.963 | U99: 4926.933 | V99: 20370.534 | W99: 53405.278 | X99: 3267.82 | Y99: 12144.49614 | Z99: 548.2430393 | AA99: 11585.0931 | AB99: 31.77693609 | AC99: 78119.50114 | AD99: 8517.53 | AE99: 10687.8 | AF99: 11865.38 | AG99: 1390.55 | AH99: 216.2504905 | AI99: 17265.9813 | AJ99: 7487.394721 | AK99: 770.9913175 | AL99: 4156.63852 | AM99: 325.0270946 | AN99: 131839.7134 | AP99: 4.8 | AQ99: 9.24 | AR99: 5.04 | AS99: 13.2 | AT99: 5.52 | AU99: 22.08 | AV99: 5.4 | AW99: 16.2
A100: 2013-06-01 | B100: 61379.84658 | C100: 12885.66427 | D100: 25410.53529 | E100: 9282.431959 | F100: 108958.4781 | G100: 26.36 | H100: 28.0228127 | I100: 15.95695295 | J100: 36.18346076 | K100: 9.036 | L100: 7.004507965 | M100: 11.06908942 | N100: 1.43 | O100: 1.159442062 | P100: 1.883987212 | Q100: 4.45 | R100: 7677.1089 | S100: 4335.136 | T100: 11191.653 | U100: 5247.197 | V100: 20773.986 | W100: 53886.968 | X100: 3297.049 | Y100: 11437.07152 | Z100: 559.5195715 | AA100: 10854.71345 | AB100: 37.98757357 | AC100: 79061.89307 | AD100: 8809.85 | AE100: 10366.28 | AF100: 12198.08 | AG100: 1288.87 | AH100: 212.1981955 | AI100: 17235.91085 | AJ100: 7489.206983 | AK100: 769.0622315 | AL100: 3962.033876 | AM100: 327.9308469 | AN100: 133141.3866 | AP100: 5.04 | AQ100: 9 | AR100: 5.16 | AS100: 13.32 | AT100: 5.4 | AU100: 19.68 | AV100: 5.64 | AW100: 15.48
A101: 2013-07-01 | B101: 61638.65262 | C101: 12968.27827 | D101: 25677.00684 | E101: 9555.318032 | F101: 109839.2558 | G101: 26.99 | H101: 28.25178952 | I101: 16.27740703 | J101: 36.1954457 | K101: 9.22 | L101: 7.236011947 | M101: 11.11571504 | N101: 1.48 | O101: 1.282517037 | P101: 1.792275279 | Q101: 4.46 | R101: 7727.267 | S101: 4346.928 | T101: 11227.863 | U101: 5273.95155 | V101: 20848.74255 | W101: 54335.132 | X101: 3317.72 | Y101: 10500.76447 | Z101: 559.2739151 | AA101: 9960.011141 | AB101: 41.1508482 | AC101: 79560.47095 | AD101: 9258.087691 | AE101: 10551.92 | AF101: 12470.28 | AG101: 1115.013 | AH101: 180.996845 | AI101: 17073.43242 | AJ101: 7512.896635 | AK101: 766.4512335 | AL101: 3859.395454 | AM101: 326.9726766 | AN101: 134303.1806 | AP101: 5.16 | AQ101: 9 | AR101: 5.28 | AS101: 13.08 | AT101: 5.52 | AU101: 23.52 | AV101: 5.76 | AW101: 15.72
A102: 2013-08-01 | B102: 62324.26529 | C102: 13121.27123 | D102: 25931.97845 | E102: 9463.472032 | F102: 110840.987 | G102: 27.4107645 | H102: 31.8469198 | I102: 15.59156267 | J102: 35.90296594 | K102: 8.896549356 | L102: 7.125036704 | M102: 10.66653508 | N102: 1.682150506 | O102: 1.520400806 | P102: 1.879668396 | Q102: 4.49 | R102: 7587.377857 | S102: 4303.226 | T102: 11050.959 | U102: 5090.722 | V102: 20444.907 | W102: 55066.114 | X102: 3334.85 | Y102: 11598.58671 | Z102: 546.0747603 | AA102: 10964.77422 | AB102: 41.31202009 | AC102: 79984.44623 | AD102: 9605.48 | AE102: 10931 | AF102: 12812.89 | AG102: 1136.63 | AH102: 150.166041 | AI102: 17682.20253 | AJ102: 7572.596565 | AK102: 764.6164465 | AL102: 4068.42109 | AM102: 330.7036872 | AN102: 136240.903 | AP102: 5.16 | AQ102: 8.64 | AR102: 5.28 | AS102: 12.6 | AT102: 5.4 | AU102: 21.6 | AV102: 5.52 | AW102: 19.08
A103: 2013-09-01 | B103: 62676.91915 | C103: 13184.39819 | D103: 26179.95204 | E103: 8993.848613 | F103: 111035.118 | G103: 27.45671466 | H103: 31.16532315 | I103: 14.20804883 | J103: 35.70490559 | K103: 9.243501248 | L103: 6.894534037 | M103: 11.02230596 | N103: 1.455340848 | O103: 1.313564134 | P103: 1.769106387 | Q103: 4.37 | R103: 7791.8595 | S103: 4567.361059 | T103: 11064.549 | U103: 5471.93485 | V103: 21103.84491 | W103: 54939.826 | X103: 3349.022 | Y103: 11510.73919 | Z103: 535.1759542 | AA103: 10994.72555 | AB103: 42.32748438 | AC103: 80401.55501 | AD103: 9548.106836 | AE103: 11082.25962 | AF103: 13067.57579 | AG103: 1143.596 | AH103: 149.3244355 | AI103: 18101.05445 | AJ103: 7573.975943 | AK103: 766.228913 | AL103: 4111.744204 | AM103: 335.8508904 | AN103: 137386.0819 | AP103: 5.16 | AQ103: 8.88 | AR103: 5.4 | AS103: 12.6 | AT103: 5.52 | AU103: 19.56 | AV103: 5.76 | AW103: 19.2
A104: 2013-10-01 | B104: 63074.79261 | C104: 13343.26479 | D104: 26484.3399 | E104: 8901.431467 | F104: 111803.8288 | G104: 26.86396937 | H104: 29.72890335 | I104: 15.76672794 | J104: 35.53734965 | K104: 8.81718567 | L104: 7.188372445 | M104: 10.17488585 | N104: 1.668779538 | O104: 1.563421632 | P104: 1.790576668 | Q104: 4.39 | R104: 7635.905455 | S104: 4493.905032 | T104: 10919.863 | U104: 4986.88995 | V104: 20400.65798 | W104: 55245.916 | X104: 3357.605 | Y104: 11653.90572 | Z104: 529.9913844 | AA104: 11357.64865 | AB104: 41.32336756 | AC104: 79789.10407 | AD104: 9431.419289 | AE104: 11107.27955 | AF104: 13407.93987 | AG104: 1069.69 | AH104: 156.883451 | AI104: 17907.50132 | AJ104: 7753.710809 | AK104: 782.2287705 | AL104: 4182.943859 | AM104: 336.8951318 | AN104: 136885.9181 | AP104: 5.04 | AQ104: 8.4 | AR104: 5.28 | AS104: 14.04 | AT104: 5.4 | AU104: 20.28 | AV104: 5.88 | AW104: 17.4
A105: 2013-11-01 | B105: 64440.73641 | C105: 13519.49553 | D105: 26713.22542 | E105: 9170.427671 | F105: 113843.885 | G105: 26.78323487 | H105: 29.49860398 | I105: 15.57987518 | J105: 35.35546024 | K105: 8.891373155 | L105: 6.638980796 | M105: 11.09109851 | N105: 1.571033556 | O105: 1.38616923 | P105: 1.815295578 | Q105: 4.36 | R105: 7725.14125 | S105: 4490.232432 | T105: 11086.464 | U105: 5226.5157 | V105: 20803.21213 | W105: 55808.555 | X105: 3356.135 | Y105: 12862.89014 | Z105: 529.3123544 | AA105: 12542.64111 | AB105: 42.82159088 | AC105: 80774.64192 | AD105: 9543.293333 | AE105: 11320.06271 | AF105: 13232.23039 | AG105: 1080.914 | AH105: 167.3743365 | AI105: 17938.02726 | AJ105: 8086.671622 | AK105: 793.356855 | AL105: 4540.55608 | AM105: 334.2636581 | AN105: 138061.7527 | AP105: 4.68 | AQ105: 8.4 | AR105: 4.8 | AS105: 13.08 | AT105: 4.92 | AU105: 21.96 | AV105: 5.88 | AW105: 18.48
A106: 2013-12-01 | B106: 64939.08873 | C106: 13615.16979 | D106: 27049.08633 | E106: 8667.500302 | F106: 114270.8452 | G106: 26.06178523 | H106: 26.89588421 | I106: 15.98790361 | J106: 34.3783696 | K106: 8.345716183 | L106: 6.439636052 | M106: 10.43775091 | N106: 1.648652681 | O106: 1.512873937 | P106: 1.851940651 | Q106: 4.36 | R106: 8296.81585 | S106: 4693.221 | T106: 12019.099 | U106: 5399.573 | V106: 22111.893 | W106: 56209.397 | X106: 3345.568 | Y106: 12513.921 | Z106: 533.9515013 | AA106: 11940.18806 | AB106: 41.97109907 | AC106: 82732.57134 | AD106: 9628.805 | AE106: 10362.365 | AF106: 13167.667 | AG106: 993.772 | AH106: 176.2998985 | AI106: 17974.28425 | AJ106: 8280.124362 | AK106: 796.0142885 | AL106: 4638.750146 | AM106: 329.4559565 | AN106: 139143.697 | AP106: 4.56 | AQ106: 8.64 | AR106: 4.8 | AS106: 11.76 | AT106: 5.16 | AU106: 17.4 | AV106: 5.88 | AW106: 17.16
A107: 2014-01-01 | B107: 65565.12998 | C107: 13773.69532 | D107: 27428.24566 | E107: 8975.018932 | F107: 115742.0899 | G107: 26.41203171 | H107: 28.03434594 | I107: 16.7833403 | J107: 33.01531304 | K107: 8.569147046 | L107: 6.420185374 | M107: 10.8156621 | N107: 1.978356908 | O107: 2.025388041 | P107: 1.940902591 | Q107: 4.32 | R107: 8057.889727 | S107: 4742.973 | T107: 11973.105 | U107: 5637.6747 | V107: 22353.7527 | W107: 56630.869 | X107: 3353.626 | Y107: 12347.78139 | Z107: 547.0896768 | AA107: 11691.02381 | AB107: 39.21578027 | AC107: 83502.87917 | AD107: 9790.473023 | AE107: 9793.545999 | AF107: 12909.16561 | AG107: 900.929 | AH107: 186.3517275 | AI107: 18178.54595 | AJ107: 8505.93544 | AK107: 795.096631 | AL107: 4766.21681 | AM107: 335.5088718 | AN107: 139461.1969 | AP107: 4.44 | AQ107: 8.16 | AR107: 4.56 | AS107: 12 | AT107: 4.8 | AU107: 20.28 | AW107: 19.8
A108: 2014-02-01 | B108: 65694.84556 | C108: 13843.87441 | D108: 27727.26189 | E108: 9020.470008 | F108: 116286.4519 | G108: 26.87080758 | H108: 28.29896601 | I108: 16.79207955 | J108: 33.55620875 | K108: 8.528308752 | L108: 6.352000887 | M108: 10.28763581 | N108: 1.57383596 | O108: 1.468512637 | P108: 1.703162163 | Q108: 4.3 | R108: 8099.734 | S108: 4725.875 | T108: 11755.534 | U108: 5626.989 | V108: 22108.398 | W108: 57143.889 | X108: 3372.81 | Y108: 12632.76537 | Z108: 560.3866485 | AA108: 11963.84254 | AB108: 40.67483272 | AC108: 83813.73164 | AD108: 10309.054 | AE108: 10897.807 | AF108: 13093.853 | AG108: 918.096 | AH108: 185.551322 | AI108: 18294.09346 | AJ108: 9002.908458 | AK108: 807.3783305 | AL108: 5185.023621 | AM108: 345.4907124 | AN108: 141791.9589 | AP108: 4.2 | AQ108: 8.88 | AR108: 4.44 | AS108: 12.12 | AT108: 4.68 | AU108: 22.08 | AV108: 3.84 | AW108: 20.76
A109: 2014-03-01 | B109: 65259.35584 | C109: 13964.76669 | D109: 28090.00814 | E109: 8768.749837 | F109: 116082.8805 | G109: 24.53337063 | H109: 25.24597957 | I109: 15.11361428 | J109: 33.84612912 | K109: 8.46797978 | L109: 6.257895578 | M109: 11.37578458 | N109: 1.564573439 | O109: 1.395267708 | P109: 1.849977739 | Q109: 4.3 | R109: 8025.049762 | S109: 4689.072 | T109: 11788.53595 | U109: 5696.043 | V109: 22173.65095 | W109: 56929.96 | X109: 3402.75 | Y109: 11578.96928 | Z109: 566.4482851 | AA109: 10994.503 | AB109: 41.76180738 | AC109: 83615.51371 | AD109: 10474.85406 | AE109: 11101.57014 | AF109: 13085.51921 | AG109: 899.897 | AH109: 176.063963 | AI109: 18296.76718 | AJ109: 9691.970098 | AK109: 823.805222 | AL109: 5466.502569 | AM109: 351.3972886 | AN109: 142348.0607 | AP109: 4.08 | AQ109: 8.04 | AR109: 4.08 | AS109: 12.24 | AT109: 4.32 | AU109: 19.92 | AV109: 3.72 | AW109: 17.88
A110: 2014-04-01 | B110: 65388.11441 | C110: 14089.38533 | D110: 28511.88761 | E110: 9119.93308 | F110: 117109.3204 | G110: 26.12875331 | H110: 27.97035931 | I110: 15.24987607 | J110: 34.28456884 | K110: 8.715940439 | L110: 5.972392193 | M110: 11.07179497 | N110: 1.591543961 | O110: 1.465461082 | P110: 1.769395085 | Q110: 4.25 | R110: 7978.46219 | S110: 4728.2 | T110: 12088.764 | U110: 5782.47075 | V110: 22599.43475 | W110: 56018.82 | X110: 3434.453 | Y110: 11800.63152 | Z110: 570.7383943 | AA110: 11068.40473 | AB110: 41.3690137 | AC110: 83314.30393 | AD110: 10962.51131 | AE110: 11030.3387 | AF110: 13065.09322 | AG110: 877.835 | AH110: 181.6311015 | AI110: 18190.36731 | AJ110: 10463.29905 | AK110: 839.368596 | AL110: 5942.643758 | AM110: 358.3423227 | AN110: 142623.7621 | AP110: 3.96 | AQ110: 8.28 | AR110: 3.96 | AS110: 12.48 | AT110: 4.44 | AU110: 19.56 | AV110: 3.48 | AW110: 20.76
A111: 2014-05-01 | B111: 65766.53499 | C111: 14118.0007 | D111: 28889.13608 | E111: 9037.204993 | F111: 117810.8768 | G111: 27.4277164 | H111: 30.48385889 | I111: 15.47066996 | J111: 34.06119093 | K111: 8.55267382 | L111: 5.799444388 | M111: 11.06936867 | N111: 1.241849286 | O111: 1.021519524 | P111: 1.634081484 | Q111: 4.14 | R111: 8098.402 | S111: 4767.138 | T111: 12064.8789 | U111: 6083.35875 | V111: 22915.37565 | W111: 55231.484 | X111: 3477.185 | Y111: 13061.71361 | Z111: 576.2732831 | AA111: 11996.69826 | AB111: 41.77475914 | AC111: 83223.55852 | AD111: 11531.50484 | AE111: 11528.68108 | AF111: 13402.51535 | AG111: 1226.149 | AH111: 187.930158 | AI111: 18192.79591 | AJ111: 11306.62367 | AK111: 859.1868495 | AL111: 6551.438387 | AM111: 364.9034709 | AN111: 144542.6035 | AP111: 3.96 | AQ111: 7.68 | AR111: 4.08 | AS111: 12.24 | AT111: 4.32 | AU111: 17.16 | AV111: 3.96 | AW111: 22.56
A112: 2014-06-01 | B112: 66168.76429 | C112: 14148.0135 | D112: 29223.80319 | E112: 8734.664857 | F112: 118275.2458 | G112: 26.57843084 | H112: 28.89651144 | I112: 15.22603614 | J112: 33.74564495 | K112: 8.221504819 | L112: 6.196352039 | M112: 9.483493793 | N112: 1.367077825 | O112: 1.187184505 | P112: 1.691484329 | Q112: 3.94 | R112: 8142.111 | S112: 4789.139 | T112: 12204.374 | U112: 6139.63695 | V112: 23133.14995 | W112: 55412.738 | X112: 3525.183 | Y112: 11618.2262 | Z112: 579.2409038 | AA112: 10680.25414 | AB112: 43.95184846 | AC112: 83544.33206 | AD112: 11357.527 | AE112: 11247.935 | AF112: 13809.134 | AG112: 1460.053 | AH112: 182.6638925 | AI112: 18311.78024 | AJ112: 12122.16297 | AK112: 877.422797 | AL112: 6737.742823 | AM112: 368.1484186 | AN112: 145807.1197 | AP112: 3.96 | AQ112: 8.52 | AR112: 4.2 | AS112: 10.44 | AT112: 4.44 | AU112: 14.64 | AV112: 4.68 | AW112: 20.4
A113: 2014-07-01 | B113: 66458.07809 | C113: 14241.05607 | D113: 29476.75781 | E113: 9040.994939 | F113: 119216.8869 | G113: 24.95781361 | H113: 26.02532201 | I113: 15.20294304 | J113: 33.34407026 | K113: 8.05413924 | L113: 5.650626161 | M113: 10.10312255 | N113: 1.239079235 | O113: 1.113607468 | P113: 1.438741359 | Q113: 3.86 | R113: 7977.778 | S113: 4768.593 | T113: 12185.322 | U113: 5976.36857 | V113: 22930.28357 | W113: 56971.68 | X113: 3583.246 | Y113: 10195.74389 | Z113: 578.5772415 | AA113: 9364.251398 | AB113: 47.35186328 | AC113: 84847.92744 | AD113: 11362.42308 | AE113: 10767.75051 | AF113: 14046.02238 | AG113: 1050.223 | AH113: 173.867798 | AI113: 18397.32063 | AJ113: 12841.64171 | AK113: 902.9998345 | AL113: 6913.055369 | AM113: 371.8997311 | AN113: 147105.2213 | AP113: 3.96 | AQ113: 8.16 | AR113: 3.96 | AS113: 11.4 | AT113: 4.32 | AU113: 12.48 | AV113: 3.12 | AW113: 19.68
A114: 2014-08-01 | B114: 67327.85147 | C114: 14354.08587 | D114: 29800.06376 | E114: 9032.480256 | F114: 120514.4814 | G114: 24.73655556 | H114: 26.57138408 | I114: 14.58798265 | J114: 32.94483023 | K114: 7.666713953 | L114: 5.501882205 | M114: 9.110591166 | N114: 1.343040083 | O114: 1.288350727 | P114: 1.411495353 | Q114: 3.67 | R114: 8142.2068 | S114: 4708.005 | T114: 12069.72545 | U114: 5841.779317 | V114: 22619.50977 | W114: 57690.917 | X114: 3557.901 | Y114: 10125.50444 | Z114: 580.9804452 | AA114: 9296.569046 | AB114: 47.31253304 | AC114: 85230.93107 | AD114: 11740.02381 | AE114: 10785.49735 | AF114: 14195.3027 | AG114: 1037.117 | AH114: 158.6078035 | AI114: 18474.57864 | AJ114: 13840.92013 | AK114: 939.1599185 | AL114: 7451.891363 | AM114: 379.3008717 | AN114: 148570.9462 | AP114: 3.6 | AQ114: 7.8 | AR114: 3.6 | AS114: 10.44 | AT114: 3.72 | AU114: 12.72 | AV114: 4.08 | AW114: 19.92
A115: 2014-09-01 | B115: 67730.49743 | C115: 14426.4324 | D115: 30172.77529 | E115: 9044.939628 | F115: 121374.6448 | G115: 24.96235214 | H115: 27.06110737 | I115: 14.38921694 | J115: 32.09789008 | K115: 7.35368009 | L115: 5.264806173 | M115: 8.829024913 | N115: 1.283001929 | O115: 1.051827582 | P115: 1.618740527 | Q115: 3.58 | R115: 8182.405 | S115: 4883.958 | T115: 12248.254 | U115: 6117.601 | V115: 23249.813 | W115: 57448.651 | X115: 3571.933 | Y115: 10315.9784 | Z115: 585.7812696 | AA115: 9567.077671 | AB115: 46.63268591 | AC115: 85558.44632 | AD115: 12239.687 | AE115: 10599.541 | AF115: 14604.149 | AG115: 1108.257 | AH115: 141.705615 | AI115: 18568.04982 | AJ115: 14025.23819 | AK115: 959.4785785 | AL115: 7661.078455 | AM115: 381.3919444 | AN115: 149762.0821 | AP115: 3.48 | AQ115: 7.44 | AR115: 3.36 | AS115: 9.36 | AT115: 3.6 | AU115: 12.12 | AV115: 4.8 | AW115: 20.04
A116: 2014-10-01 | B116: 68033.96448 | C116: 14542.21416 | D116: 30651.80229 | E116: 8692.367348 | F116: 121920.3483 | G116: 24.1403866 | H116: 26.07961216 | I116: 14.47921341 | J116: 31.37556444 | K116: 7.310912419 | L116: 5.321077985 | M116: 8.867297995 | N116: 1.416498521 | O116: 1.224482746 | P116: 1.733216386 | Q116: 3.57 | R116: 8046.06 | S116: 4801.429 | T116: 11947.595 | U116: 6071.595 | V116: 22820.619 | W116: 58071.221 | X116: 3599.472 | Y116: 11948.00488 | Z116: 592.4296304 | AA116: 11080.32581 | AB116: 47.58121715 | AC116: 85903.83949 | AD116: 12176.286 | AE116: 10892.788 | AF116: 14768.473 | AG116: 962.396 | AH116: 139.3263925 | AI116: 18576.10536 | AJ116: 13029.71335 | AK116: 954.715182 | AL116: 7294.574496 | AM116: 380.2610853 | AN116: 149728.8072 | AP116: 3.6 | AQ116: 7.44 | AR116: 3.48 | AS116: 9.12 | AT116: 3.84 | AU116: 15.24 | AV116: 5.16 | AW116: 17.4
A117: 2014-11-01 | B117: 69824.92146 | C117: 14691.02463 | D117: 31194.06084 | E117: 9048.802358 | F117: 124758.8093 | G117: 23.93346914 | H117: 25.5027678 | I117: 14.75867165 | J117: 31.15511293 | K117: 6.898782263 | L117: 5.220469221 | M117: 8.198723638 | N117: 1.512884148 | O117: 1.4029676 | P117: 1.666134546 | Q117: 3.65 | R117: 8346.979 | S117: 4879.197 | T117: 12853.964 | U117: 6228.63675 | V117: 23961.79775 | W117: 59069.761 | X117: 3627.876 | Y117: 12672.88379 | Z117: 596.6191588 | AA117: 11731.43625 | AB117: 47.95572395 | AC117: 88149.54573 | AD117: 12254.16206 | AE117: 10275.04279 | AF117: 14985.44582 | AG117: 879.59 | AH117: 143.9688685 | AI117: 18583.10363 | AJ117: 12798.34139 | AK117: 968.2970798 | AL117: 7057.491477 | AM117: 381.0249202 | AN117: 151598.981 | AP117: 3.48 | AQ117: 6.96 | AR117: 3.6 | AS117: 9.48 | AT117: 3.84 | AU117: 10.68 | AV117: 4.68 | AW117: 17.88
A118: 2014-12-01 | B118: 70255.53153 | C118: 14760.74409 | D118: 31579.01178 | E118: 8819.990372 | F118: 125415.2778 | G118: 23.70252557 | H118: 23.96429136 | I118: 15.01074083 | J118: 30.34777356 | K118: 6.875107198 | L118: 5.274291479 | M118: 7.973025653 | N118: 1.39379315 | O118: 1.230451901 | P118: 1.710706785 | Q118: 3.73 | R118: 8715.195 | S118: 5160.604 | T118: 13659.306 | U118: 6670.9083 | V118: 25490.8183 | W118: 59986.526 | X118: 3636.725 | Y118: 12662.70743 | Z118: 599.5634241 | AA118: 11862.82929 | AB118: 47.8727942 | AC118: 90465.63807 | AD118: 12683.85649 | AE118: 9484.976591 | AF118: 15401.51595 | AG118: 1136.301 | AH118: 196.9249723 | AI118: 18594.18638 | AJ118: 12995.36661 | AK118: 989.552399 | AL118: 6954.387857 | AM118: 389.7298653 | AN118: 154604.2007 | AP118: 3.48 | AQ118: 6.96 | AR118: 3.6 | AS118: 8.52 | AT118: 3.84 | AU118: 12.72 | AV118: 3.12 | AW118: 17.88
A119: 2015-01-01 | B119: 70467.61302 | C119: 14828.78995 | D119: 31737.14896 | E119: 9523.636449 | F119: 126557.1884 | G119: 24.09600442 | H119: 24.77009927 | I119: 15.33345316 | J119: 30.47260665 | K119: 7.070129911 | L119: 5.284772285 | M119: 8.322665405 | N119: 1.597160986 | O119: 1.516404191 | P119: 1.69946289 | Q119: 3.75 | R119: 8826.117334 | S119: 5142.750501 | T119: 13639.938 | U119: 6632.0919 | V119: 25414.7804 | W119: 60427.36176 | X119: 3650.973 | Y119: 13476.61784 | Z119: 614.0085672 | AA119: 12577.72662 | AB119: 46.77360521 | AC119: 90959.24135 | AD119: 13130.56195 | AE119: 9589.866561 | AF119: 15374.20457 | AG119: 1083.888 | AH119: 227.2442853 | AI119: 18486.30926 | AJ119: 13028.37942 | AK119: 1004.806149 | AL119: 6893.084381 | AM119: 403.4105662 | AN119: 155588.0066 | AP119: 3.36 | AQ119: 6.24 | AR119: 3.24 | AS119: 9.12 | AT119: 3.48 | AU119: 14.4 | AV119: 5.4 | AW119: 20.52
A120: 2015-02-01 | B120: 70127.49067 | C120: 14883.44406 | D120: 31939.02477 | E120: 9126.025769 | F120: 126075.9853 | G120: 25.23445451 | H120: 26.27531803 | I120: 15.40213652 | J120: 31.14698589 | K120: 7.127845606 | L120: 5.518154265 | M120: 7.803606589 | N120: 1.684601637 | O120: 1.658110573 | P120: 1.735864099 | Q120: 3.73 | R120: 9072.602 | S120: 5188.517379 | T120: 13384.963 | U120: 6762.95445 | V120: 25336.43483 | W120: 59786.559 | X120: 3669.621 | Y120: 13464.06769 | Z120: 632.7346301 | AA120: 12542.35088 | AB120: 47.3766216 | AC120: 90299.68965 | AD120: 13338.5216 | AE120: 10184.926 | AF120: 15739.519 | AG120: 940.647 | AH120: 205.2087835 | AI120: 18399.15891 | AJ120: 13647.40167 | AK120: 1031.045629 | AL120: 7096.806027 | AM120: 408.1114949 | AN120: 156281.2007 | AP120: 3.24 | AQ120: 5.16 | AR120: 3.24 | AS120: 10.2 | AT120: 3.6 | AU120: 12.48 | AV120: 5.16 | AW120: 20.04
A121: 2015-03-01 | B121: 70094.1534 | C121: 14984.89749 | D121: 32327.5347 | E121: 9152.581286 | F121: 126559.1669 | G121: 23.29988926 | H121: 24.72073657 | I121: 13.73076495 | J121: 30.79007734 | K121: 7.145096913 | L121: 5.452256842 | M121: 8.16834574 | N121: 1.458816477 | O121: 1.220352472 | P121: 1.813407591 | Q121: 3.67 | R121: 8878.899808 | S121: 5184.078906 | T121: 13468.071 | U121: 6433.7469 | V121: 25085.89681 | W121: 59606.58 | X121: 3705.513 | Y121: 11904.06062 | Z121: 641.62365 | AA121: 11373.88233 | AB121: 59.7775907 | AC121: 89510.01416 | AD121: 13055.86028 | AE121: 9967.373872 | AF121: 15803.28186 | AG121: 912.9 | AH121: 205.7216605 | AI121: 18278.32248 | AJ121: 14539.25212 | AK121: 1053.32967 | AL121: 7311.221943 | AM121: 409.8475904 | AN121: 155604.9866 | AP121: 3.36 | AQ121: 5.28 | AR121: 3.48 | AS121: 9.84 | AT121: 3.72 | AU121: 13.08 | AV121: 5.16 | AW121: 19.32
A122: 2015-04-01 | B122: 70180.50611 | C122: 15085.988 | D122: 32816.12944 | E122: 9141.618814 | F122: 127224.2424 | G122: 23.6195203 | H122: 24.94630274 | I122: 14.20142725 | J122: 30.55684493 | K122: 7.036429824 | L122: 5.567055023 | M122: 7.890542971 | N122: 1.62 | O122: 1.55004718 | P122: 1.664482007 | Q122: 3.6 | R122: 8864.913116 | S122: 5203.552914 | T122: 13562.89 | U122: 6711.052 | V122: 25477.49491 | W122: 60258.8219 | X122: 3747.868 | Y122: 11921.30909 | Z122: 640.165705 | AA122: 11498.95143 | AB122: 73.2845248 | AC122: 90473.42366 | AD122: 12963.29143 | AE122: 9746.058519 | AF122: 15891.18092 | AG122: 714.964 | AH122: 201.090092 | AI122: 18329.93332 | AJ122: 14774.93379 | AK122: 1072.419974 | AL122: 7229.984442 | AM122: 412.388113 | AN122: 156524.9231 | AP122: 3.36 | AQ122: 5.28 | AR122: 3.6 | AS122: 10.08 | AT122: 3.84 | AU122: 11.16 | AV122: 4.68 | AW122: 18.6
A123: 2015-05-01 | B123: 71322.35712 | C123: 14931.115 | D123: 33276.68512 | E123: 9443.744469 | F123: 128973.9017 | G123: 23.77792025 | H123: 25.43744992 | I123: 14.08634671 | J123: 30.34782747 | K123: 6.878039791 | L123: 5.28279614 | M123: 8.081411643 | N123: 1.38183961 | O123: 1.242867528 | P123: 1.768211172 | Q123: 3.61 | R123: 9360.241617 | S123: 5334.619242 | T123: 13851.195 | U123: 6771.01215 | V123: 25956.82639 | W123: 60308.074 | X123: 3807.353 | Y123: 12193.99735 | Z123: 634.8859205 | AA123: 11803.47908 | AB123: 65.60226733 | AC123: 91032.05532 | AD123: 13209.36698 | AE123: 10273.83767 | AF123: 16652.28961 | AG123: 670.124 | AH123: 191.9154015 | AI123: 18536.23105 | AJ123: 14600.03263 | AK123: 1087.14833 | AL123: 6884.715945 | AM123: 416.9722607 | AN123: 158951.3128 | AP123: 3.48 | AQ123: 5.16 | AR123: 3.72 | AS123: 9.96 | AT123: 3.96 | AU123: 9.96 | AV123: 3.48 | AW123: 19.8
A124: 2015-06-01 | B124: 71562.74355 | C124: 14969.74562 | D124: 33659.7144 | E124: 9459.942252 | F124: 129652.1458 | G124: 23.47911758 | H124: 25.01146347 | I124: 13.97428995 | J124: 30.10902445 | K124: 7.062430963 | L124: 5.711379322 | M124: 8.082284164 | N124: 1.681825336 | O124: 1.604697697 | P124: 1.788890232 | Q124: 3.66 | R124: 9207.026537 | S124: 5380.34316 | T124: 14052.701 | U124: 7031.64735 | V124: 26464.69151 | W124: 61457.208 | X124: 3874.821 | Y124: 10893.6815 | Z124: 630.3021338 | AA124: 10657.81403 | AB124: 53.74163181 | AC124: 92609.14848 | AD124: 13138.29339 | AE124: 9618.983597 | AF124: 17489.83624 | AG124: 625.748 | AH124: 188.2490725 | AI124: 18517.85163 | AJ124: 14818.10757 | AK124: 1093.431324 | AL124: 6679.909689 | AM124: 418.4632043 | AN124: 161001.2764 | AP124: 3.48 | AQ124: 5.4 | AR124: 3.72 | AS124: 9.84 | AT124: 3.96 | AU124: 13.32 | AW124: 16.56
A125: 2015-07-01 | B125: 72405.91758 | C125: 15119.75806 | D125: 34057.18255 | E125: 9869.690447 | F125: 131452.5486 | G125: 22.91422975 | H125: 24.30348208 | I125: 14.25489779 | J125: 29.39969013 | K125: 6.832705522 | L125: 5.529572173 | M125: 7.561164244 | N125: 1.548626104 | O125: 1.455543012 | P125: 1.688742606 | Q125: 3.67 | R125: 9221.036235 | S125: 5331.025297 | T125: 14023.011 | U125: 6948.9189 | V125: 26302.9552 | W125: 62239.873 | X125: 3911.563 | Y125: 12324.47537 | Z125: 629.1083495 | AA125: 11871.82024 | AB125: 50.52274912 | AC125: 93485.63193 | AD125: 13486.67746 | AE125: 9710.081006 | AF125: 18422.9604 | AG125: 836.305 | AH125: 187.6014355 | AI125: 18594.80765 | AJ125: 15397.27214 | AK125: 1125.30505 | AL125: 6884.752599 | AM125: 423.8553078 | AN125: 163938.0342 | AP125: 3.48 | AQ125: 5.28 | AR125: 3.72 | AS125: 8.52 | AT125: 3.84 | AU125: 13.2 | AV125: 2.88 | AW125: 16.68
A126: 2015-08-01 | B126: 72956.08469 | C126: 15212.8619 | D126: 34450.45057 | E126: 10140.18159 | F126: 132759.5788 | G126: 23.52036863 | H126: 25.73607752 | I126: 13.95981125 | J126: 29.10893364 | K126: 7.070604827 | L126: 5.700931012 | M126: 7.82370227 | N126: 1.585632113 | O126: 1.517493004 | P126: 1.697034476 | Q126: 3.63 | R126: 9274.239112 | S126: 5309.774591 | T126: 13947.9461 | U126: 6949.300685 | V126: 26207.02138 | W126: 63741.44762 | X126: 3952.243143 | Y126: 12435.47502 | Z126: 638.5563383 | AA126: 11974.52688 | AB126: 48.08223622 | AC126: 94952.13439 | AD126: 14081.39548 | AE126: 10151.41907 | AF126: 18792.22075 | AG126: 614.6302857 | AH126: 192.2264735 | AI126: 18803.08476 | AJ126: 16062.83734 | AK126: 1120.089806 | AL126: 7206.208428 | AM126: 439.6898268 | AN126: 167124.1401 | AP126: 3.6 | AQ126: 5.4 | AR126: 3.72 | AS126: 9.6 | AT126: 3.96 | AU126: 14.64 | AV126: 2.88 | AW126: 18.12
A127: 2015-09-01 | B127: 74374.98091 | C127: 15318.95111 | D127: 34969.09535 | E127: 9950.781261 | F127: 134613.8086 | G127: 23.22803187 | H127: 25.41149716 | I127: 13.93383267 | J127: 29.05524698 | K127: 6.340226413 | L127: 5.523640285 | M127: 6.77627917 | N127: 1.573994499 | O127: 1.195511142 | P127: 2.085356488 | Q127: 3.65 | R127: 9308.615982 | S127: 5432.638092 | T127: 14036.987 | U127: 7009.49865 | V127: 26479.12374 | W127: 63980.244 | X127: 3994.699 | Y127: 11276.48309 | Z127: 650.3782642 | AA127: 11006.06256 | AB127: 47.09145157 | AC127: 95327.77408 | AD127: 14046.93452 | AE127: 9950.487984 | AF127: 19439.84449 | AG127: 690.818 | AH127: 188.53326 | AI127: 18817.07779 | AJ127: 15995.92409 | AK127: 1108.821951 | AL127: 7179.662686 | AM127: 448.1671938 | AN127: 167938.3863 | AP127: 3.72 | AQ127: 5.4 | AR127: 3.96 | AS127: 8.28 | AT127: 4.32 | AU127: 10.08 | AV127: 3.84 | AW127: 16.56
A128: 2015-10-01 | B128: 74857.11219 | C128: 15454.55641 | D128: 35453.70579 | E128: 9723.623326 | F128: 135488.9977 | G128: 23.14114721 | H128: 24.94087181 | I128: 14.30481151 | J128: 28.61310024 | K128: 6.236534735 | L128: 5.764830451 | M128: 6.279468 | N128: 1.524345819 | O128: 1.271920214 | P128: 2.022964671 | Q128: 3.64 | R128: 9313.417157 | S128: 5406.51888 | T128: 13852.931 | U128: 6967.2666 | V128: 26226.71648 | W128: 64677.806 | X128: 4046.295 | Y128: 12895.18227 | Z128: 655.2222197 | AA128: 12577.90143 | AB128: 46.61823641 | AC128: 95876.7023 | AD128: 14183.5433 | AE128: 10205.30667 | AF128: 19827.07123 | AG128: 1012.457 | AH128: 172.358159 | AI128: 18858.93468 | AJ128: 15625.41678 | AK128: 1114.915371 | AL128: 6856.090974 | AM128: 451.0327521 | AN128: 169569.5818 | AP128: 3.72 | AQ128: 5.88 | AR128: 4.08 | AS128: 8.16 | AT128: 4.68 | AU128: 9.96 | AV128: 3.6 | AW128: 18.12
A129: 2015-11-01 | B129: 75881.90439 | C129: 15620.0482 | D129: 35930.22474 | E129: 9838.678268 | F129: 137270.8556 | G129: 22.7140556 | H129: 23.95500714 | I129: 14.68075926 | J129: 28.59681534 | K129: 6.926419624 | L129: 5.6078932 | M129: 7.605831205 | N129: 1.566495477 | O129: 1.38018172 | P129: 2.007846961 | Q129: 3.72 | R129: 9403.93153 | S129: 5444.231194 | T129: 14254.293 | U129: 6974.01915 | V129: 26672.54334 | W129: 65494.161 | X129: 4203.139 | Y129: 13128.00434 | Z129: 659.5811884 | AA129: 12711.17988 | AB129: 44.96797964 | AC129: 97401.28101 | AD129: 14497.63365 | AE129: 9999.312836 | AF129: 20349.4138 | AG129: 920.13 | AH129: 159.849122 | AI129: 18856.41959 | AJ129: 15205.18186 | AK129: 1132.919375 | AL129: 6329.888519 | AM129: 455.2294881 | AN129: 171737.0232 | AP129: 3.84 | AQ129: 5.52 | AR129: 4.32 | AS129: 9 | AT129: 4.92 | AU129: 13.32 | AV129: 2.4 | AW129: 16.92
A130: 2015-12-01 | B130: 76628.98025 | C130: 15792.3211 | D130: 36337.55289 | E130: 9626.082123 | F130: 138384.9364 | G130: 22.82592773 | H130: 23.78189297 | I130: 14.97456553 | J130: 28.35145153 | K130: 6.855746396 | L130: 5.906237776 | M130: 7.370222799 | N130: 1.829694743 | O130: 1.587507177 | P130: 2.32712497 | Q130: 3.77 | R130: 9701.93858 | S130: 5679.27348 | T130: 15084.753 | U130: 7446.01305 | V130: 28210.03953 | W130: 65889.736 | X130: 4071.246 | Y130: 13029.31103 | Z130: 663.4072696 | AA130: 12517.89872 | AB130: 42.45348065 | AC130: 99303.38763 | AD130: 14524.2373 | AE130: 9013.17631 | AF130: 20421.029 | AG130: 834.29 | AH130: 146.9191875 | AI130: 18754.9356 | AJ130: 14386.52525 | AK130: 1128.310042 | AL130: 5631.841964 | AM130: 455.0307701 | AN130: 172425.9376 | AP130: 3.96 | AQ130: 5.76 | AR130: 4.44 | AS130: 8.76 | AT130: 5.04 | AU130: 11.4 | AV130: 3.888386799 | AW130: 19.2
A131: 2016-01-01 | B131: 76909.28362 | C131: 15890.97804 | D131: 36583.84548 | E131: 9723.548054 | F131: 139107.6552 | G131: 23.39494371 | H131: 24.44746588 | I131: 15.4514774 | J131: 28.29147038 | K131: 7.284385244 | L131: 6.131367729 | M131: 7.737769931 | N131: 1.892401975 | O131: 1.559278305 | P131: 2.44381921 | Q131: 3.832336445 | R131: 9837.795577 | S131: 5657.760447 | T131: 15805.89 | U131: 7354.9686 | V131: 28818.61905 | W131: 66515.284 | X131: 4081.34 | Y131: 13050.2783 | Z131: 665.973599 | AA131: 12535.38222 | AB131: 41.07917035 | AC131: 100555.0336 | AD131: 14341.74469 | AE131: 8950.267592 | AF131: 20136.19778 | AG131: 765.064 | AH131: 114.7664075 | AI131: 18788.68376 | AJ131: 13892.68772 | AK131: 1103.788426 | AL131: 5315.359511 | AM131: 454.5066657 | AN131: 172878.3678 | AP131: 3.96 | AQ131: 5.52 | AR131: 4.44 | AS131: 9.24 | AT131: 4.92 | AU131: 12.6 | AV131: 6.275554054 | AW131: 18.96
A132: 2016-02-01 | B132: 76958.32612 | C132: 15977.51775 | D132: 36897.02856 | E132: 9759.670523 | F132: 139592.543 | G132: 23.87256774 | H132: 25.132126 | I132: 15.35234214 | J132: 28.75408688 | K132: 7.753267558 | L132: 6.36037776 | M132: 8.12785259 | N132: 1.666434118 | O132: 1.43493427 | P132: 2.190425289 | Q132: 3.828542547 | R132: 9881.92754 | S132: 5701.472784 | T132: 15345.706 | U132: 7288.64745 | V132: 28335.82623 | W132: 66770.105 | X132: 4105.194 | Y132: 12149.95685 | Z132: 670.1787336 | AA132: 11566.70931 | AB132: 41.55628877 | AC132: 100422.9952 | AD132: 14397.7196 | AE132: 9670.475486 | AF132: 20329.02882 | AG132: 1009.983 | AH132: 97.2685295 | AI132: 18862.7709 | AJ132: 13972.88742 | AK132: 1081.497366 | AL132: 5593.26893 | AM132: 459.0082164 | AN132: 173792.3492 | AP132: 3.84 | AQ132: 5.76 | AR132: 4.32 | AS132: 10.08 | AT132: 4.68 | AU132: 14.04 | AV132: 4.737751442 | AW132: 21.12
A133: 2016-03-01 | B133: 76499.36454 | C133: 16125.04506 | D133: 37249.33251 | E133: 9538.357154 | F133: 139412.0993 | G133: 22.68924007 | H133: 24.29993198 | I133: 14.00804779 | J133: 28.92760012 | K133: 7.710791839 | L133: 6.101207724 | M133: 8.49725247 | N133: 1.845041893 | O133: 1.6036655 | P133: 2.37109483 | Q133: 3.805622256 | R133: 9965.108722 | S133: 5684.251463 | T133: 15002.419 | U133: 6845.44875 | V133: 27532.11921 | W133: 67785.145 | X133: 4144.058 | Y133: 12247.22295 | Z133: 686.4945097 | AA133: 11625.9844 | AB133: 41.41282592 | AC133: 100727.6424 | AD133: 14441.96263 | AE133: 9194.784853 | AF133: 20381.63267 | AG133: 746.735 | AH133: 109.08516 | AI133: 18927.66718 | AJ133: 14274.35333 | AK133: 1095.949728 | AL133: 5907.991387 | AM133: 460.3226973 | AN133: 173531.4989 | AP133: 3.84 | AQ133: 5.64 | AR133: 4.2 | AS133: 10.44 | AT133: 4.56 | AU133: 12.96 | AV133: 5.100839965 | AW133: 19.56
A134: 2016-04-01 | B134: 76906.6148 | C134: 16248.96405 | D134: 37550.43324 | E134: 9445.977972 | F134: 140151.9901 | G134: 23.30594442 | H134: 25.07750411 | I134: 14.23914786 | J134: 28.81423096 | K134: 7.46724243 | L134: 5.917631481 | M134: 8.393323973 | N134: 1.916164455 | O134: 1.746347169 | P134: 2.206591953 | Q134: 3.78533942 | R134: 9801.402606 | S134: 5656.874247 | T134: 14994.82265 | U134: 6940.028346 | V134: 27591.72525 | W134: 67252.864 | X134: 4186.943 | Y134: 13605.31746 | Z134: 704.6780735 | AA134: 12757.35482 | AB134: 40.52140103 | AC134: 100543.6516 | AD134: 14473.50314 | AE134: 9374.665327 | AF134: 20394.83562 | AG134: 342.719 | AH134: 133.0507935 | AI134: 18951.63335 | AJ134: 14497.18077 | AK134: 1108.789265 | AL134: 6195.582242 | AM134: 457.4293381 | AN134: 173167.0172 | AP134: 3.72 | AQ134: 5.52 | AR134: 3.96 | AS134: 10.2 | AT134: 4.32 | AU134: 13.8 | AV134: 4.330768544 | AW134: 17.16
A135: 2016-05-01 | B135: 77802.40712 | C135: 16284.82216 | D135: 37851.38638 | E135: 10030.67371 | F135: 141969.2894 | G135: 22.86927625 | H135: 24.52369026 | I135: 14.24791938 | J135: 28.43906961 | K135: 7.453991314 | L135: 5.771290623 | M135: 8.662944903 | N135: 1.629337752 | O135: 1.377551916 | P135: 2.300888066 | Q135: 3.788066653 | R135: 9947.175277 | S135: 5714.136396 | T135: 14876.96171 | U135: 6996.994893 | V135: 27588.093 | W135: 67501.02 | X135: 4241.536 | Y135: 13940.32921 | Z135: 707.9429104 | AA135: 13117.70581 | AB135: 40.81068536 | AC135: 100820.4046 | AD135: 14918.09963 | AE135: 10118.83868 | AF135: 21591.54046 | AG135: 342.094 | AH135: 162.5087985 | AI135: 18977.74953 | AJ135: 14864.77825 | AK135: 1121.167303 | AL135: 6434.236398 | AM135: 459.7832367 | AN135: 176023.1616 | AP135: 3.72 | AQ135: 5.4 | AR135: 3.96 | AS135: 9.72 | AT135: 4.32 | AU135: 14.88 | AV135: 3.060608739 | AW135: 17.76
A136: 2016-06-01 | B136: 77961.40401 | C136: 16355.81727 | D136: 38123.10271 | E136: 9538.048015 | F136: 141978.372 | G136: 23.12398217 | H136: 24.97852368 | I136: 14.22072608 | J136: 28.57058895 | K136: 7.156553266 | L136: 5.776403002 | M136: 7.933515875 | N136: 1.70253879 | O136: 1.458299253 | P136: 2.373994513 | Q136: 3.756538019 | R136: 9880.875557 | S136: 5756.179516 | T136: 14833.65732 | U136: 7197.90363 | V136: 27787.74047 | W136: 67783.332 | X136: 4300.334 | Y136: 12817.67851 | Z136: 718.9076481 | AA136: 12283.71988 | AB136: 43.107268 | AC136: 101081.1655 | AD136: 15262.87138 | AE136: 9876.988377 | AF136: 22661.29307 | AG136: 213.357 | AH136: 184.41608 | AI136: 18953.41609 | AJ136: 15215.96172 | AK136: 1118.944068 | AL136: 6544.965811 | AM136: 454.9773507 | AN136: 177568.4701 | AP136: 3.72 | AQ136: 5.28 | AR136: 3.96 | AS136: 10.08 | AT136: 4.2 | AU136: 12.6 | AV136: 3 | AW136: 15.72
A137: 2016-07-01 | B137: 78720.04652 | C137: 16461.59112 | D137: 38388.82258 | E137: 9648.77962 | F137: 143219.2398 | G137: 23.19229441 | H137: 24.92389628 | I137: 14.58187777 | J137: 28.57078162 | K137: 6.807152895 | L137: 5.683329817 | M137: 7.168358798 | N137: 1.702362083 | O137: 1.419846815 | P137: 2.196154745 | Q137: 3.726151404 | R137: 9808.721735 | S137: 5755.090913 | T137: 14683.77498 | U137: 6845.91582 | V137: 27284.78171 | W137: 67561.658 | X137: 4329.216 | Y137: 12863.65802 | Z137: 755.7402226 | AA137: 12199.03362 | AB137: 45.32260017 | AC137: 100550.6977 | AD137: 15158.08126 | AE137: 10806.00535 | AF137: 23846.5774 | AG137: 212.466 | AH137: 209.318744 | AI137: 18888.66226 | AJ137: 15535.06827 | AK137: 1116.716308 | AL137: 6816.800531 | AM137: 451.7743346 | AN137: 179055.0185 | AP137: 3.72 | AQ137: 5.76 | AR137: 3.96 | AS137: 9.6 | AT137: 4.2 | AU137: 10.2 | AV137: 4.18743366 | AW137: 17.52
A138: 2016-08-01 | B138: 79253.89133 | C138: 16600.65725 | D138: 38668.3738 | E138: 9761.292044 | F138: 144284.2144 | G138: 22.77836406 | H138: 24.44172944 | I138: 14.38336587 | J138: 28.5062279 | K138: 6.754499731 | L138: 5.7887252 | M138: 6.964915408 | N138: 1.655275526 | O138: 1.277109058 | P138: 2.479250582 | Q138: 3.720552392 | R138: 9868.472228 | S138: 5710.037086 | T138: 14557.31404 | U138: 6700.523564 | V138: 26967.87469 | W138: 67816.876 | X138: 4355.658 | Y138: 12799.43375 | Z138: 779.5335006 | AA138: 12111.34373 | AB138: 42.00970625 | AC138: 100566.0225 | AD138: 15190.66536 | AE138: 10694.33583 | AF138: 25208.82348 | AG138: 457.5409138 | AH138: 236.537953 | AI138: 19059.28834 | AJ138: 16146.14844 | AK138: 1135.143187 | AL138: 7174.881052 | AM138: 461.6602439 | AN138: 181057.9647 | AP138: 3.72 | AQ138: 5.28 | AR138: 3.84 | AS138: 10.68 | AT138: 4.08 | AU138: 10.08 | AW138: 15.96
A139: 2016-09-01 | B139: 78914.83739 | C139: 16693.43858 | D139: 38877.24006 | E139: 9590.443577 | F139: 144075.9596 | G139: 23.15573613 | H139: 24.90250085 | I139: 14.35446641 | J139: 28.28456051 | K139: 6.877658498 | L139: 5.858701503 | M139: 7.121551096 | N139: 1.786309884 | O139: 1.416342764 | P139: 2.49504078 | Q139: 3.663713554 | R139: 9852.847075 | S139: 5858.227198 | T139: 14572.02219 | U139: 6815.013411 | V139: 27245.2628 | W139: 69822.003 | X139: 4383.023 | Y139: 13719.86845 | Z139: 779.4522154 | AA139: 12980.45266 | AB139: 41.45353826 | AC139: 102927.7033 | AD139: 14986.54257 | AE139: 10307.50847 | AF139: 25832.68817 | AG139: 224.088 | AH139: 249.881426 | AI139: 19335.48559 | AJ139: 16755.27485 | AK139: 1146.323257 | AL139: 7553.800715 | AM139: 470.6293478 | AN139: 183741.0655 | AP139: 3.72 | AQ139: 5.52 | AR139: 3.96 | AS139: 11.52 | AT139: 4.08 | AU139: 10.08 | AV139: 3.96576 | AW139: 18
A140: 2016-10-01 | B140: 79154.5452 | C140: 16802.97934 | D140: 39065.73854 | E140: 9127.347267 | F140: 144150.6103 | G140: 23.20043758 | H140: 24.89269437 | I140: 14.6031085 | J140: 28.09588086 | K140: 7.675640643 | L140: 5.571344718 | M140: 9.135775867 | N140: 1.960655747 | O140: 1.657352047 | P140: 2.518268777 | Q140: 3.558044109 | R140: 9983.213152 | S140: 5845.642227 | T140: 14468.82116 | U140: 6805.600991 | V140: 27120.06438 | W140: 70511.566 | X140: 4408.993 | Y140: 14932.28183 | Z140: 714.0616973 | AA140: 14195.55536 | AB140: 44.56622936 | AC140: 103446.8453 | AD140: 14724.729 | AE140: 10134.48631 | AF140: 26046.34613 | AG140: 269.024 | AH140: 258.4530665 | AI140: 19499.24802 | AJ140: 16696.19675 | AK140: 1145.963568 | AL140: 7527.904953 | AM140: 472.8777726 | AN140: 184220.5094 | AP140: 3.72 | AQ140: 5.16 | AR140: 3.96 | AS140: 11.4 | AT140: 4.08 | AU140: 16.2 | AV140: 4.698897324 | AW140: 17.28
A141: 2016-11-01 | B141: 80074.99694 | C141: 16996.71901 | D141: 39397.55224 | E141: 9456.596283 | F141: 145925.8645 | G141: 22.64391089 | H141: 23.86941595 | I141: 14.72874464 | J141: 28.25437016 | K141: 7.565957631 | L141: 5.611187546 | M141: 8.920701111 | N141: 1.842080656 | O141: 1.589355792 | P141: 2.339208395 | Q141: 3.510301705 | R141: 10033.10099 | S141: 5857.367063 | T141: 15091.27946 | U141: 6922.231336 | V141: 27870.87786 | W141: 70546.098 | X141: 4411.979 | Y141: 14338.48406 | Z141: 716.1095512 | AA141: 13789.62323 | AB141: 41.64037775 | AC141: 104052.2849 | AD141: 14913.62708 | AE141: 9458.18263 | AF141: 26563.27451 | AG141: 396.18 | AH141: 267.512052 | AI141: 19661.68692 | AJ141: 15509.99561 | AK141: 1131.835822 | AL141: 6710.600317 | AM141: 460.7064953 | AN141: 184783.2727 | AP141: 3.6 | AQ141: 5.28 | AR141: 3.96 | AS141: 10.44 | AT141: 4.08 | AU141: 15.24 | AV141: 3.96 | AW141: 18.72
A142: 2016-12-01 | B142: 80383.10421 | C142: 17084.00847 | D142: 39818.56235 | E142: 8922.041264 | F142: 146207.7163 | G142: 22.37884938 | H142: 23.27046712 | I142: 14.58492153 | J142: 28.02879095 | K142: 7.643104968 | L142: 5.52943985 | M142: 9.66217594 | N142: 2.345209144 | O142: 2.201666159 | P142: 2.628284071 | Q142: 3.588765866 | R142: 10171.73623 | S142: 6057.664141 | T142: 15909.82631 | U142: 7402.483839 | V142: 29369.97429 | W142: 70397.12308 | X142: 4396.467 | Y142: 15085.26534 | Z142: 744.0890385 | AA142: 14344.53091 | AB142: 48.74132456 | AC142: 105599.6465 | AD142: 14588.9067 | AE142: 8249.401307 | AF142: 26652.13396 | AG142: 541.281 | AH142: 279.313601 | AI142: 20247.36621 | AJ142: 15690.6552 | AK142: 1120.356357 | AL142: 6883.429319 | AM142: 466.0071982 | AN142: 185619.6243 | AP142: 3.72 | AQ142: 5.28 | AR142: 3.96 | AS142: 11.28 | AT142: 4.2 | AU142: 16.32 | AV142: 4.985209031 | AW142: 15.84
A143: 2017-01-01 | B143: 79954.53432 | C143: 17174.98206 | D143: 39981.12941 | E143: 8837.803084 | F143: 145948.4489 | G143: 23.03861378 | H143: 23.76824852 | I143: 15.2675071 | J143: 28.2997541 | K143: 7.884418591 | L143: 5.512484199 | M143: 9.764094107 | N143: 2.214496041 | O143: 2.141242012 | P143: 2.294855847 | Q143: 3.616186992 | R143: 10241.67225 | S143: 6020.246474 | T143: 16026.13365 | U143: 7467.444948 | V143: 29513.82507 | W143: 69830.268 | X143: 4405.027 | Y143: 14143.91961 | Z143: 772.0275193 | AA143: 13529.00392 | AB143: 45.62566228 | AC143: 105090.4376 | AD143: 14409.56226 | AE143: 8019.099477 | AF143: 27114.95878 | AG143: 209.054 | AH143: 285.397675 | AI143: 20470.90602 | AJ143: 15936.91099 | AK143: 1123.611689 | AL143: 6989.964117 | AM143: 465.8160236 | AN143: 185204.1584 | AP143: 3.48 | AQ143: 4.92 | AR143: 3.6 | AS143: 12.72 | AT143: 3.72 | AU143: 17.52 | AV143: 2.64 | AW143: 14.88
A144: 2017-02-01 | B144: 80161.87409 | C144: 17240.20069 | D144: 40304.22663 | E144: 8926.842738 | F144: 146633.1441 | G144: 23.34 | H144: 24.14 | I144: 15.12 | J144: 28.68 | K144: 8.84 | L144: 5.58 | M144: 10.93 | N144: 2.16 | O144: 1.86 | P144: 2.6 | Q144: 3.55 | R144: 10225.16101 | S144: 6114.709822 | T144: 15617.88704 | U144: 7434.529051 | V144: 29167.12592 | W144: 69897.85041 | X144: 4415.962059 | Y144: 13307.50243 | Z144: 739.7975777 | AA144: 12680.75426 | AB144: 42.7883842 | AC144: 104804.6957 | AD144: 15200.53967 | AE144: 8789.422884 | AF144: 27225.72461 | AG144: 329.7067059 | AH144: 181.6415078 | AI144: 20115.7313 | AJ144: 16357.81079 | AK144: 1078.629793 | AL144: 7449.526935 | AM144: 463.7473141 | AN144: 186170.6288 | AP144: 3.36 | AQ144: 5.04 | AR144: 3.36 | AS144: 13.92 | AT144: 3.6 | AU144: 19.92 | AV144: 4.08 | AW144: 18.6
A145: 2017-03-01 | B145: 80355.75696 | C145: 17405.83593 | D145: 40749.19516 | E145: 9154.672375 | F145: 147665.4604 | G145: 22.02 | H145: 23.09 | I145: 13.59 | J145: 28.4 | K145: 8.18 | L145: 5.32 | M145: 10.99 | N145: 2.33 | O145: 2.07 | P145: 2.77 | Q145: 3.47 | R145: 10170.88634 | S145: 6087.948092 | T145: 15857.55468 | U145: 7455.255261 | V145: 29400.75803 | W145: 71044.56283 | X145: 4443.589522 | Y145: 13202.20069 | Z145: 781.758768 | AA145: 12770.26759 | AB145: 47.5893103 | AC145: 106055.0129 | AD145: 15525.11055 | AE145: 8640.026344 | AF145: 27468.00032 | AG145: 259.3752174 | AH145: 313.2348462 | AI145: 20876.74843 | AJ145: 17226.28743 | AK145: 1146.291543 | AL145: 7555.231519 | AM145: 467.2870609 | AN145: 189487.569 | AP145: 3.24 | AQ145: 4.68 | AR145: 3.24 | AS145: 13.08 | AT145: 3.48 | AU145: 18 | AV145: 3.84 | AW145: 16.32
A146: 2017-04-01 | B146: 80972.50608 | C146: 17432.56714 | D146: 41044.39645 | E146: 9250.39764 | F146: 148699.8673 | G146: 22.83 | H146: 23.94 | I146: 13.99 | J146: 28.56 | K146: 7.48 | L146: 4.77 | M146: 9.79 | N146: 2.35 | O146: 2.17 | P146: 2.7 | Q146: 3.42 | R146: 10173.49789 | S146: 6118.016341 | T146: 16290.28387 | U146: 7799.958681 | V146: 30208.25889 | W146: 70060.73911 | X146: 4479.495667 | Y146: 15309.03628 | Z146: 840.0065906 | AA146: 14073.62681 | AB146: 39.66844265 | AC146: 106784.2413 | AD146: 15851.53157 | AE146: 8105.83105 | AF146: 24658.52501 | AG146: 616.5398889 | AH146: 336.6990596 | AI146: 20945.08265 | AJ146: 17436.1466 | AK146: 1157.481848 | AL146: 8085.054614 | AM146: 466.6840116 | AN146: 187340.3403 | AP146: 3 | AQ146: 4.44 | AR146: 3 | AS146: 11.4 | AT146: 3.24 | AU146: 18.96 | AV146: 3.6 | AW146: 16.2

Sheet Base gráficos 1
B1: COLOCACIONES | H1: TASAS DE INTERÉS | R1: AGREGADOS MONETARIOS
B2: Colocaciones balances individuales | G2: consumo ($) | K2: comerciales ($) | N2: comercio exterior (US$) | Q2: vivienda (UF) | R2: M1 | V2: M2 | AF2: M3
B3: comerciales | C3: consumo | D3: vivienda | E3: comercio exterior | F3: Total | G3: consumo promedio | H3: tarjetas de crédito | I3: crédito en cuotas | J3: sobregiros | K3: comercio promedio | L3: crédito en cuotas | M3: sobregiros | N3: comex promedio | O3: exportación | P3: importación | R3: Circulante | S3: Cuentas corrientes netas de canje | T3: Depósitos y ahorros a la vista | U3: M1 | V3: M1 | W3: Depósitos plazo | X3: Ahorro plazo | Y3: Cuotas de fondos mutuos en instrumentos < 1 año | Z3: Captaciones de Cooperativas | AA3: Inversiones de fondos mutuos en instrumentos < 1 año | AB3: Inversiones de Cooperativas | AC3: Fondos mutuos neto en M2 | AD3: Cooperativas neto en M2 | AE3: M2 | AF3: M2 | AG3: Dep en moneda extranjera | AH3: Doc del BCCH | AI3: Bonos de Tesoreria | AJ3: Letras de crédito | AK3: Efectos de comercio | AL3: Bono de Empresa | AM3: Cuotas del resto de FM | AN3: Cuotas de APV AFP | AO3: Inversión del resto FM | AP3: Inversión de AFP | AQ3: Fondos mutuos neto en M3 | AR3: AFP neto en M3 | AS3: M3
B4: Variación anual, porcentaje | G4: Tasas base anual 360 días, porcentaje | R4: Incidencia en la variación anual, porcentaje | U4: Variación anual, porcentaje | V4: Incidencia en la variación anual, porcentaje | AE4: Variación anual, porcentaje | AF4: Incidencia en la variación anual, porcentaje | AS4: Variación anual, porcentaje
B5: Fuente: Banco Central de Chile y Superintendencia de Bancos e Instituciones Financieras. | G5: Fuente: Banco Central de Chile | R5: Fuente: Banco Central de Chile
A7: 2006-01-01 | G7: ='Base original'!G11 -> 26.84010551 | K7: ='Base original'!K11 -> 10.27317257 | N7: ='Base original'!N11 -> 5.289234388 | Q7: ='Base original'!Q11 -> 5.31
A8: 2006-02-01 | G8: ='Base original'!G12 -> 28.08001067 | K8: ='Base original'!K12 -> 10.69175166 | N8: ='Base original'!N12 -> 5.488292681 | Q8: ='Base original'!Q12 -> 5.33
A9: 2006-03-01 | G9: ='Base original'!G13 -> 25.2206299 | K9: ='Base original'!K13 -> 10.24201215 | N9: ='Base original'!N13 -> 5.847508201 | Q9: ='Base original'!Q13 -> 5.22
A10: 2006-04-01 | G10: ='Base original'!G14 -> 26.81238125 | K10: ='Base original'!K14 -> 10.69633422 | N10: ='Base original'!N14 -> 5.653472987 | Q10: ='Base original'!Q14 -> 5.04
A11: 2006-05-01 | G11: ='Base original'!G15 -> 27.49968525 | K11: ='Base original'!K15 -> 10.69976304 | N11: ='Base original'!N15 -> 6.069324926 | Q11: ='Base original'!Q15 -> 5.03
A12: 2006-06-01 | G12: ='Base original'!G16 -> 27.54061454 | K12: ='Base original'!K16 -> 10.0914888 | N12: ='Base original'!N16 -> 6.098626848 | Q12: ='Base original'!Q16 -> 5
A13: 2006-07-01 | G13: ='Base original'!G17 -> 27.28323577 | K13: ='Base original'!K17 -> 9.956696994 | N13: ='Base original'!N17 -> 6.294930372 | Q13: ='Base original'!Q17 -> 5.1
A14: 2006-08-01 | G14: ='Base original'!G18 -> 26.63961018 | K14: ='Base original'!K18 -> 10.30839481 | N14: ='Base original'!N18 -> 6.222757439 | Q14: ='Base original'!Q18 -> 5.05
A15: 2006-09-01 | G15: ='Base original'!G19 -> 26.5372798 | K15: ='Base original'!K19 -> 10.34509493 | N15: ='Base original'!N19 -> 6.288846604 | Q15: ='Base original'!Q19 -> 5.01
A16: 2006-10-01 | G16: ='Base original'!G20 -> 26.87426644 | K16: ='Base original'!K20 -> 10.32842561 | N16: ='Base original'!N20 -> 6.177634104 | Q16: ='Base original'!Q20 -> 4.95
A17: 2006-11-01 | G17: ='Base original'!G21 -> 26.97083773 | K17: ='Base original'!K21 -> 10.16942247 | N17: ='Base original'!N21 -> 6.107811217 | Q17: ='Base original'!Q21 -> 4.82
A18: 2006-12-01 | G18: ='Base original'!G22 -> 27.08498 | K18: ='Base original'!K22 -> 10.24621563 | N18: ='Base original'!N22 -> 6.077732562 | Q18: ='Base original'!Q22 -> 4.77
A19: 2007-01-01 | B19: ='Base original'!B23/'Base original'!B11*100-100 -> 16.33492726 | C19: ='Base original'!C23/'Base original'!C11*100-100 -> 23.21425783 | D19: ='Base original'!D23/'Base original'!D11*100-100 -> 17.29515509 | E19: ='Base original'!E23/'Base original'!E11*100-100 -> 26.75615925 | F19: ='Base original'!F23/'Base original'!F11*100-100 -> 18.30423227 | G19: ='Base original'!G23 -> 27.90456465 | K19: ='Base original'!K23 -> 10.08135097 | N19: ='Base original'!N23 -> 6.104881737 | Q19: ='Base original'!Q23 -> 4.68 | R19: =('Base original'!S23/'Base original'!S11*100-100)*'Base original'!S11/'Base original'!$V11 -> 3.303152313 | S19: =('Base original'!T23/'Base original'!T11*100-100)*'Base original'!T11/'Base original'!$V11 -> 8.926165374 | T19: =('Base original'!U23/'Base original'!U11*100-100)*'Base original'!U11/'Base original'!$V11 -> 3.794732112 | U19: =('Base original'!V23/'Base original'!V11*100-100)*'Base original'!V11/'Base original'!$V11 -> 16.0240498 | V19: =('Base original'!V23/'Base original'!V11*100-100)*'Base original'!V11/('Base original'!$AC11) -> 3.675474357 | W19: =('Base original'!W23/'Base original'!W11*100-100)*'Base original'!W11/('Base original'!$AC11) -> 14.61841345 | X19: =('Base original'!X23/'Base original'!X11*100-100)*'Base original'!X11/('Base original'!$AC11) -> 0.09301894765 | Y19: =('Base original'!Y23/'Base original'!Y11*100-100)*'Base original'!Y11/('Base original'!$AC11) -> 3.715672588 | Z19: =('Base original'!Z23/'Base original'!Z11*100-100)*'Base original'!Z11/('Base original'!$AC11) -> 0.1831622689 | AA19: =-('Base original'!AA23/'Base original'!AA11*100-100)*'Base original'!AA11/('Base original'!$AC11) -> -3.769431667 | AB19: =-('Base original'!AB23/'Base original'!AB11*100-100)*'Base original'!AB11/('Base original'!$AC11) -> -0.01083657119 | AC19: =(('Base original'!Y23-'Base original'!AA23)/('Base original'!Y11-'Base original'!AA11)*100-100)*(('Base original'!Y11-'Base original'!AA11)/'Base original'!AC11) -> -0.05375907941 | AD19: =(('Base original'!Z23-'Base original'!AB23)/('Base original'!Z11-'Base original'!AB11)*100-100)*(('Base original'!Z11-'Base original'!AB11)/'Base original'!AC11) -> 0.1723256977 | AE19: =('Base original'!AC23/'Base original'!AC11*100-100)*'Base original'!AC11/('Base original'!$AC11) -> 18.50547338 | AF19: =('Base original'!AC23/'Base original'!AC11*100-100)*'Base original'!AC11/('Base original'!$AN11) -> 10.50919627 | AG19: =('Base original'!AD23/'Base original'!AD11*100-100)*'Base original'!AD11/('Base original'!$AN11) -> 0.6304121926 | AH19: =('Base original'!AE23/'Base original'!AE11*100-100)*'Base original'!AE11/('Base original'!$AN11) -> -2.163647944 | AI19: =('Base original'!AF23/'Base original'!AF11*100-100)*'Base original'!AF11/('Base original'!$AN11) -> -0.002681654134 | AJ19: =('Base original'!AG23/'Base original'!AG11*100-100)*'Base original'!AG11/('Base original'!$AN11) -> 0.1695458636 | AK19: =('Base original'!AH23/'Base original'!AH11*100-100)*'Base original'!AH11/('Base original'!$AN11) -> 0.0142677752 | AL19: =('Base original'!AI23/'Base original'!AI11*100-100)*'Base original'!AI11/('Base original'!$AN11) -> 1.768499331 | AM19: =('Base original'!AJ23/'Base original'!AJ11*100-100)*'Base original'!AJ11/('Base original'!$AN11) -> 1.928435934 | AN19: =('Base original'!AK23/'Base original'!AK11*100-100)*'Base original'!AK11/('Base original'!$AN11) -> 0.2570606148 | AO19: =-('Base original'!AL23/'Base original'!AL11*100-100)*'Base original'!AL11/('Base original'!$AN11) -> -0.6391447586 | AP19: =-('Base original'!AM23/'Base original'!AM11*100-100)*'Base original'!AM11/('Base original'!$AN11) -> -0.08017458256 | AQ19: =(('Base original'!AJ23-'Base original'!AL23)/('Base original'!AJ11-'Base original'!AL11)*100-100)*(('Base original'!AJ11-'Base original'!AL11)/'Base original'!AN11) -> 1.289291175 | AR19: =(('Base original'!AK23-'Base original'!AM23)/('Base original'!AK11-'Base original'!AM11)*100-100)*(('Base original'!AK11-'Base original'!AM11)/'Base original'!AN11) -> 0.1768860323 | AS19: =('Base original'!AN23/'Base original'!AN11*100-100)*'Base original'!AN11/('Base original'!$AN11) -> 12.39176904
A20: 2007-02-01 | B20: ='Base original'!B24/'Base original'!B12*100-100 -> 17.14859936 | C20: ='Base original'!C24/'Base original'!C12*100-100 -> 22.5728734 | D20: ='Base original'!D24/'Base original'!D12*100-100 -> 17.64643932 | E20: ='Base original'!E24/'Base original'!E12*100-100 -> 25.44007659 | F20: ='Base original'!F24/'Base original'!F12*100-100 -> 18.66457983 | G20: ='Base original'!G24 -> 28.68203617 | K20: ='Base original'!K24 -> 9.948701138 | N20: ='Base original'!N24 -> 6.092187817 | Q20: ='Base original'!Q24 -> 4.58 | R20: =('Base original'!S24/'Base original'!S12*100-100)*'Base original'!S12/'Base original'!$V12 -> 3.383511937 | S20: =('Base original'!T24/'Base original'!T12*100-100)*'Base original'!T12/'Base original'!$V12 -> 8.132616711 | T20: =('Base original'!U24/'Base original'!U12*100-100)*'Base original'!U12/'Base original'!$V12 -> 4.26303957 | U20: =('Base original'!V24/'Base original'!V12*100-100)*'Base original'!V12/'Base original'!$V12 -> 15.77916822 | V20: =('Base original'!V24/'Base original'!V12*100-100)*'Base original'!V12/('Base original'!$AC12) -> 3.58934302 | W20: =('Base original'!W24/'Base original'!W12*100-100)*'Base original'!W12/('Base original'!$AC12) -> 15.32803492 | X20: =('Base original'!X24/'Base original'!X12*100-100)*'Base original'!X12/('Base original'!$AC12) -> 0.1096930373 | Y20: =('Base original'!Y24/'Base original'!Y12*100-100)*'Base original'!Y12/('Base original'!$AC12) -> 3.040606615 | Z20: =('Base original'!Z24/'Base original'!Z12*100-100)*'Base original'!Z12/('Base original'!$AC12) -> 0.149803321 | AA20: =-('Base original'!AA24/'Base original'!AA12*100-100)*'Base original'!AA12/('Base original'!$AC12) -> -3.324783906 | AB20: =-('Base original'!AB24/'Base original'!AB12*100-100)*'Base original'!AB12/('Base original'!$AC12) -> -0.01883465613 | AC20: =(('Base original'!Y24-'Base original'!AA24)/('Base original'!Y12-'Base original'!AA12)*100-100)*(('Base original'!Y12-'Base original'!AA12)/'Base original'!AC12) -> -0.2841772917 | AD20: =(('Base original'!Z24-'Base original'!AB24)/('Base original'!Z12-'Base original'!AB12)*100-100)*(('Base original'!Z12-'Base original'!AB12)/'Base original'!AC12) -> 0.1309686649 | AE20: =('Base original'!AC24/'Base original'!AC12*100-100)*'Base original'!AC12/('Base original'!$AC12) -> 18.87386235 | AF20: =('Base original'!AC24/'Base original'!AC12*100-100)*'Base original'!AC12/('Base original'!$AN12) -> 10.7150281 | AG20: =('Base original'!AD24/'Base original'!AD12*100-100)*'Base original'!AD12/('Base original'!$AN12) -> 0.6436705388 | AH20: =('Base original'!AE24/'Base original'!AE12*100-100)*'Base original'!AE12/('Base original'!$AN12) -> -2.241170381 | AI20: =('Base original'!AF24/'Base original'!AF12*100-100)*'Base original'!AF12/('Base original'!$AN12) -> -0.0061932524 | AJ20: =('Base original'!AG24/'Base original'!AG12*100-100)*'Base original'!AG12/('Base original'!$AN12) -> 0.1641040802 | AK20: =('Base original'!AH24/'Base original'!AH12*100-100)*'Base original'!AH12/('Base original'!$AN12) -> 0.009221444872 | AL20: =('Base original'!AI24/'Base original'!AI12*100-100)*'Base original'!AI12/('Base original'!$AN12) -> 2.085945577 | AM20: =('Base original'!AJ24/'Base original'!AJ12*100-100)*'Base original'!AJ12/('Base original'!$AN12) -> 1.855991142 | AN20: =('Base original'!AK24/'Base original'!AK12*100-100)*'Base original'!AK12/('Base original'!$AN12) -> 0.2498857584 | AO20: =-('Base original'!AL24/'Base original'!AL12*100-100)*'Base original'!AL12/('Base original'!$AN12) -> -0.5974606639 | AP20: =-('Base original'!AM24/'Base original'!AM12*100-100)*'Base original'!AM12/('Base original'!$AN12) -> -0.0704183063 | AQ20: =(('Base original'!AJ24-'Base original'!AL24)/('Base original'!AJ12-'Base original'!AL12)*100-100)*(('Base original'!AJ12-'Base original'!AL12)/'Base original'!AN12) -> 1.258530478 | AR20: =(('Base original'!AK24-'Base original'!AM24)/('Base original'!AK12-'Base original'!AM12)*100-100)*(('Base original'!AK12-'Base original'!AM12)/'Base original'!AN12) -> 0.1794674521 | AS20: =('Base original'!AN24/'Base original'!AN12*100-100)*'Base original'!AN12/('Base original'!$AN12) -> 12.80860404
A21: 2007-03-01 | B21: ='Base original'!B25/'Base original'!B13*100-100 -> 16.07735532 | C21: ='Base original'!C25/'Base original'!C13*100-100 -> 21.01775333 | D21: ='Base original'!D25/'Base original'!D13*100-100 -> 17.78992747 | E21: ='Base original'!E25/'Base original'!E13*100-100 -> 21.75534482 | F21: ='Base original'!F25/'Base original'!F13*100-100 -> 17.56350979 | G21: ='Base original'!G25 -> 26.98843784 | K21: ='Base original'!K25 -> 9.818966191 | N21: ='Base original'!N25 -> 5.992904891 | Q21: ='Base original'!Q25 -> 4.56 | R21: =('Base original'!S25/'Base original'!S13*100-100)*'Base original'!S13/'Base original'!$V13 -> 3.439183615 | S21: =('Base original'!T25/'Base original'!T13*100-100)*'Base original'!T13/'Base original'!$V13 -> 8.104562854 | T21: =('Base original'!U25/'Base original'!U13*100-100)*'Base original'!U13/'Base original'!$V13 -> 4.928656503 | U21: =('Base original'!V25/'Base original'!V13*100-100)*'Base original'!V13/'Base original'!$V13 -> 16.47240297 | V21: =('Base original'!V25/'Base original'!V13*100-100)*'Base original'!V13/('Base original'!$AC13) -> 3.697739048 | W21: =('Base original'!W25/'Base original'!W13*100-100)*'Base original'!W13/('Base original'!$AC13) -> 15.90657504 | X21: =('Base original'!X25/'Base original'!X13*100-100)*'Base original'!X13/('Base original'!$AC13) -> 0.1141224185 | Y21: =('Base original'!Y25/'Base original'!Y13*100-100)*'Base original'!Y13/('Base original'!$AC13) -> 3.012617479 | Z21: =('Base original'!Z25/'Base original'!Z13*100-100)*'Base original'!Z13/('Base original'!$AC13) -> 0.1459504554 | AA21: =-('Base original'!AA25/'Base original'!AA13*100-100)*'Base original'!AA13/('Base original'!$AC13) -> -3.252712231 | AB21: =-('Base original'!AB25/'Base original'!AB13*100-100)*'Base original'!AB13/('Base original'!$AC13) -> -0.01711985147 | AC21: =(('Base original'!Y25-'Base original'!AA25)/('Base original'!Y13-'Base original'!AA13)*100-100)*(('Base original'!Y13-'Base original'!AA13)/'Base original'!AC13) -> -0.2400947517 | AD21: =(('Base original'!Z25-'Base original'!AB25)/('Base original'!Z13-'Base original'!AB13)*100-100)*(('Base original'!Z13-'Base original'!AB13)/'Base original'!AC13) -> 0.128830604 | AE21: =('Base original'!AC25/'Base original'!AC13*100-100)*'Base original'!AC13/('Base original'!$AC13) -> 19.60717235 | AF21: =('Base original'!AC25/'Base original'!AC13*100-100)*'Base original'!AC13/('Base original'!$AN13) -> 11.18613746 | AG21: =('Base original'!AD25/'Base original'!AD13*100-100)*'Base original'!AD13/('Base original'!$AN13) -> 0.7589962965 | AH21: =('Base original'!AE25/'Base original'!AE13*100-100)*'Base original'!AE13/('Base original'!$AN13) -> -2.051156789 | AI21: =('Base original'!AF25/'Base original'!AF13*100-100)*'Base original'!AF13/('Base original'!$AN13) -> -0.04659326458 | AJ21: =('Base original'!AG25/'Base original'!AG13*100-100)*'Base original'!AG13/('Base original'!$AN13) -> 0.09189557469 | AK21: =('Base original'!AH25/'Base original'!AH13*100-100)*'Base original'!AH13/('Base original'!$AN13) -> 0.02660045656 | AL21: =('Base original'!AI25/'Base original'!AI13*100-100)*'Base original'!AI13/('Base original'!$AN13) -> 2.023724006 | AM21: =('Base original'!AJ25/'Base original'!AJ13*100-100)*'Base original'!AJ13/('Base original'!$AN13) -> 1.975839787 | AN21: =('Base original'!AK25/'Base original'!AK13*100-100)*'Base original'!AK13/('Base original'!$AN13) -> 0.2446698443 | AO21: =-('Base original'!AL25/'Base original'!AL13*100-100)*'Base original'!AL13/('Base original'!$AN13) -> -0.7064408606 | AP21: =-('Base original'!AM25/'Base original'!AM13*100-100)*'Base original'!AM13/('Base original'!$AN13) -> -0.07584357505 | AQ21: =(('Base original'!AJ25-'Base original'!AL25)/('Base original'!AJ13-'Base original'!AL13)*100-100)*(('Base original'!AJ13-'Base original'!AL13)/'Base original'!AN13) -> 1.269398927 | AR21: =(('Base original'!AK25-'Base original'!AM25)/('Base original'!AK13-'Base original'!AM13)*100-100)*(('Base original'!AK13-'Base original'!AM13)/'Base original'!AN13) -> 0.1688262693 | AS21: =('Base original'!AN25/'Base original'!AN13*100-100)*'Base original'!AN13/('Base original'!$AN13) -> 13.42782894
A22: 2007-04-01 | B22: ='Base original'!B26/'Base original'!B14*100-100 -> 15.2637193 | C22: ='Base original'!C26/'Base original'!C14*100-100 -> 20.40501776 | D22: ='Base original'!D26/'Base original'!D14*100-100 -> 18.23745499 | E22: ='Base original'!E26/'Base original'!E14*100-100 -> 24.63912784 | F22: ='Base original'!F26/'Base original'!F14*100-100 -> 17.35272767 | G22: ='Base original'!G26 -> 27.73739058 | K22: ='Base original'!K26 -> 9.949041121 | N22: ='Base original'!N26 -> 6.026521309 | Q22: ='Base original'!Q26 -> 4.54 | R22: =('Base original'!S26/'Base original'!S14*100-100)*'Base original'!S14/'Base original'!$V14 -> 3.429518741 | S22: =('Base original'!T26/'Base original'!T14*100-100)*'Base original'!T14/'Base original'!$V14 -> 8.758433028 | T22: =('Base original'!U26/'Base original'!U14*100-100)*'Base original'!U14/'Base original'!$V14 -> 5.612808775 | U22: =('Base original'!V26/'Base original'!V14*100-100)*'Base original'!V14/'Base original'!$V14 -> 17.80076054 | V22: =('Base original'!V26/'Base original'!V14*100-100)*'Base original'!V14/('Base original'!$AC14) -> 3.985521268 | W22: =('Base original'!W26/'Base original'!W14*100-100)*'Base original'!W14/('Base original'!$AC14) -> 15.37884412 | X22: =('Base original'!X26/'Base original'!X14*100-100)*'Base original'!X14/('Base original'!$AC14) -> 0.1095638672 | Y22: =('Base original'!Y26/'Base original'!Y14*100-100)*'Base original'!Y14/('Base original'!$AC14) -> 3.029380825 | Z22: =('Base original'!Z26/'Base original'!Z14*100-100)*'Base original'!Z14/('Base original'!$AC14) -> 0.1596108357 | AA22: =-('Base original'!AA26/'Base original'!AA14*100-100)*'Base original'!AA14/('Base original'!$AC14) -> -2.998390991 | AB22: =-('Base original'!AB26/'Base original'!AB14*100-100)*'Base original'!AB14/('Base original'!$AC14) -> -0.008678326115 | AC22: =(('Base original'!Y26-'Base original'!AA26)/('Base original'!Y14-'Base original'!AA14)*100-100)*(('Base original'!Y14-'Base original'!AA14)/'Base original'!AC14) -> 0.03098983346 | AD22: =(('Base original'!Z26-'Base original'!AB26)/('Base original'!Z14-'Base original'!AB14)*100-100)*(('Base original'!Z14-'Base original'!AB14)/'Base original'!AC14) -> 0.1509325096 | AE22: =('Base original'!AC26/'Base original'!AC14*100-100)*'Base original'!AC14/('Base original'!$AC14) -> 19.6558516 | AF22: =('Base original'!AC26/'Base original'!AC14*100-100)*'Base original'!AC14/('Base original'!$AN14) -> 11.29696333 | AG22: =('Base original'!AD26/'Base original'!AD14*100-100)*'Base original'!AD14/('Base original'!$AN14) -> 0.7855052907 | AH22: =('Base original'!AE26/'Base original'!AE14*100-100)*'Base original'!AE14/('Base original'!$AN14) -> -2.026885391 | AI22: =('Base original'!AF26/'Base original'!AF14*100-100)*'Base original'!AF14/('Base original'!$AN14) -> -0.09385756971 | AJ22: =('Base original'!AG26/'Base original'!AG14*100-100)*'Base original'!AG14/('Base original'!$AN14) -> -0.3395217544 | AK22: =('Base original'!AH26/'Base original'!AH14*100-100)*'Base original'!AH14/('Base original'!$AN14) -> 0.07014884429 | AL22: =('Base original'!AI26/'Base original'!AI14*100-100)*'Base original'!AI14/('Base original'!$AN14) -> 1.770908669 | AM22: =('Base original'!AJ26/'Base original'!AJ14*100-100)*'Base original'!AJ14/('Base original'!$AN14) -> 2.369069533 | AN22: =('Base original'!AK26/'Base original'!AK14*100-100)*'Base original'!AK14/('Base original'!$AN14) -> 0.2568866517 | AO22: =-('Base original'!AL26/'Base original'!AL14*100-100)*'Base original'!AL14/('Base original'!$AN14) -> -0.7872914492 | AP22: =-('Base original'!AM26/'Base original'!AM14*100-100)*'Base original'!AM14/('Base original'!$AN14) -> -0.07613078993 | AQ22: =(('Base original'!AJ26-'Base original'!AL26)/('Base original'!AJ14-'Base original'!AL14)*100-100)*(('Base original'!AJ14-'Base original'!AL14)/'Base original'!AN14) -> 1.581778084 | AR22: =(('Base original'!AK26-'Base original'!AM26)/('Base original'!AK14-'Base original'!AM14)*100-100)*(('Base original'!AK14-'Base original'!AM14)/'Base original'!AN14) -> 0.1807558618 | AS22: =('Base original'!AN26/'Base original'!AN14*100-100)*'Base original'!AN14/('Base original'!$AN14) -> 13.22579536
A23: 2007-05-01 | B23: ='Base original'!B27/'Base original'!B15*100-100 -> 16.38686719 | C23: ='Base original'!C27/'Base original'!C15*100-100 -> 19.58556621 | D23: ='Base original'!D27/'Base original'!D15*100-100 -> 18.58973613 | E23: ='Base original'!E27/'Base original'!E15*100-100 -> 21.97933134 | F23: ='Base original'!F27/'Base original'!F15*100-100 -> 17.76245734 | G23: ='Base original'!G27 -> 27.88672215 | K23: ='Base original'!K27 -> 10.02925436 | N23: ='Base original'!N27 -> 6.07313798 | Q23: ='Base original'!Q27 -> 4.39 | R23: =('Base original'!S27/'Base original'!S15*100-100)*'Base original'!S15/'Base original'!$V15 -> 3.468242644 | S23: =('Base original'!T27/'Base original'!T15*100-100)*'Base original'!T15/'Base original'!$V15 -> 8.998848684 | T23: =('Base original'!U27/'Base original'!U15*100-100)*'Base original'!U15/'Base original'!$V15 -> 5.119068967 | U23: =('Base original'!V27/'Base original'!V15*100-100)*'Base original'!V15/'Base original'!$V15 -> 17.5861603 | V23: =('Base original'!V27/'Base original'!V15*100-100)*'Base original'!V15/('Base original'!$AC15) -> 3.925785012 | W23: =('Base original'!W27/'Base original'!W15*100-100)*'Base original'!W15/('Base original'!$AC15) -> 15.85575064 | X23: =('Base original'!X27/'Base original'!X15*100-100)*'Base original'!X15/('Base original'!$AC15) -> 0.1004253719 | Y23: =('Base original'!Y27/'Base original'!Y15*100-100)*'Base original'!Y15/('Base original'!$AC15) -> 3.273310173 | Z23: =('Base original'!Z27/'Base original'!Z15*100-100)*'Base original'!Z15/('Base original'!$AC15) -> 0.1870429804 | AA23: =-('Base original'!AA27/'Base original'!AA15*100-100)*'Base original'!AA15/('Base original'!$AC15) -> -3.054764607 | AB23: =-('Base original'!AB27/'Base original'!AB15*100-100)*'Base original'!AB15/('Base original'!$AC15) -> -0.01511311923 | AC23: =(('Base original'!Y27-'Base original'!AA27)/('Base original'!Y15-'Base original'!AA15)*100-100)*(('Base original'!Y15-'Base original'!AA15)/'Base original'!AC15) -> 0.2185455668 | AD23: =(('Base original'!Z27-'Base original'!AB27)/('Base original'!Z15-'Base original'!AB15)*100-100)*(('Base original'!Z15-'Base original'!AB15)/'Base original'!AC15) -> 0.1719298612 | AE23: =('Base original'!AC27/'Base original'!AC15*100-100)*'Base original'!AC15/('Base original'!$AC15) -> 20.27243646 | AF23: =('Base original'!AC27/'Base original'!AC15*100-100)*'Base original'!AC15/('Base original'!$AN15) -> 11.6804038 | AG23: =('Base original'!AD27/'Base original'!AD15*100-100)*'Base original'!AD15/('Base original'!$AN15) -> 0.7474793901 | AH23: =('Base original'!AE27/'Base original'!AE15*100-100)*'Base original'!AE15/('Base original'!$AN15) -> -1.880356165 | AI23: =('Base original'!AF27/'Base original'!AF15*100-100)*'Base original'!AF15/('Base original'!$AN15) -> 0.003676977524 | AJ23: =('Base original'!AG27/'Base original'!AG15*100-100)*'Base original'!AG15/('Base original'!$AN15) -> -0.200579124 | AK23: =('Base original'!AH27/'Base original'!AH15*100-100)*'Base original'!AH15/('Base original'!$AN15) -> 0.09728948259 | AL23: =('Base original'!AI27/'Base original'!AI15*100-100)*'Base original'!AI15/('Base original'!$AN15) -> 1.763545275 | AM23: =('Base original'!AJ27/'Base original'!AJ15*100-100)*'Base original'!AJ15/('Base original'!$AN15) -> 2.600157943 | AN23: =('Base original'!AK27/'Base original'!AK15*100-100)*'Base original'!AK15/('Base original'!$AN15) -> 0.2845312063 | AO23: =-('Base original'!AL27/'Base original'!AL15*100-100)*'Base original'!AL15/('Base original'!$AN15) -> -0.7064643772 | AP23: =-('Base original'!AM27/'Base original'!AM15*100-100)*'Base original'!AM15/('Base original'!$AN15) -> -0.06885976091 | AQ23: =(('Base original'!AJ27-'Base original'!AL27)/('Base original'!AJ15-'Base original'!AL15)*100-100)*(('Base original'!AJ15-'Base original'!AL15)/'Base original'!AN15) -> 1.893693566 | AR23: =(('Base original'!AK27-'Base original'!AM27)/('Base original'!AK15-'Base original'!AM15)*100-100)*(('Base original'!AK15-'Base original'!AM15)/'Base original'!AN15) -> 0.2156714453 | AS23: =('Base original'!AN27/'Base original'!AN15*100-100)*'Base original'!AN15/('Base original'!$AN15) -> 14.32082465
A24: 2007-06-01 | B24: ='Base original'!B28/'Base original'!B16*100-100 -> 16.89509453 | C24: ='Base original'!C28/'Base original'!C16*100-100 -> 18.78566119 | D24: ='Base original'!D28/'Base original'!D16*100-100 -> 19.50113262 | E24: ='Base original'!E28/'Base original'!E16*100-100 -> 12.48910373 | F24: ='Base original'!F28/'Base original'!F16*100-100 -> 17.24185689 | G24: ='Base original'!G28 -> 27.94304786 | K24: ='Base original'!K28 -> 9.824916651 | N24: ='Base original'!N28 -> 6.135268702 | Q24: ='Base original'!Q28 -> 4.42 | R24: =('Base original'!S28/'Base original'!S16*100-100)*'Base original'!S16/'Base original'!$V16 -> 3.212815464 | S24: =('Base original'!T28/'Base original'!T16*100-100)*'Base original'!T16/'Base original'!$V16 -> 7.708072311 | T24: =('Base original'!U28/'Base original'!U16*100-100)*'Base original'!U16/'Base original'!$V16 -> 5.328441024 | U24: =('Base original'!V28/'Base original'!V16*100-100)*'Base original'!V16/'Base original'!$V16 -> 16.2493288 | V24: =('Base original'!V28/'Base original'!V16*100-100)*'Base original'!V16/('Base original'!$AC16) -> 3.622935787 | W24: =('Base original'!W28/'Base original'!W16*100-100)*'Base original'!W16/('Base original'!$AC16) -> 16.30014677 | X24: =('Base original'!X28/'Base original'!X16*100-100)*'Base original'!X16/('Base original'!$AC16) -> 0.0779322138 | Y24: =('Base original'!Y28/'Base original'!Y16*100-100)*'Base original'!Y16/('Base original'!$AC16) -> 3.594858526 | Z24: =('Base original'!Z28/'Base original'!Z16*100-100)*'Base original'!Z16/('Base original'!$AC16) -> 0.2129596084 | AA24: =-('Base original'!AA28/'Base original'!AA16*100-100)*'Base original'!AA16/('Base original'!$AC16) -> -3.512337034 | AB24: =-('Base original'!AB28/'Base original'!AB16*100-100)*'Base original'!AB16/('Base original'!$AC16) -> -0.02645248515 | AC24: =(('Base original'!Y28-'Base original'!AA28)/('Base original'!Y16-'Base original'!AA16)*100-100)*(('Base original'!Y16-'Base original'!AA16)/'Base original'!AC16) -> 0.08252149193 | AD24: =(('Base original'!Z28-'Base original'!AB28)/('Base original'!Z16-'Base original'!AB16)*100-100)*(('Base original'!Z16-'Base original'!AB16)/'Base original'!AC16) -> 0.1865071232 | AE24: =('Base original'!AC28/'Base original'!AC16*100-100)*'Base original'!AC16/('Base original'!$AC16) -> 20.27004339 | AF24: =('Base original'!AC28/'Base original'!AC16*100-100)*'Base original'!AC16/('Base original'!$AN16) -> 11.75786739 | AG24: =('Base original'!AD28/'Base original'!AD16*100-100)*'Base original'!AD16/('Base original'!$AN16) -> 0.5010795408 | AH24: =('Base original'!AE28/'Base original'!AE16*100-100)*'Base original'!AE16/('Base original'!$AN16) -> -1.921976104 | AI24: =('Base original'!AF28/'Base original'!AF16*100-100)*'Base original'!AF16/('Base original'!$AN16) -> 0.1259767372 | AJ24: =('Base original'!AG28/'Base original'!AG16*100-100)*'Base original'!AG16/('Base original'!$AN16) -> -0.3399668846 | AK24: =('Base original'!AH28/'Base original'!AH16*100-100)*'Base original'!AH16/('Base original'!$AN16) -> 0.1089130815 | AL24: =('Base original'!AI28/'Base original'!AI16*100-100)*'Base original'!AI16/('Base original'!$AN16) -> 1.865031113 | AM24: =('Base original'!AJ28/'Base original'!AJ16*100-100)*'Base original'!AJ16/('Base original'!$AN16) -> 2.947961472 | AN24: =('Base original'!AK28/'Base original'!AK16*100-100)*'Base original'!AK16/('Base original'!$AN16) -> 0.3267723136 | AO24: =-('Base original'!AL28/'Base original'!AL16*100-100)*'Base original'!AL16/('Base original'!$AN16) -> -0.6374895791 | AP24: =-('Base original'!AM28/'Base original'!AM16*100-100)*'Base original'!AM16/('Base original'!$AN16) -> -0.07361181704 | AQ24: =(('Base original'!AJ28-'Base original'!AL28)/('Base original'!AJ16-'Base original'!AL16)*100-100)*(('Base original'!AJ16-'Base original'!AL16)/'Base original'!AN16) -> 2.310471893 | AR24: =(('Base original'!AK28-'Base original'!AM28)/('Base original'!AK16-'Base original'!AM16)*100-100)*(('Base original'!AK16-'Base original'!AM16)/'Base original'!AN16) -> 0.2531604966 | AS24: =('Base original'!AN28/'Base original'!AN16*100-100)*'Base original'!AN16/('Base original'!$AN16) -> 14.66055726
A25: 2007-07-01 | B25: ='Base original'!B29/'Base original'!B17*100-100 -> 17.24830532 | C25: ='Base original'!C29/'Base original'!C17*100-100 -> 18.4423871 | D25: ='Base original'!D29/'Base original'!D17*100-100 -> 19.62536295 | E25: ='Base original'!E29/'Base original'!E17*100-100 -> 16.83053086 | F25: ='Base original'!F29/'Base original'!F17*100-100 -> 17.85595629 | G25: ='Base original'!G29 -> 28.85455598 | K25: ='Base original'!K29 -> 9.985638792 | N25: ='Base original'!N29 -> 6.062530955 | Q25: ='Base original'!Q29 -> 4.51 | R25: =('Base original'!S29/'Base original'!S17*100-100)*'Base original'!S17/'Base original'!$V17 -> 3.211884232 | S25: =('Base original'!T29/'Base original'!T17*100-100)*'Base original'!T17/'Base original'!$V17 -> 9.968284269 | T25: =('Base original'!U29/'Base original'!U17*100-100)*'Base original'!U17/'Base original'!$V17 -> 5.688025914 | U25: =('Base original'!V29/'Base original'!V17*100-100)*'Base original'!V17/'Base original'!$V17 -> 18.86819441 | V25: =('Base original'!V29/'Base original'!V17*100-100)*'Base original'!V17/('Base original'!$AC17) -> 4.120281554 | W25: =('Base original'!W29/'Base original'!W17*100-100)*'Base original'!W17/('Base original'!$AC17) -> 16.67206194 | X25: =('Base original'!X29/'Base original'!X17*100-100)*'Base original'!X17/('Base original'!$AC17) -> 0.06488520572 | Y25: =('Base original'!Y29/'Base original'!Y17*100-100)*'Base original'!Y17/('Base original'!$AC17) -> 3.299206839 | Z25: =('Base original'!Z29/'Base original'!Z17*100-100)*'Base original'!Z17/('Base original'!$AC17) -> 0.2360288096 | AA25: =-('Base original'!AA29/'Base original'!AA17*100-100)*'Base original'!AA17/('Base original'!$AC17) -> -2.869601466 | AB25: =-('Base original'!AB29/'Base original'!AB17*100-100)*'Base original'!AB17/('Base original'!$AC17) -> -0.02558493232 | AC25: =(('Base original'!Y29-'Base original'!AA29)/('Base original'!Y17-'Base original'!AA17)*100-100)*(('Base original'!Y17-'Base original'!AA17)/'Base original'!AC17) -> 0.429605373 | AD25: =(('Base original'!Z29-'Base original'!AB29)/('Base original'!Z17-'Base original'!AB17)*100-100)*(('Base original'!Z17-'Base original'!AB17)/'Base original'!AC17) -> 0.2104438773 | AE25: =('Base original'!AC29/'Base original'!AC17*100-100)*'Base original'!AC17/('Base original'!$AC17) -> 21.49727794 | AF25: =('Base original'!AC29/'Base original'!AC17*100-100)*'Base original'!AC17/('Base original'!$AN17) -> 12.54689658 | AG25: =('Base original'!AD29/'Base original'!AD17*100-100)*'Base original'!AD17/('Base original'!$AN17) -> 0.490540302 | AH25: =('Base original'!AE29/'Base original'!AE17*100-100)*'Base original'!AE17/('Base original'!$AN17) -> -1.772097143 | AI25: =('Base original'!AF29/'Base original'!AF17*100-100)*'Base original'!AF17/('Base original'!$AN17) -> 0.1616406367 | AJ25: =('Base original'!AG29/'Base original'!AG17*100-100)*'Base original'!AG17/('Base original'!$AN17) -> -0.3941492487 | AK25: =('Base original'!AH29/'Base original'!AH17*100-100)*'Base original'!AH17/('Base original'!$AN17) -> 0.08590007383 | AL25: =('Base original'!AI29/'Base original'!AI17*100-100)*'Base original'!AI17/('Base original'!$AN17) -> 1.953924215 | AM25: =('Base original'!AJ29/'Base original'!AJ17*100-100)*'Base original'!AJ17/('Base original'!$AN17) -> 3.254474204 | AN25: =('Base original'!AK29/'Base original'!AK17*100-100)*'Base original'!AK17/('Base original'!$AN17) -> 0.3570910652 | AO25: =-('Base original'!AL29/'Base original'!AL17*100-100)*'Base original'!AL17/('Base original'!$AN17) -> -0.5293552688 | AP25: =-('Base original'!AM29/'Base original'!AM17*100-100)*'Base original'!AM17/('Base original'!$AN17) -> -0.08097776592 | AQ25: =(('Base original'!AJ29-'Base original'!AL29)/('Base original'!AJ17-'Base original'!AL17)*100-100)*(('Base original'!AJ17-'Base original'!AL17)/'Base original'!AN17) -> 2.725118935 | AR25: =(('Base original'!AK29-'Base original'!AM29)/('Base original'!AK17-'Base original'!AM17)*100-100)*(('Base original'!AK17-'Base original'!AM17)/'Base original'!AN17) -> 0.2761132993 | AS25: =('Base original'!AN29/'Base original'!AN17*100-100)*'Base original'!AN17/('Base original'!$AN17) -> 16.07388765
A26: 2007-08-01 | B26: ='Base original'!B30/'Base original'!B18*100-100 -> 18.04252988 | C26: ='Base original'!C30/'Base original'!C18*100-100 -> 17.64587823 | D26: ='Base original'!D30/'Base original'!D18*100-100 -> 19.91402681 | E26: ='Base original'!E30/'Base original'!E18*100-100 -> 18.47280879 | F26: ='Base original'!F30/'Base original'!F18*100-100 -> 18.422651 | G26: ='Base original'!G30 -> 27.59263685 | K26: ='Base original'!K30 -> 9.911397133 | N26: ='Base original'!N30 -> 6.19990909 | Q26: ='Base original'!Q30 -> 4.69 | R26: =('Base original'!S30/'Base original'!S18*100-100)*'Base original'!S18/'Base original'!$V18 -> 3.199440033 | S26: =('Base original'!T30/'Base original'!T18*100-100)*'Base original'!T18/'Base original'!$V18 -> 9.768347483 | T26: =('Base original'!U30/'Base original'!U18*100-100)*'Base original'!U18/'Base original'!$V18 -> 6.148670796 | U26: =('Base original'!V30/'Base original'!V18*100-100)*'Base original'!V18/'Base original'!$V18 -> 19.11645831 | V26: =('Base original'!V30/'Base original'!V18*100-100)*'Base original'!V18/('Base original'!$AC18) -> 4.069407831 | W26: =('Base original'!W30/'Base original'!W18*100-100)*'Base original'!W18/('Base original'!$AC18) -> 15.40493229 | X26: =('Base original'!X30/'Base original'!X18*100-100)*'Base original'!X18/('Base original'!$AC18) -> 0.06607860324 | Y26: =('Base original'!Y30/'Base original'!Y18*100-100)*'Base original'!Y18/('Base original'!$AC18) -> 4.463544321 | Z26: =('Base original'!Z30/'Base original'!Z18*100-100)*'Base original'!Z18/('Base original'!$AC18) -> 0.258754581 | AA26: =-('Base original'!AA30/'Base original'!AA18*100-100)*'Base original'!AA18/('Base original'!$AC18) -> -5.135950402 | AB26: =-('Base original'!AB30/'Base original'!AB18*100-100)*'Base original'!AB18/('Base original'!$AC18) -> -0.02782695912 | AC26: =(('Base original'!Y30-'Base original'!AA30)/('Base original'!Y18-'Base original'!AA18)*100-100)*(('Base original'!Y18-'Base original'!AA18)/'Base original'!AC18) -> -0.6724060812 | AD26: =(('Base original'!Z30-'Base original'!AB30)/('Base original'!Z18-'Base original'!AB18)*100-100)*(('Base original'!Z18-'Base original'!AB18)/'Base original'!AC18) -> 0.2309276218 | AE26: =('Base original'!AC30/'Base original'!AC18*100-100)*'Base original'!AC18/('Base original'!$AC18) -> 19.09894027 | AF26: =('Base original'!AC30/'Base original'!AC18*100-100)*'Base original'!AC18/('Base original'!$AN18) -> 11.22746036 | AG26: =('Base original'!AD30/'Base original'!AD18*100-100)*'Base original'!AD18/('Base original'!$AN18) -> 0.589977154 | AH26: =('Base original'!AE30/'Base original'!AE18*100-100)*'Base original'!AE18/('Base original'!$AN18) -> -2.060001111 | AI26: =('Base original'!AF30/'Base original'!AF18*100-100)*'Base original'!AF18/('Base original'!$AN18) -> 0.1454923994 | AJ26: =('Base original'!AG30/'Base original'!AG18*100-100)*'Base original'!AG18/('Base original'!$AN18) -> -0.2202731721 | AK26: =('Base original'!AH30/'Base original'!AH18*100-100)*'Base original'!AH18/('Base original'!$AN18) -> 0.05618363125 | AL26: =('Base original'!AI30/'Base original'!AI18*100-100)*'Base original'!AI18/('Base original'!$AN18) -> 1.999993463 | AM26: =('Base original'!AJ30/'Base original'!AJ18*100-100)*'Base original'!AJ18/('Base original'!$AN18) -> 3.073708741 | AN26: =('Base original'!AK30/'Base original'!AK18*100-100)*'Base original'!AK18/('Base original'!$AN18) -> 0.332166518 | AO26: =-('Base original'!AL30/'Base original'!AL18*100-100)*'Base original'!AL18/('Base original'!$AN18) -> -0.008154634087 | AP26: =-('Base original'!AM30/'Base original'!AM18*100-100)*'Base original'!AM18/('Base original'!$AN18) -> -0.07183922134 | AQ26: =(('Base original'!AJ30-'Base original'!AL30)/('Base original'!AJ18-'Base original'!AL18)*100-100)*(('Base original'!AJ18-'Base original'!AL18)/'Base original'!AN18) -> 3.065554107 | AR26: =(('Base original'!AK30-'Base original'!AM30)/('Base original'!AK18-'Base original'!AM18)*100-100)*(('Base original'!AK18-'Base original'!AM18)/'Base original'!AN18) -> 0.2603272966 | AS26: =('Base original'!AN30/'Base original'!AN18*100-100)*'Base original'!AN18/('Base original'!$AN18) -> 15.06471413
A27: 2007-09-01 | B27: ='Base original'!B31/'Base original'!B19*100-100 -> 20.42543216 | C27: ='Base original'!C31/'Base original'!C19*100-100 -> 16.69893249 | D27: ='Base original'!D31/'Base original'!D19*100-100 -> 21.36893863 | E27: ='Base original'!E31/'Base original'!E19*100-100 -> 14.48016208 | F27: ='Base original'!F31/'Base original'!F19*100-100 -> 19.58836974 | G27: ='Base original'!G31 -> 28.88864487 | K27: ='Base original'!K31 -> 10.12611294 | N27: ='Base original'!N31 -> 6.144116389 | Q27: ='Base original'!Q31 -> 4.79 | R27: =('Base original'!S31/'Base original'!S19*100-100)*'Base original'!S19/'Base original'!$V19 -> 3.199995962 | S27: =('Base original'!T31/'Base original'!T19*100-100)*'Base original'!T19/'Base original'!$V19 -> 7.728444507 | T27: =('Base original'!U31/'Base original'!U19*100-100)*'Base original'!U19/'Base original'!$V19 -> 7.799863975 | U27: =('Base original'!V31/'Base original'!V19*100-100)*'Base original'!V19/'Base original'!$V19 -> 18.72830444 | V27: =('Base original'!V31/'Base original'!V19*100-100)*'Base original'!V19/('Base original'!$AC19) -> 4.042700276 | W27: =('Base original'!W31/'Base original'!W19*100-100)*'Base original'!W19/('Base original'!$AC19) -> 14.96301913 | X27: =('Base original'!X31/'Base original'!X19*100-100)*'Base original'!X19/('Base original'!$AC19) -> 0.08582655246 | Y27: =('Base original'!Y31/'Base original'!Y19*100-100)*'Base original'!Y19/('Base original'!$AC19) -> 3.069164053 | Z27: =('Base original'!Z31/'Base original'!Z19*100-100)*'Base original'!Z19/('Base original'!$AC19) -> 0.2105760321 | AA27: =-('Base original'!AA31/'Base original'!AA19*100-100)*'Base original'!AA19/('Base original'!$AC19) -> -4.54766329 | AB27: =-('Base original'!AB31/'Base original'!AB19*100-100)*'Base original'!AB19/('Base original'!$AC19) -> -0.02740130491 | AC27: =(('Base original'!Y31-'Base original'!AA31)/('Base original'!Y19-'Base original'!AA19)*100-100)*(('Base original'!Y19-'Base original'!AA19)/'Base original'!AC19) -> -1.478499237 | AD27: =(('Base original'!Z31-'Base original'!AB31)/('Base original'!Z19-'Base original'!AB19)*100-100)*(('Base original'!Z19-'Base original'!AB19)/'Base original'!AC19) -> 0.1831747272 | AE27: =('Base original'!AC31/'Base original'!AC19*100-100)*'Base original'!AC19/('Base original'!$AC19) -> 17.79622145 | AF27: =('Base original'!AC31/'Base original'!AC19*100-100)*'Base original'!AC19/('Base original'!$AN19) -> 10.43500496 | AG27: =('Base original'!AD31/'Base original'!AD19*100-100)*'Base original'!AD19/('Base original'!$AN19) -> 0.5787651116 | AH27: =('Base original'!AE31/'Base original'!AE19*100-100)*'Base original'!AE19/('Base original'!$AN19) -> -2.725744427 | AI27: =('Base original'!AF31/'Base original'!AF19*100-100)*'Base original'!AF19/('Base original'!$AN19) -> 0.1683686132 | AJ27: =('Base original'!AG31/'Base original'!AG19*100-100)*'Base original'!AG19/('Base original'!$AN19) -> -0.2414050075 | AK27: =('Base original'!AH31/'Base original'!AH19*100-100)*'Base original'!AH19/('Base original'!$AN19) -> 0.04225985113 | AL27: =('Base original'!AI31/'Base original'!AI19*100-100)*'Base original'!AI19/('Base original'!$AN19) -> 2.001768972 | AM27: =('Base original'!AJ31/'Base original'!AJ19*100-100)*'Base original'!AJ19/('Base original'!$AN19) -> 2.934424402 | AN27: =('Base original'!AK31/'Base original'!AK19*100-100)*'Base original'!AK19/('Base original'!$AN19) -> 0.3184501783 | AO27: =-('Base original'!AL31/'Base original'!AL19*100-100)*'Base original'!AL19/('Base original'!$AN19) -> 0.02509078841 | AP27: =-('Base original'!AM31/'Base original'!AM19*100-100)*'Base original'!AM19/('Base original'!$AN19) -> -0.05380704401 | AQ27: =(('Base original'!AJ31-'Base original'!AL31)/('Base original'!AJ19-'Base original'!AL19)*100-100)*(('Base original'!AJ19-'Base original'!AL19)/'Base original'!AN19) -> 2.95951519 | AR27: =(('Base original'!AK31-'Base original'!AM31)/('Base original'!AK19-'Base original'!AM19)*100-100)*(('Base original'!AK19-'Base original'!AM19)/'Base original'!AN19) -> 0.2646431342 | AS27: =('Base original'!AN31/'Base original'!AN19*100-100)*'Base original'!AN19/('Base original'!$AN19) -> 13.48317639
A28: 2007-10-01 | B28: ='Base original'!B32/'Base original'!B20*100-100 -> 21.67826353 | C28: ='Base original'!C32/'Base original'!C20*100-100 -> 16.15653429 | D28: ='Base original'!D32/'Base original'!D20*100-100 -> 22.6689105 | E28: ='Base original'!E32/'Base original'!E20*100-100 -> 14.35357267 | F28: ='Base original'!F32/'Base original'!F20*100-100 -> 20.49779022 | G28: ='Base original'!G32 -> 29.01098504 | K28: ='Base original'!K32 -> 10.15083518 | N28: ='Base original'!N32 -> 5.853360697 | Q28: ='Base original'!Q32 -> 4.83 | R28: =('Base original'!S32/'Base original'!S20*100-100)*'Base original'!S20/'Base original'!$V20 -> 3.068645933 | S28: =('Base original'!T32/'Base original'!T20*100-100)*'Base original'!T20/'Base original'!$V20 -> 9.229194904 | T28: =('Base original'!U32/'Base original'!U20*100-100)*'Base original'!U20/'Base original'!$V20 -> 6.453330095 | U28: =('Base original'!V32/'Base original'!V20*100-100)*'Base original'!V20/'Base original'!$V20 -> 18.75117093 | V28: =('Base original'!V32/'Base original'!V20*100-100)*'Base original'!V20/('Base original'!$AC20) -> 3.96658498 | W28: =('Base original'!W32/'Base original'!W20*100-100)*'Base original'!W20/('Base original'!$AC20) -> 16.0743365 | X28: =('Base original'!X32/'Base original'!X20*100-100)*'Base original'!X20/('Base original'!$AC20) -> 0.1194682066 | Y28: =('Base original'!Y32/'Base original'!Y20*100-100)*'Base original'!Y20/('Base original'!$AC20) -> 2.039705755 | Z28: =('Base original'!Z32/'Base original'!Z20*100-100)*'Base original'!Z20/('Base original'!$AC20) -> 0.1583889859 | AA28: =-('Base original'!AA32/'Base original'!AA20*100-100)*'Base original'!AA20/('Base original'!$AC20) -> -2.742930986 | AB28: =-('Base original'!AB32/'Base original'!AB20*100-100)*'Base original'!AB20/('Base original'!$AC20) -> -0.01601655664 | AC28: =(('Base original'!Y32-'Base original'!AA32)/('Base original'!Y20-'Base original'!AA20)*100-100)*(('Base original'!Y20-'Base original'!AA20)/'Base original'!AC20) -> -0.7032252316 | AD28: =(('Base original'!Z32-'Base original'!AB32)/('Base original'!Z20-'Base original'!AB20)*100-100)*(('Base original'!Z20-'Base original'!AB20)/'Base original'!AC20) -> 0.1423724292 | AE28: =('Base original'!AC32/'Base original'!AC20*100-100)*'Base original'!AC20/('Base original'!$AC20) -> 19.59953689 | AF28: =('Base original'!AC32/'Base original'!AC20*100-100)*'Base original'!AC20/('Base original'!$AN20) -> 11.44433977 | AG28: =('Base original'!AD32/'Base original'!AD20*100-100)*'Base original'!AD20/('Base original'!$AN20) -> 0.7193857675 | AH28: =('Base original'!AE32/'Base original'!AE20*100-100)*'Base original'!AE20/('Base original'!$AN20) -> -2.538948509 | AI28: =('Base original'!AF32/'Base original'!AF20*100-100)*'Base original'!AF20/('Base original'!$AN20) -> 0.1503694361 | AJ28: =('Base original'!AG32/'Base original'!AG20*100-100)*'Base original'!AG20/('Base original'!$AN20) -> -0.3188368281 | AK28: =('Base original'!AH32/'Base original'!AH20*100-100)*'Base original'!AH20/('Base original'!$AN20) -> 0.03578096749 | AL28: =('Base original'!AI32/'Base original'!AI20*100-100)*'Base original'!AI20/('Base original'!$AN20) -> 2.156593282 | AM28: =('Base original'!AJ32/'Base original'!AJ20*100-100)*'Base original'!AJ20/('Base original'!$AN20) -> 3.262356044 | AN28: =('Base original'!AK32/'Base original'!AK20*100-100)*'Base original'!AK20/('Base original'!$AN20) -> 0.3489043316 | AO28: =-('Base original'!AL32/'Base original'!AL20*100-100)*'Base original'!AL20/('Base original'!$AN20) -> -0.4424263965 | AP28: =-('Base original'!AM32/'Base original'!AM20*100-100)*'Base original'!AM20/('Base original'!$AN20) -> -0.05825179811 | AQ28: =(('Base original'!AJ32-'Base original'!AL32)/('Base original'!AJ20-'Base original'!AL20)*100-100)*(('Base original'!AJ20-'Base original'!AL20)/'Base original'!AN20) -> 2.819929648 | AR28: =(('Base original'!AK32-'Base original'!AM32)/('Base original'!AK20-'Base original'!AM20)*100-100)*(('Base original'!AK20-'Base original'!AM20)/'Base original'!AN20) -> 0.2906525335 | AS28: =('Base original'!AN32/'Base original'!AN20*100-100)*'Base original'!AN20/('Base original'!$AN20) -> 14.75926607
A29: 2007-11-01 | B29: ='Base original'!B33/'Base original'!B21*100-100 -> 22.69820311 | C29: ='Base original'!C33/'Base original'!C21*100-100 -> 15.6949176 | D29: ='Base original'!D33/'Base original'!D21*100-100 -> 23.25184646 | E29: ='Base original'!E33/'Base original'!E21*100-100 -> 18.0280213 | F29: ='Base original'!F33/'Base original'!F21*100-100 -> 21.47102673 | G29: ='Base original'!G33 -> 28.91827827 | K29: ='Base original'!K33 -> 10.16639217 | N29: ='Base original'!N33 -> 5.682430127 | Q29: ='Base original'!Q33 -> 4.81 | R29: =('Base original'!S33/'Base original'!S21*100-100)*'Base original'!S21/'Base original'!$V21 -> 3.01249231 | S29: =('Base original'!T33/'Base original'!T21*100-100)*'Base original'!T21/'Base original'!$V21 -> 6.540031828 | T29: =('Base original'!U33/'Base original'!U21*100-100)*'Base original'!U21/'Base original'!$V21 -> 12.09788948 | U29: =('Base original'!V33/'Base original'!V21*100-100)*'Base original'!V21/'Base original'!$V21 -> 21.65041361 | V29: =('Base original'!V33/'Base original'!V21*100-100)*'Base original'!V21/('Base original'!$AC21) -> 4.613597747 | W29: =('Base original'!W33/'Base original'!W21*100-100)*'Base original'!W21/('Base original'!$AC21) -> 17.5770899 | X29: =('Base original'!X33/'Base original'!X21*100-100)*'Base original'!X21/('Base original'!$AC21) -> 0.1589971102 | Y29: =('Base original'!Y33/'Base original'!Y21*100-100)*'Base original'!Y21/('Base original'!$AC21) -> 4.785190029 | Z29: =('Base original'!Z33/'Base original'!Z21*100-100)*'Base original'!Z21/('Base original'!$AC21) -> 0.140795056 | AA29: =-('Base original'!AA33/'Base original'!AA21*100-100)*'Base original'!AA21/('Base original'!$AC21) -> -5.129241356 | AB29: =-('Base original'!AB33/'Base original'!AB21*100-100)*'Base original'!AB21/('Base original'!$AC21) -> -0.008992681528 | AC29: =(('Base original'!Y33-'Base original'!AA33)/('Base original'!Y21-'Base original'!AA21)*100-100)*(('Base original'!Y21-'Base original'!AA21)/'Base original'!AC21) -> -0.3440513276 | AD29: =(('Base original'!Z33-'Base original'!AB33)/('Base original'!Z21-'Base original'!AB21)*100-100)*(('Base original'!Z21-'Base original'!AB21)/'Base original'!AC21) -> 0.1318023744 | AE29: =('Base original'!AC33/'Base original'!AC21*100-100)*'Base original'!AC21/('Base original'!$AC21) -> 22.1374358 | AF29: =('Base original'!AC33/'Base original'!AC21*100-100)*'Base original'!AC21/('Base original'!$AN21) -> 12.93930942 | AG29: =('Base original'!AD33/'Base original'!AD21*100-100)*'Base original'!AD21/('Base original'!$AN21) -> 0.7375955736 | AH29: =('Base original'!AE33/'Base original'!AE21*100-100)*'Base original'!AE21/('Base original'!$AN21) -> -2.52244419 | AI29: =('Base original'!AF33/'Base original'!AF21*100-100)*'Base original'!AF21/('Base original'!$AN21) -> 0.2359279924 | AJ29: =('Base original'!AG33/'Base original'!AG21*100-100)*'Base original'!AG21/('Base original'!$AN21) -> -0.4321652402 | AK29: =('Base original'!AH33/'Base original'!AH21*100-100)*'Base original'!AH21/('Base original'!$AN21) -> 0.05970235266 | AL29: =('Base original'!AI33/'Base original'!AI21*100-100)*'Base original'!AI21/('Base original'!$AN21) -> 2.361828871 | AM29: =('Base original'!AJ33/'Base original'!AJ21*100-100)*'Base original'!AJ21/('Base original'!$AN21) -> 3.246962558 | AN29: =('Base original'!AK33/'Base original'!AK21*100-100)*'Base original'!AK21/('Base original'!$AN21) -> 0.3282758638 | AO29: =-('Base original'!AL33/'Base original'!AL21*100-100)*'Base original'!AL21/('Base original'!$AN21) -> -0.5804474558 | AP29: =-('Base original'!AM33/'Base original'!AM21*100-100)*'Base original'!AM21/('Base original'!$AN21) -> -0.07019894768 | AQ29: =(('Base original'!AJ33-'Base original'!AL33)/('Base original'!AJ21-'Base original'!AL21)*100-100)*(('Base original'!AJ21-'Base original'!AL21)/'Base original'!AN21) -> 2.666515102 | AR29: =(('Base original'!AK33-'Base original'!AM33)/('Base original'!AK21-'Base original'!AM21)*100-100)*(('Base original'!AK21-'Base original'!AM21)/'Base original'!AN21) -> 0.2580769161 | AS29: =('Base original'!AN33/'Base original'!AN21*100-100)*'Base original'!AN21/('Base original'!$AN21) -> 16.30434679
A30: 2007-12-01 | B30: ='Base original'!B34/'Base original'!B22*100-100 -> 22.59511209 | C30: ='Base original'!C34/'Base original'!C22*100-100 -> 15.33834384 | D30: ='Base original'!D34/'Base original'!D22*100-100 -> 24.37138124 | E30: ='Base original'!E34/'Base original'!E22*100-100 -> 12.43479757 | F30: ='Base original'!F34/'Base original'!F22*100-100 -> 21.08677118 | G30: ='Base original'!G34 -> 29.9564244 | K30: ='Base original'!K34 -> 10.20759446 | N30: ='Base original'!N34 -> 5.890780774 | Q30: ='Base original'!Q34 -> 4.83 | R30: =('Base original'!S34/'Base original'!S22*100-100)*'Base original'!S22/'Base original'!$V22 -> 2.939359681 | S30: =('Base original'!T34/'Base original'!T22*100-100)*'Base original'!T22/'Base original'!$V22 -> 7.90899873 | T30: =('Base original'!U34/'Base original'!U22*100-100)*'Base original'!U22/'Base original'!$V22 -> 7.213901936 | U30: =('Base original'!V34/'Base original'!V22*100-100)*'Base original'!V22/'Base original'!$V22 -> 18.06226035 | V30: =('Base original'!V34/'Base original'!V22*100-100)*'Base original'!V22/('Base original'!$AC22) -> 4.057451944 | W30: =('Base original'!W34/'Base original'!W22*100-100)*'Base original'!W22/('Base original'!$AC22) -> 16.41988302 | X30: =('Base original'!X34/'Base original'!X22*100-100)*'Base original'!X22/('Base original'!$AC22) -> 0.1929813538 | Y30: =('Base original'!Y34/'Base original'!Y22*100-100)*'Base original'!Y22/('Base original'!$AC22) -> 4.092037261 | Z30: =('Base original'!Z34/'Base original'!Z22*100-100)*'Base original'!Z22/('Base original'!$AC22) -> 0.1226063872 | AA30: =-('Base original'!AA34/'Base original'!AA22*100-100)*'Base original'!AA22/('Base original'!$AC22) -> -4.358980401 | AB30: =-('Base original'!AB34/'Base original'!AB22*100-100)*'Base original'!AB22/('Base original'!$AC22) -> -0.009660849212 | AC30: =(('Base original'!Y34-'Base original'!AA34)/('Base original'!Y22-'Base original'!AA22)*100-100)*(('Base original'!Y22-'Base original'!AA22)/'Base original'!AC22) -> -0.2669431397 | AD30: =(('Base original'!Z34-'Base original'!AB34)/('Base original'!Z22-'Base original'!AB22)*100-100)*(('Base original'!Z22-'Base original'!AB22)/'Base original'!AC22) -> 0.1129455379 | AE30: =('Base original'!AC34/'Base original'!AC22*100-100)*'Base original'!AC22/('Base original'!$AC22) -> 20.51631872 | AF30: =('Base original'!AC34/'Base original'!AC22*100-100)*'Base original'!AC22/('Base original'!$AN22) -> 12.13166299 | AG30: =('Base original'!AD34/'Base original'!AD22*100-100)*'Base original'!AD22/('Base original'!$AN22) -> 0.7935293999 | AH30: =('Base original'!AE34/'Base original'!AE22*100-100)*'Base original'!AE22/('Base original'!$AN22) -> -2.78149417 | AI30: =('Base original'!AF34/'Base original'!AF22*100-100)*'Base original'!AF22/('Base original'!$AN22) -> 0.4165421705 | AJ30: =('Base original'!AG34/'Base original'!AG22*100-100)*'Base original'!AG22/('Base original'!$AN22) -> -0.509740114 | AK30: =('Base original'!AH34/'Base original'!AH22*100-100)*'Base original'!AH22/('Base original'!$AN22) -> 0.03918338785 | AL30: =('Base original'!AI34/'Base original'!AI22*100-100)*'Base original'!AI22/('Base original'!$AN22) -> 2.235728871 | AM30: =('Base original'!AJ34/'Base original'!AJ22*100-100)*'Base original'!AJ22/('Base original'!$AN22) -> 2.686407498 | AN30: =('Base original'!AK34/'Base original'!AK22*100-100)*'Base original'!AK22/('Base original'!$AN22) -> 0.2595609169 | AO30: =-('Base original'!AL34/'Base original'!AL22*100-100)*'Base original'!AL22/('Base original'!$AN22) -> -0.4972001913 | AP30: =-('Base original'!AM34/'Base original'!AM22*100-100)*'Base original'!AM22/('Base original'!$AN22) -> -0.07109052431 | AQ30: =(('Base original'!AJ34-'Base original'!AL34)/('Base original'!AJ22-'Base original'!AL22)*100-100)*(('Base original'!AJ22-'Base original'!AL22)/'Base original'!AN22) -> 2.189207307 | AR30: =(('Base original'!AK34-'Base original'!AM34)/('Base original'!AK22-'Base original'!AM22)*100-100)*(('Base original'!AK22-'Base original'!AM22)/'Base original'!AN22) -> 0.1884703926 | AS30: =('Base original'!AN34/'Base original'!AN22*100-100)*'Base original'!AN22/('Base original'!$AN22) -> 14.70309024
A31: 2008-01-01 | B31: ='Base original'!B35/'Base original'!B23*100-100 -> 21.35491589 | C31: ='Base original'!C35/'Base original'!C23*100-100 -> 15.32727926 | D31: ='Base original'!D35/'Base original'!D23*100-100 -> 25.46052031 | E31: ='Base original'!E35/'Base original'!E23*100-100 -> 2.937968793 | F31: ='Base original'!F35/'Base original'!F23*100-100 -> 19.69588787 | G31: ='Base original'!G35 -> 32.06297709 | K31: ='Base original'!K35 -> 10.54607256 | N31: ='Base original'!N35 -> 4.909974714 | Q31: ='Base original'!Q35 -> 4.8 | R31: =('Base original'!S35/'Base original'!S23*100-100)*'Base original'!S23/'Base original'!$V23 -> 2.801458169 | S31: =('Base original'!T35/'Base original'!T23*100-100)*'Base original'!T23/'Base original'!$V23 -> 6.016139948 | T31: =('Base original'!U35/'Base original'!U23*100-100)*'Base original'!U23/'Base original'!$V23 -> 7.245574026 | U31: =('Base original'!V35/'Base original'!V23*100-100)*'Base original'!V23/'Base original'!$V23 -> 16.06317214 | V31: =('Base original'!V35/'Base original'!V23*100-100)*'Base original'!V23/('Base original'!$AC23) -> 3.607298122 | W31: =('Base original'!W35/'Base original'!W23*100-100)*'Base original'!W23/('Base original'!$AC23) -> 18.48034984 | X31: =('Base original'!X35/'Base original'!X23*100-100)*'Base original'!X23/('Base original'!$AC23) -> 0.2227342158 | Y31: =('Base original'!Y35/'Base original'!Y23*100-100)*'Base original'!Y23/('Base original'!$AC23) -> 2.576794773 | Z31: =('Base original'!Z35/'Base original'!Z23*100-100)*'Base original'!Z23/('Base original'!$AC23) -> 0.1500135377 | AA31: =-('Base original'!AA35/'Base original'!AA23*100-100)*'Base original'!AA23/('Base original'!$AC23) -> -2.970794231 | AB31: =-('Base original'!AB35/'Base original'!AB23*100-100)*'Base original'!AB23/('Base original'!$AC23) -> -0.01647517995 | AC31: =(('Base original'!Y35-'Base original'!AA35)/('Base original'!Y23-'Base original'!AA23)*100-100)*(('Base original'!Y23-'Base original'!AA23)/'Base original'!AC23) -> -0.3939994585 | AD31: =(('Base original'!Z35-'Base original'!AB35)/('Base original'!Z23-'Base original'!AB23)*100-100)*(('Base original'!Z23-'Base original'!AB23)/'Base original'!AC23) -> 0.1335383578 | AE31: =('Base original'!AC35/'Base original'!AC23*100-100)*'Base original'!AC23/('Base original'!$AC23) -> 22.04992107 | AF31: =('Base original'!AC35/'Base original'!AC23*100-100)*'Base original'!AC23/('Base original'!$AN23) -> 13.20323173 | AG31: =('Base original'!AD35/'Base original'!AD23*100-100)*'Base original'!AD23/('Base original'!$AN23) -> 0.8842685693 | AH31: =('Base original'!AE35/'Base original'!AE23*100-100)*'Base original'!AE23/('Base original'!$AN23) -> -1.837837854 | AI31: =('Base original'!AF35/'Base original'!AF23*100-100)*'Base original'!AF23/('Base original'!$AN23) -> 0.5472018784 | AJ31: =('Base original'!AG35/'Base original'!AG23*100-100)*'Base original'!AG23/('Base original'!$AN23) -> -0.3384585172 | AK31: =('Base original'!AH35/'Base original'!AH23*100-100)*'Base original'!AH23/('Base original'!$AN23) -> 0.01171581292 | AL31: =('Base original'!AI35/'Base original'!AI23*100-100)*'Base original'!AI23/('Base original'!$AN23) -> 1.940083559 | AM31: =('Base original'!AJ35/'Base original'!AJ23*100-100)*'Base original'!AJ23/('Base original'!$AN23) -> 1.695443314 | AN31: =('Base original'!AK35/'Base original'!AK23*100-100)*'Base original'!AK23/('Base original'!$AN23) -> 0.1648931842 | AO31: =-('Base original'!AL35/'Base original'!AL23*100-100)*'Base original'!AL23/('Base original'!$AN23) -> -0.4107111284 | AP31: =-('Base original'!AM35/'Base original'!AM23*100-100)*'Base original'!AM23/('Base original'!$AN23) -> -0.06997368683 | AQ31: =(('Base original'!AJ35-'Base original'!AL35)/('Base original'!AJ23-'Base original'!AL23)*100-100)*(('Base original'!AJ23-'Base original'!AL23)/'Base original'!AN23) -> 1.284732185 | AR31: =(('Base original'!AK35-'Base original'!AM35)/('Base original'!AK23-'Base original'!AM23)*100-100)*(('Base original'!AK23-'Base original'!AM23)/'Base original'!AN23) -> 0.09491949738 | AS31: =('Base original'!AN35/'Base original'!AN23*100-100)*'Base original'!AN23/('Base original'!$AN23) -> 15.78985686
A32: 2008-02-01 | B32: ='Base original'!B36/'Base original'!B24*100-100 -> 21.17543487 | C32: ='Base original'!C36/'Base original'!C24*100-100 -> 15.17123318 | D32: ='Base original'!D36/'Base original'!D24*100-100 -> 25.15165791 | E32: ='Base original'!E36/'Base original'!E24*100-100 -> 4.311551383 | F32: ='Base original'!F36/'Base original'!F24*100-100 -> 19.64871402 | G32: ='Base original'!G36 -> 31.96068943 | K32: ='Base original'!K36 -> 10.52429586 | N32: ='Base original'!N36 -> 4.19445297 | Q32: ='Base original'!Q36 -> 4.9 | R32: =('Base original'!S36/'Base original'!S24*100-100)*'Base original'!S24/'Base original'!$V24 -> 2.915518614 | S32: =('Base original'!T36/'Base original'!T24*100-100)*'Base original'!T24/'Base original'!$V24 -> 6.1048534 | T32: =('Base original'!U36/'Base original'!U24*100-100)*'Base original'!U24/'Base original'!$V24 -> 7.197600762 | U32: =('Base original'!V36/'Base original'!V24*100-100)*'Base original'!V24/'Base original'!$V24 -> 16.21797278 | V32: =('Base original'!V36/'Base original'!V24*100-100)*'Base original'!V24/('Base original'!$AC24) -> 3.593117973 | W32: =('Base original'!W36/'Base original'!W24*100-100)*'Base original'!W24/('Base original'!$AC24) -> 18.21374864 | X32: =('Base original'!X36/'Base original'!X24*100-100)*'Base original'!X24/('Base original'!$AC24) -> 0.2554090957 | Y32: =('Base original'!Y36/'Base original'!Y24*100-100)*'Base original'!Y24/('Base original'!$AC24) -> 4.10150249 | Z32: =('Base original'!Z36/'Base original'!Z24*100-100)*'Base original'!Z24/('Base original'!$AC24) -> 0.1715740704 | AA32: =-('Base original'!AA36/'Base original'!AA24*100-100)*'Base original'!AA24/('Base original'!$AC24) -> -3.953175084 | AB32: =-('Base original'!AB36/'Base original'!AB24*100-100)*'Base original'!AB24/('Base original'!$AC24) -> -0.01143320121 | AC32: =(('Base original'!Y36-'Base original'!AA36)/('Base original'!Y24-'Base original'!AA24)*100-100)*(('Base original'!Y24-'Base original'!AA24)/'Base original'!AC24) -> 0.1483274063 | AD32: =(('Base original'!Z36-'Base original'!AB36)/('Base original'!Z24-'Base original'!AB24)*100-100)*(('Base original'!Z24-'Base original'!AB24)/'Base original'!AC24) -> 0.1601408692 | AE32: =('Base original'!AC36/'Base original'!AC24*100-100)*'Base original'!AC24/('Base original'!$AC24) -> 22.37074398 | AF32: =('Base original'!AC36/'Base original'!AC24*100-100)*'Base original'!AC24/('Base original'!$AN24) -> 13.38311184 | AG32: =('Base original'!AD36/'Base original'!AD24*100-100)*'Base original'!AD24/('Base original'!$AN24) -> 0.7631780614 | AH32: =('Base original'!AE36/'Base original'!AE24*100-100)*'Base original'!AE24/('Base original'!$AN24) -> -1.187944389 | AI32: =('Base original'!AF36/'Base original'!AF24*100-100)*'Base original'!AF24/('Base original'!$AN24) -> 0.382680975 | AJ32: =('Base original'!AG36/'Base original'!AG24*100-100)*'Base original'!AG24/('Base original'!$AN24) -> -0.4275265202 | AK32: =('Base original'!AH36/'Base original'!AH24*100-100)*'Base original'!AH24/('Base original'!$AN24) -> 0.008993374476 | AL32: =('Base original'!AI36/'Base original'!AI24*100-100)*'Base original'!AI24/('Base original'!$AN24) -> 1.766674861 | AM32: =('Base original'!AJ36/'Base original'!AJ24*100-100)*'Base original'!AJ24/('Base original'!$AN24) -> 1.116331043 | AN32: =('Base original'!AK36/'Base original'!AK24*100-100)*'Base original'!AK24/('Base original'!$AN24) -> 0.1097404009 | AO32: =-('Base original'!AL36/'Base original'!AL24*100-100)*'Base original'!AL24/('Base original'!$AN24) -> -0.6924140052 | AP32: =-('Base original'!AM36/'Base original'!AM24*100-100)*'Base original'!AM24/('Base original'!$AN24) -> -0.06653277205 | AQ32: =(('Base original'!AJ36-'Base original'!AL36)/('Base original'!AJ24-'Base original'!AL24)*100-100)*(('Base original'!AJ24-'Base original'!AL24)/'Base original'!AN24) -> 0.4239170377 | AR32: =(('Base original'!AK36-'Base original'!AM36)/('Base original'!AK24-'Base original'!AM24)*100-100)*(('Base original'!AK24-'Base original'!AM24)/'Base original'!AN24) -> 0.04320762881 | AS32: =('Base original'!AN36/'Base original'!AN24*100-100)*'Base original'!AN24/('Base original'!$AN24) -> 15.15629287
A33: 2008-03-01 | B33: ='Base original'!B37/'Base original'!B25*100-100 -> 20.35201516 | C33: ='Base original'!C37/'Base original'!C25*100-100 -> 14.2047277 | D33: ='Base original'!D37/'Base original'!D25*100-100 -> 25.07241103 | E33: ='Base original'!E37/'Base original'!E25*100-100 -> 3.541958352 | F33: ='Base original'!F37/'Base original'!F25*100-100 -> 18.9839677 | G33: ='Base original'!G37 -> 29.8751708 | K33: ='Base original'!K37 -> 10.60816322 | N33: ='Base original'!N37 -> 3.909952199 | Q33: ='Base original'!Q37 -> 4.82 | R33: =('Base original'!S37/'Base original'!S25*100-100)*'Base original'!S25/'Base original'!$V25 -> 2.980118499 | S33: =('Base original'!T37/'Base original'!T25*100-100)*'Base original'!T25/'Base original'!$V25 -> 5.292357938 | T33: =('Base original'!U37/'Base original'!U25*100-100)*'Base original'!U25/'Base original'!$V25 -> 6.761008617 | U33: =('Base original'!V37/'Base original'!V25*100-100)*'Base original'!V25/'Base original'!$V25 -> 15.03348505 | V33: =('Base original'!V37/'Base original'!V25*100-100)*'Base original'!V25/('Base original'!$AC25) -> 3.286281665 | W33: =('Base original'!W37/'Base original'!W25*100-100)*'Base original'!W25/('Base original'!$AC25) -> 17.46657821 | X33: =('Base original'!X37/'Base original'!X25*100-100)*'Base original'!X25/('Base original'!$AC25) -> 0.256670355 | Y33: =('Base original'!Y37/'Base original'!Y25*100-100)*'Base original'!Y25/('Base original'!$AC25) -> 2.950178171 | Z33: =('Base original'!Z37/'Base original'!Z25*100-100)*'Base original'!Z25/('Base original'!$AC25) -> 0.1858252546 | AA33: =-('Base original'!AA37/'Base original'!AA25*100-100)*'Base original'!AA25/('Base original'!$AC25) -> -2.675062201 | AB33: =-('Base original'!AB37/'Base original'!AB25*100-100)*'Base original'!AB25/('Base original'!$AC25) -> -0.007218931523 | AC33: =(('Base original'!Y37-'Base original'!AA37)/('Base original'!Y25-'Base original'!AA25)*100-100)*(('Base original'!Y25-'Base original'!AA25)/'Base original'!AC25) -> 0.2751159696 | AD33: =(('Base original'!Z37-'Base original'!AB37)/('Base original'!Z25-'Base original'!AB25)*100-100)*(('Base original'!Z25-'Base original'!AB25)/'Base original'!AC25) -> 0.178606323 | AE33: =('Base original'!AC37/'Base original'!AC25*100-100)*'Base original'!AC25/('Base original'!$AC25) -> 21.46325253 | AF33: =('Base original'!AC37/'Base original'!AC25*100-100)*'Base original'!AC25/('Base original'!$AN25) -> 12.91214292 | AG33: =('Base original'!AD37/'Base original'!AD25*100-100)*'Base original'!AD25/('Base original'!$AN25) -> 0.6211935404 | AH33: =('Base original'!AE37/'Base original'!AE25*100-100)*'Base original'!AE25/('Base original'!$AN25) -> -1.146394926 | AI33: =('Base original'!AF37/'Base original'!AF25*100-100)*'Base original'!AF25/('Base original'!$AN25) -> 0.450249632 | AJ33: =('Base original'!AG37/'Base original'!AG25*100-100)*'Base original'!AG25/('Base original'!$AN25) -> -0.4816679693 | AK33: =('Base original'!AH37/'Base original'!AH25*100-100)*'Base original'!AH25/('Base original'!$AN25) -> -0.005840396344 | AL33: =('Base original'!AI37/'Base original'!AI25*100-100)*'Base original'!AI25/('Base original'!$AN25) -> 1.776798322 | AM33: =('Base original'!AJ37/'Base original'!AJ25*100-100)*'Base original'!AJ25/('Base original'!$AN25) -> 1.141228421 | AN33: =('Base original'!AK37/'Base original'!AK25*100-100)*'Base original'!AK25/('Base original'!$AN25) -> 0.09533323879 | AO33: =-('Base original'!AL37/'Base original'!AL25*100-100)*'Base original'!AL25/('Base original'!$AN25) -> -0.9187692218 | AP33: =-('Base original'!AM37/'Base original'!AM25*100-100)*'Base original'!AM25/('Base original'!$AN25) -> -0.0711929339 | AQ33: =(('Base original'!AJ37-'Base original'!AL37)/('Base original'!AJ25-'Base original'!AL25)*100-100)*(('Base original'!AJ25-'Base original'!AL25)/'Base original'!AN25) -> 0.2224591992 | AR33: =(('Base original'!AK37-'Base original'!AM37)/('Base original'!AK25-'Base original'!AM25)*100-100)*(('Base original'!AK25-'Base original'!AM25)/'Base original'!AN25) -> 0.02414030489 | AS33: =('Base original'!AN37/'Base original'!AN25*100-100)*'Base original'!AN25/('Base original'!$AN25) -> 14.37308062
A34: 2008-04-01 | B34: ='Base original'!B38/'Base original'!B26*100-100 -> 21.2278013 | C34: ='Base original'!C38/'Base original'!C26*100-100 -> 14.16514624 | D34: ='Base original'!D38/'Base original'!D26*100-100 -> 25.82327366 | E34: ='Base original'!E38/'Base original'!E26*100-100 -> 13.14160843 | F34: ='Base original'!F38/'Base original'!F26*100-100 -> 20.50549586 | G34: ='Base original'!G38 -> 30.12632972 | K34: ='Base original'!K38 -> 10.5928774 | N34: ='Base original'!N38 -> 4.016354928 | Q34: ='Base original'!Q38 -> 4.76 | R34: =('Base original'!S38/'Base original'!S26*100-100)*'Base original'!S26/'Base original'!$V26 -> 2.678962475 | S34: =('Base original'!T38/'Base original'!T26*100-100)*'Base original'!T26/'Base original'!$V26 -> 3.984206349 | T34: =('Base original'!U38/'Base original'!U26*100-100)*'Base original'!U26/'Base original'!$V26 -> 5.62315335 | U34: =('Base original'!V38/'Base original'!V26*100-100)*'Base original'!V26/'Base original'!$V26 -> 12.28632217 | V34: =('Base original'!V38/'Base original'!V26*100-100)*'Base original'!V26/('Base original'!$AC26) -> 2.708211791 | W34: =('Base original'!W38/'Base original'!W26*100-100)*'Base original'!W26/('Base original'!$AC26) -> 18.16553739 | X34: =('Base original'!X38/'Base original'!X26*100-100)*'Base original'!X26/('Base original'!$AC26) -> 0.2825627748 | Y34: =('Base original'!Y38/'Base original'!Y26*100-100)*'Base original'!Y26/('Base original'!$AC26) -> 2.008518537 | Z34: =('Base original'!Z38/'Base original'!Z26*100-100)*'Base original'!Z26/('Base original'!$AC26) -> 0.2046203375 | AA34: =-('Base original'!AA38/'Base original'!AA26*100-100)*'Base original'!AA26/('Base original'!$AC26) -> -2.094301773 | AB34: =-('Base original'!AB38/'Base original'!AB26*100-100)*'Base original'!AB26/('Base original'!$AC26) -> -0.004459454129 | AC34: =(('Base original'!Y38-'Base original'!AA38)/('Base original'!Y26-'Base original'!AA26)*100-100)*(('Base original'!Y26-'Base original'!AA26)/'Base original'!AC26) -> -0.08578323574 | AD34: =(('Base original'!Z38-'Base original'!AB38)/('Base original'!Z26-'Base original'!AB26)*100-100)*(('Base original'!Z26-'Base original'!AB26)/'Base original'!AC26) -> 0.2001608834 | AE34: =('Base original'!AC38/'Base original'!AC26*100-100)*'Base original'!AC26/('Base original'!$AC26) -> 21.2706896 | AF34: =('Base original'!AC38/'Base original'!AC26*100-100)*'Base original'!AC26/('Base original'!$AN26) -> 12.91932985 | AG34: =('Base original'!AD38/'Base original'!AD26*100-100)*'Base original'!AD26/('Base original'!$AN26) -> 0.9265989345 | AH34: =('Base original'!AE38/'Base original'!AE26*100-100)*'Base original'!AE26/('Base original'!$AN26) -> -1.052964158 | AI34: =('Base original'!AF38/'Base original'!AF26*100-100)*'Base original'!AF26/('Base original'!$AN26) -> 0.6163634556 | AJ34: =('Base original'!AG38/'Base original'!AG26*100-100)*'Base original'!AG26/('Base original'!$AN26) -> 0.04984067058 | AK34: =('Base original'!AH38/'Base original'!AH26*100-100)*'Base original'!AH26/('Base original'!$AN26) -> 0.004360500591 | AL34: =('Base original'!AI38/'Base original'!AI26*100-100)*'Base original'!AI26/('Base original'!$AN26) -> 2.083887697 | AM34: =('Base original'!AJ38/'Base original'!AJ26*100-100)*'Base original'!AJ26/('Base original'!$AN26) -> 1.000340506 | AN34: =('Base original'!AK38/'Base original'!AK26*100-100)*'Base original'!AK26/('Base original'!$AN26) -> 0.05699903503 | AO34: =-('Base original'!AL38/'Base original'!AL26*100-100)*'Base original'!AL26/('Base original'!$AN26) -> -0.8356088301 | AP34: =-('Base original'!AM38/'Base original'!AM26*100-100)*'Base original'!AM26/('Base original'!$AN26) -> -0.05842773147 | AQ34: =(('Base original'!AJ38-'Base original'!AL38)/('Base original'!AJ26-'Base original'!AL26)*100-100)*(('Base original'!AJ26-'Base original'!AL26)/'Base original'!AN26) -> 0.1647316759 | AR34: =(('Base original'!AK38-'Base original'!AM38)/('Base original'!AK26-'Base original'!AM26)*100-100)*(('Base original'!AK26-'Base original'!AM26)/'Base original'!AN26) -> -0.00142869644 | AS34: =('Base original'!AN38/'Base original'!AN26*100-100)*'Base original'!AN26/('Base original'!$AN26) -> 15.71071993
A35: 2008-05-01 | B35: ='Base original'!B39/'Base original'!B27*100-100 -> 21.44424436 | C35: ='Base original'!C39/'Base original'!C27*100-100 -> 13.47332675 | D35: ='Base original'!D39/'Base original'!D27*100-100 -> 25.07038997 | E35: ='Base original'!E39/'Base original'!E27*100-100 -> 19.10242591 | F35: ='Base original'!F39/'Base original'!F27*100-100 -> 20.94932519 | G35: ='Base original'!G39 -> 30.9324869 | K35: ='Base original'!K39 -> 10.67956961 | N35: ='Base original'!N39 -> 4.116003773 | Q35: ='Base original'!Q39 -> 4.63 | R35: =('Base original'!S39/'Base original'!S27*100-100)*'Base original'!S27/'Base original'!$V27 -> 2.998157785 | S35: =('Base original'!T39/'Base original'!T27*100-100)*'Base original'!T27/'Base original'!$V27 -> 5.162511645 | T35: =('Base original'!U39/'Base original'!U27*100-100)*'Base original'!U27/'Base original'!$V27 -> 6.951791877 | U35: =('Base original'!V39/'Base original'!V27*100-100)*'Base original'!V27/'Base original'!$V27 -> 15.11246131 | V35: =('Base original'!V39/'Base original'!V27*100-100)*'Base original'!V27/('Base original'!$AC27) -> 3.298228858 | W35: =('Base original'!W39/'Base original'!W27*100-100)*'Base original'!W27/('Base original'!$AC27) -> 16.0700353 | X35: =('Base original'!X39/'Base original'!X27*100-100)*'Base original'!X27/('Base original'!$AC27) -> 0.3249244187 | Y35: =('Base original'!Y39/'Base original'!Y27*100-100)*'Base original'!Y27/('Base original'!$AC27) -> 4.364628292 | Z35: =('Base original'!Z39/'Base original'!Z27*100-100)*'Base original'!Z27/('Base original'!$AC27) -> 0.205899626 | AA35: =-('Base original'!AA39/'Base original'!AA27*100-100)*'Base original'!AA27/('Base original'!$AC27) -> -4.422560926 | AB35: =-('Base original'!AB39/'Base original'!AB27*100-100)*'Base original'!AB27/('Base original'!$AC27) -> -0.004534277814 | AC35: =(('Base original'!Y39-'Base original'!AA39)/('Base original'!Y27-'Base original'!AA27)*100-100)*(('Base original'!Y27-'Base original'!AA27)/'Base original'!AC27) -> -0.05793263462 | AD35: =(('Base original'!Z39-'Base original'!AB39)/('Base original'!Z27-'Base original'!AB27)*100-100)*(('Base original'!Z27-'Base original'!AB27)/'Base original'!AC27) -> 0.2013653482 | AE35: =('Base original'!AC39/'Base original'!AC27*100-100)*'Base original'!AC27/('Base original'!$AC27) -> 19.83662129 | AF35: =('Base original'!AC39/'Base original'!AC27*100-100)*'Base original'!AC27/('Base original'!$AN27) -> 12.02431574 | AG35: =('Base original'!AD39/'Base original'!AD27*100-100)*'Base original'!AD27/('Base original'!$AN27) -> 1.336912273 | AH35: =('Base original'!AE39/'Base original'!AE27*100-100)*'Base original'!AE27/('Base original'!$AN27) -> -0.5595163169 | AI35: =('Base original'!AF39/'Base original'!AF27*100-100)*'Base original'!AF27/('Base original'!$AN27) -> 0.7151153908 | AJ35: =('Base original'!AG39/'Base original'!AG27*100-100)*'Base original'!AG27/('Base original'!$AN27) -> -0.2950870722 | AK35: =('Base original'!AH39/'Base original'!AH27*100-100)*'Base original'!AH27/('Base original'!$AN27) -> 0.03483910489 | AL35: =('Base original'!AI39/'Base original'!AI27*100-100)*'Base original'!AI27/('Base original'!$AN27) -> 2.393152647 | AM35: =('Base original'!AJ39/'Base original'!AJ27*100-100)*'Base original'!AJ27/('Base original'!$AN27) -> 0.9040623449 | AN35: =('Base original'!AK39/'Base original'!AK27*100-100)*'Base original'!AK27/('Base original'!$AN27) -> 0.04307008099 | AO35: =-('Base original'!AL39/'Base original'!AL27*100-100)*'Base original'!AL27/('Base original'!$AN27) -> -0.8907729004 | AP35: =-('Base original'!AM39/'Base original'!AM27*100-100)*'Base original'!AM27/('Base original'!$AN27) -> -0.04406423085 | AQ35: =(('Base original'!AJ39-'Base original'!AL39)/('Base original'!AJ27-'Base original'!AL27)*100-100)*(('Base original'!AJ27-'Base original'!AL27)/'Base original'!AN27) -> 0.01328944454 | AR35: =(('Base original'!AK39-'Base original'!AM39)/('Base original'!AK27-'Base original'!AM27)*100-100)*(('Base original'!AK27-'Base original'!AM27)/'Base original'!AN27) -> -0.0009941498666 | AS35: =('Base original'!AN39/'Base original'!AN27*100-100)*'Base original'!AN27/('Base original'!$AN27) -> 15.66202706
A36: 2008-06-01 | B36: ='Base original'!B40/'Base original'!B28*100-100 -> 22.02472461 | C36: ='Base original'!C40/'Base original'!C28*100-100 -> 13.12629055 | D36: ='Base original'!D40/'Base original'!D28*100-100 -> 24.87876397 | E36: ='Base original'!E40/'Base original'!E28*100-100 -> 32.75970701 | F36: ='Base original'!F40/'Base original'!F28*100-100 -> 22.48867907 | G36: ='Base original'!G40 -> 30.74424815 | K36: ='Base original'!K40 -> 10.87630127 | N36: ='Base original'!N40 -> 4.238679367 | Q36: ='Base original'!Q40 -> 4.72 | R36: =('Base original'!S40/'Base original'!S28*100-100)*'Base original'!S28/'Base original'!$V28 -> 2.944090868 | S36: =('Base original'!T40/'Base original'!T28*100-100)*'Base original'!T28/'Base original'!$V28 -> 5.8656364 | T36: =('Base original'!U40/'Base original'!U28*100-100)*'Base original'!U28/'Base original'!$V28 -> 6.575099612 | U36: =('Base original'!V40/'Base original'!V28*100-100)*'Base original'!V28/'Base original'!$V28 -> 15.38482688 | V36: =('Base original'!V40/'Base original'!V28*100-100)*'Base original'!V28/('Base original'!$AC28) -> 3.315513573 | W36: =('Base original'!W40/'Base original'!W28*100-100)*'Base original'!W28/('Base original'!$AC28) -> 15.03799458 | X36: =('Base original'!X40/'Base original'!X28*100-100)*'Base original'!X28/('Base original'!$AC28) -> 0.3584729739 | Y36: =('Base original'!Y40/'Base original'!Y28*100-100)*'Base original'!Y28/('Base original'!$AC28) -> 2.955547455 | Z36: =('Base original'!Z40/'Base original'!Z28*100-100)*'Base original'!Z28/('Base original'!$AC28) -> 0.2139461511 | AA36: =-('Base original'!AA40/'Base original'!AA28*100-100)*'Base original'!AA28/('Base original'!$AC28) -> -3.006740951 | AB36: =-('Base original'!AB40/'Base original'!AB28*100-100)*'Base original'!AB28/('Base original'!$AC28) -> -0.01315388433 | AC36: =(('Base original'!Y40-'Base original'!AA40)/('Base original'!Y28-'Base original'!AA28)*100-100)*(('Base original'!Y28-'Base original'!AA28)/'Base original'!AC28) -> -0.05119349577 | AD36: =(('Base original'!Z40-'Base original'!AB40)/('Base original'!Z28-'Base original'!AB28)*100-100)*(('Base original'!Z28-'Base original'!AB28)/'Base original'!AC28) -> 0.2007922667 | AE36: =('Base original'!AC40/'Base original'!AC28*100-100)*'Base original'!AC28/('Base original'!$AC28) -> 18.8615799 | AF36: =('Base original'!AC40/'Base original'!AC28*100-100)*'Base original'!AC28/('Base original'!$AN28) -> 11.47612755 | AG36: =('Base original'!AD40/'Base original'!AD28*100-100)*'Base original'!AD28/('Base original'!$AN28) -> 2.073499799 | AH36: =('Base original'!AE40/'Base original'!AE28*100-100)*'Base original'!AE28/('Base original'!$AN28) -> 0.2322699321 | AI36: =('Base original'!AF40/'Base original'!AF28*100-100)*'Base original'!AF28/('Base original'!$AN28) -> 0.7170272448 | AJ36: =('Base original'!AG40/'Base original'!AG28*100-100)*'Base original'!AG28/('Base original'!$AN28) -> -0.1881434037 | AK36: =('Base original'!AH40/'Base original'!AH28*100-100)*'Base original'!AH28/('Base original'!$AN28) -> 0.04510711787 | AL36: =('Base original'!AI40/'Base original'!AI28*100-100)*'Base original'!AI28/('Base original'!$AN28) -> 2.49773455 | AM36: =('Base original'!AJ40/'Base original'!AJ28*100-100)*'Base original'!AJ28/('Base original'!$AN28) -> 0.6534619713 | AN36: =('Base original'!AK40/'Base original'!AK28*100-100)*'Base original'!AK28/('Base original'!$AN28) -> 0.01035387168 | AO36: =-('Base original'!AL40/'Base original'!AL28*100-100)*'Base original'!AL28/('Base original'!$AN28) -> -0.9346892771 | AP36: =-('Base original'!AM40/'Base original'!AM28*100-100)*'Base original'!AM28/('Base original'!$AN28) -> -0.03103277419 | AQ36: =(('Base original'!AJ40-'Base original'!AL40)/('Base original'!AJ28-'Base original'!AL28)*100-100)*(('Base original'!AJ28-'Base original'!AL28)/'Base original'!AN28) -> -0.2812273058 | AR36: =(('Base original'!AK40-'Base original'!AM40)/('Base original'!AK28-'Base original'!AM28)*100-100)*(('Base original'!AK28-'Base original'!AM28)/'Base original'!AN28) -> -0.0206789025 | AS36: =('Base original'!AN40/'Base original'!AN28*100-100)*'Base original'!AN28/('Base original'!$AN28) -> 16.55171658
A37: 2008-07-01 | B37: ='Base original'!B41/'Base original'!B29*100-100 -> 21.58154513 | C37: ='Base original'!C41/'Base original'!C29*100-100 -> 12.294786 | D37: ='Base original'!D41/'Base original'!D29*100-100 -> 25.2057987 | E37: ='Base original'!E41/'Base original'!E29*100-100 -> 27.19567264 | F37: ='Base original'!F41/'Base original'!F29*100-100 -> 21.6759579 | G37: ='Base original'!G41 -> 31.24031374 | K37: ='Base original'!K41 -> 11.42875372 | N37: ='Base original'!N41 -> 4.404424868 | Q37: ='Base original'!Q41 -> 4.87 | R37: =('Base original'!S41/'Base original'!S29*100-100)*'Base original'!S29/'Base original'!$V29 -> 2.878181068 | S37: =('Base original'!T41/'Base original'!T29*100-100)*'Base original'!T29/'Base original'!$V29 -> 2.966462791 | T37: =('Base original'!U41/'Base original'!U29*100-100)*'Base original'!U29/'Base original'!$V29 -> 3.005516787 | U37: =('Base original'!V41/'Base original'!V29*100-100)*'Base original'!V29/'Base original'!$V29 -> 8.850160646 | V37: =('Base original'!V41/'Base original'!V29*100-100)*'Base original'!V29/('Base original'!$AC29) -> 1.890805354 | W37: =('Base original'!W41/'Base original'!W29*100-100)*'Base original'!W29/('Base original'!$AC29) -> 14.49145327 | X37: =('Base original'!X41/'Base original'!X29*100-100)*'Base original'!X29/('Base original'!$AC29) -> 0.4144528664 | Y37: =('Base original'!Y41/'Base original'!Y29*100-100)*'Base original'!Y29/('Base original'!$AC29) -> 2.345083838 | Z37: =('Base original'!Z41/'Base original'!Z29*100-100)*'Base original'!Z29/('Base original'!$AC29) -> 0.224953975 | AA37: =-('Base original'!AA41/'Base original'!AA29*100-100)*'Base original'!AA29/('Base original'!$AC29) -> -2.611359229 | AB37: =-('Base original'!AB41/'Base original'!AB29*100-100)*'Base original'!AB29/('Base original'!$AC29) -> -0.0146775165 | AC37: =(('Base original'!Y41-'Base original'!AA41)/('Base original'!Y29-'Base original'!AA29)*100-100)*(('Base original'!Y29-'Base original'!AA29)/'Base original'!AC29) -> -0.2662753909 | AD37: =(('Base original'!Z41-'Base original'!AB41)/('Base original'!Z29-'Base original'!AB29)*100-100)*(('Base original'!Z29-'Base original'!AB29)/'Base original'!AC29) -> 0.2102764585 | AE37: =('Base original'!AC41/'Base original'!AC29*100-100)*'Base original'!AC29/('Base original'!$AC29) -> 16.74071256 | AF37: =('Base original'!AC41/'Base original'!AC29*100-100)*'Base original'!AC29/('Base original'!$AN29) -> 10.22724839 | AG37: =('Base original'!AD41/'Base original'!AD29*100-100)*'Base original'!AD29/('Base original'!$AN29) -> 2.721180808 | AH37: =('Base original'!AE41/'Base original'!AE29*100-100)*'Base original'!AE29/('Base original'!$AN29) -> 1.118394018 | AI37: =('Base original'!AF41/'Base original'!AF29*100-100)*'Base original'!AF29/('Base original'!$AN29) -> 0.7495701505 | AJ37: =('Base original'!AG41/'Base original'!AG29*100-100)*'Base original'!AG29/('Base original'!$AN29) -> -0.1339879668 | AK37: =('Base original'!AH41/'Base original'!AH29*100-100)*'Base original'!AH29/('Base original'!$AN29) -> 0.04370600664 | AL37: =('Base original'!AI41/'Base original'!AI29*100-100)*'Base original'!AI29/('Base original'!$AN29) -> 2.524096845 | AM37: =('Base original'!AJ41/'Base original'!AJ29*100-100)*'Base original'!AJ29/('Base original'!$AN29) -> 0.1564477997 | AN37: =('Base original'!AK41/'Base original'!AK29*100-100)*'Base original'!AK29/('Base original'!$AN29) -> -0.04620471659 | AO37: =-('Base original'!AL41/'Base original'!AL29*100-100)*'Base original'!AL29/('Base original'!$AN29) -> -1.001240217 | AP37: =-('Base original'!AM41/'Base original'!AM29*100-100)*'Base original'!AM29/('Base original'!$AN29) -> -0.04126441006 | AQ37: =(('Base original'!AJ41-'Base original'!AL41)/('Base original'!AJ29-'Base original'!AL29)*100-100)*(('Base original'!AJ29-'Base original'!AL29)/'Base original'!AN29) -> -0.8447924172 | AR37: =(('Base original'!AK41-'Base original'!AM41)/('Base original'!AK29-'Base original'!AM29)*100-100)*(('Base original'!AK29-'Base original'!AM29)/'Base original'!AN29) -> -0.08746912665 | AS37: =('Base original'!AN41/'Base original'!AN29*100-100)*'Base original'!AN29/('Base original'!$AN29) -> 16.31794671
A38: 2008-08-01 | B38: ='Base original'!B42/'Base original'!B30*100-100 -> 20.73425617 | C38: ='Base original'!C42/'Base original'!C30*100-100 -> 11.16750021 | D38: ='Base original'!D42/'Base original'!D30*100-100 -> 24.76098549 | E38: ='Base original'!E42/'Base original'!E30*100-100 -> 25.12779867 | F38: ='Base original'!F42/'Base original'!F30*100-100 -> 20.77160171 | G38: ='Base original'!G42 -> 32.01457109 | K38: ='Base original'!K42 -> 11.87277186 | N38: ='Base original'!N42 -> 4.682843065 | Q38: ='Base original'!Q42 -> 4.82 | R38: =('Base original'!S42/'Base original'!S30*100-100)*'Base original'!S30/'Base original'!$V30 -> 2.873446656 | S38: =('Base original'!T42/'Base original'!T30*100-100)*'Base original'!T30/'Base original'!$V30 -> 2.530409091 | T38: =('Base original'!U42/'Base original'!U30*100-100)*'Base original'!U30/'Base original'!$V30 -> 4.916323611 | U38: =('Base original'!V42/'Base original'!V30*100-100)*'Base original'!V30/'Base original'!$V30 -> 10.32017936 | V38: =('Base original'!V42/'Base original'!V30*100-100)*'Base original'!V30/('Base original'!$AC30) -> 2.197226875 | W38: =('Base original'!W42/'Base original'!W30*100-100)*'Base original'!W30/('Base original'!$AC30) -> 14.15454323 | X38: =('Base original'!X42/'Base original'!X30*100-100)*'Base original'!X30/('Base original'!$AC30) -> 0.4584684791 | Y38: =('Base original'!Y42/'Base original'!Y30*100-100)*'Base original'!Y30/('Base original'!$AC30) -> 2.12153126 | Z38: =('Base original'!Z42/'Base original'!Z30*100-100)*'Base original'!Z30/('Base original'!$AC30) -> 0.2347427703 | AA38: =-('Base original'!AA42/'Base original'!AA30*100-100)*'Base original'!AA30/('Base original'!$AC30) -> -2.129163842 | AB38: =-('Base original'!AB42/'Base original'!AB30*100-100)*'Base original'!AB30/('Base original'!$AC30) -> -0.01048021317 | AC38: =(('Base original'!Y42-'Base original'!AA42)/('Base original'!Y30-'Base original'!AA30)*100-100)*(('Base original'!Y30-'Base original'!AA30)/'Base original'!AC30) -> -0.007632582866 | AD38: =(('Base original'!Z42-'Base original'!AB42)/('Base original'!Z30-'Base original'!AB30)*100-100)*(('Base original'!Z30-'Base original'!AB30)/'Base original'!AC30) -> 0.2242625571 | AE38: =('Base original'!AC42/'Base original'!AC30*100-100)*'Base original'!AC30/('Base original'!$AC30) -> 17.02686856 | AF38: =('Base original'!AC42/'Base original'!AC30*100-100)*'Base original'!AC30/('Base original'!$AN30) -> 10.36031065 | AG38: =('Base original'!AD42/'Base original'!AD30*100-100)*'Base original'!AD30/('Base original'!$AN30) -> 2.961754496 | AH38: =('Base original'!AE42/'Base original'!AE30*100-100)*'Base original'!AE30/('Base original'!$AN30) -> 2.149618602 | AI38: =('Base original'!AF42/'Base original'!AF30*100-100)*'Base original'!AF30/('Base original'!$AN30) -> 0.9477546217 | AJ38: =('Base original'!AG42/'Base original'!AG30*100-100)*'Base original'!AG30/('Base original'!$AN30) -> -0.1975127903 | AK38: =('Base original'!AH42/'Base original'!AH30*100-100)*'Base original'!AH30/('Base original'!$AN30) -> 0.05477866055 | AL38: =('Base original'!AI42/'Base original'!AI30*100-100)*'Base original'!AI30/('Base original'!$AN30) -> 2.787704073 | AM38: =('Base original'!AJ42/'Base original'!AJ30*100-100)*'Base original'!AJ30/('Base original'!$AN30) -> -0.1181923809 | AN38: =('Base original'!AK42/'Base original'!AK30*100-100)*'Base original'!AK30/('Base original'!$AN30) -> -0.07478984352 | AO38: =-('Base original'!AL42/'Base original'!AL30*100-100)*'Base original'!AL30/('Base original'!$AN30) -> -1.138166212 | AP38: =-('Base original'!AM42/'Base original'!AM30*100-100)*'Base original'!AM30/('Base original'!$AN30) -> -0.0467685064 | AQ38: =(('Base original'!AJ42-'Base original'!AL42)/('Base original'!AJ30-'Base original'!AL30)*100-100)*(('Base original'!AJ30-'Base original'!AL30)/'Base original'!AN30) -> -1.256358592 | AR38: =(('Base original'!AK42-'Base original'!AM42)/('Base original'!AK30-'Base original'!AM30)*100-100)*(('Base original'!AK30-'Base original'!AM30)/'Base original'!AN30) -> -0.1215583499 | AS38: =('Base original'!AN42/'Base original'!AN30*100-100)*'Base original'!AN30/('Base original'!$AN30) -> 17.68649137
A39: 2008-09-01 | B39: ='Base original'!B43/'Base original'!B31*100-100 -> 20.23680607 | C39: ='Base original'!C43/'Base original'!C31*100-100 -> 10.44001469 | D39: ='Base original'!D43/'Base original'!D31*100-100 -> 23.74625345 | E39: ='Base original'!E43/'Base original'!E31*100-100 -> 36.8691849 | F39: ='Base original'!F43/'Base original'!F31*100-100 -> 21.22982782 | G39: ='Base original'!G43 -> 34.02436491 | K39: ='Base original'!K43 -> 12.80472031 | N39: ='Base original'!N43 -> 5.126385627 | Q39: ='Base original'!Q43 -> 4.8 | R39: =('Base original'!S43/'Base original'!S31*100-100)*'Base original'!S31/'Base original'!$V31 -> 2.717544369 | S39: =('Base original'!T43/'Base original'!T31*100-100)*'Base original'!T31/'Base original'!$V31 -> 3.294743566 | T39: =('Base original'!U43/'Base original'!U31*100-100)*'Base original'!U31/'Base original'!$V31 -> 2.320699994 | U39: =('Base original'!V43/'Base original'!V31*100-100)*'Base original'!V31/'Base original'!$V31 -> 8.332987928 | V39: =('Base original'!V43/'Base original'!V31*100-100)*'Base original'!V31/('Base original'!$AC31) -> 1.812995567 | W39: =('Base original'!W43/'Base original'!W31*100-100)*'Base original'!W31/('Base original'!$AC31) -> 14.21837386 | X39: =('Base original'!X43/'Base original'!X31*100-100)*'Base original'!X31/('Base original'!$AC31) -> 0.4754988819 | Y39: =('Base original'!Y43/'Base original'!Y31*100-100)*'Base original'!Y31/('Base original'!$AC31) -> 1.083561229 | Z39: =('Base original'!Z43/'Base original'!Z31*100-100)*'Base original'!Z31/('Base original'!$AC31) -> 0.2285465351 | AA39: =-('Base original'!AA43/'Base original'!AA31*100-100)*'Base original'!AA31/('Base original'!$AC31) -> -0.3015454639 | AB39: =-('Base original'!AB43/'Base original'!AB31*100-100)*'Base original'!AB31/('Base original'!$AC31) -> -0.006497528974 | AC39: =(('Base original'!Y43-'Base original'!AA43)/('Base original'!Y31-'Base original'!AA31)*100-100)*(('Base original'!Y31-'Base original'!AA31)/'Base original'!AC31) -> 0.7820157647 | AD39: =(('Base original'!Z43-'Base original'!AB43)/('Base original'!Z31-'Base original'!AB31)*100-100)*(('Base original'!Z31-'Base original'!AB31)/'Base original'!AC31) -> 0.2220490062 | AE39: =('Base original'!AC43/'Base original'!AC31*100-100)*'Base original'!AC31/('Base original'!$AC31) -> 17.51093308 | AF39: =('Base original'!AC43/'Base original'!AC31*100-100)*'Base original'!AC31/('Base original'!$AN31) -> 10.65795846 | AG39: =('Base original'!AD43/'Base original'!AD31*100-100)*'Base original'!AD31/('Base original'!$AN31) -> 3.171059967 | AH39: =('Base original'!AE43/'Base original'!AE31*100-100)*'Base original'!AE31/('Base original'!$AN31) -> 3.2097062 | AI39: =('Base original'!AF43/'Base original'!AF31*100-100)*'Base original'!AF31/('Base original'!$AN31) -> 1.110523302 | AJ39: =('Base original'!AG43/'Base original'!AG31*100-100)*'Base original'!AG31/('Base original'!$AN31) -> -0.3441147317 | AK39: =('Base original'!AH43/'Base original'!AH31*100-100)*'Base original'!AH31/('Base original'!$AN31) -> 0.08454039481 | AL39: =('Base original'!AI43/'Base original'!AI31*100-100)*'Base original'!AI31/('Base original'!$AN31) -> 3.042595721 | AM39: =('Base original'!AJ43/'Base original'!AJ31*100-100)*'Base original'!AJ31/('Base original'!$AN31) -> -0.6458396401 | AN39: =('Base original'!AK43/'Base original'!AK31*100-100)*'Base original'!AK31/('Base original'!$AN31) -> -0.1398920467 | AO39: =-('Base original'!AL43/'Base original'!AL31*100-100)*'Base original'!AL31/('Base original'!$AN31) -> -0.78647759 | AP39: =-('Base original'!AM43/'Base original'!AM31*100-100)*'Base original'!AM31/('Base original'!$AN31) -> -0.06465433224 | AQ39: =(('Base original'!AJ43-'Base original'!AL43)/('Base original'!AJ31-'Base original'!AL31)*100-100)*(('Base original'!AJ31-'Base original'!AL31)/'Base original'!AN31) -> -1.43231723 | AR39: =(('Base original'!AK43-'Base original'!AM43)/('Base original'!AK31-'Base original'!AM31)*100-100)*(('Base original'!AK31-'Base original'!AM31)/'Base original'!AN31) -> -0.2045463789 | AS39: =('Base original'!AN43/'Base original'!AN31*100-100)*'Base original'!AN31/('Base original'!$AN31) -> 19.2954057
A40: 2008-10-01 | B40: ='Base original'!B44/'Base original'!B32*100-100 -> 22.17036803 | C40: ='Base original'!C44/'Base original'!C32*100-100 -> 9.148232845 | D40: ='Base original'!D44/'Base original'!D32*100-100 -> 23.13558143 | E40: ='Base original'!E44/'Base original'!E32*100-100 -> 61.59700316 | F40: ='Base original'!F44/'Base original'!F32*100-100 -> 24.14709582 | G40: ='Base original'!G44 -> 35.7608978 | K40: ='Base original'!K44 -> 15.14850576 | N40: ='Base original'!N44 -> 8.027125743 | Q40: ='Base original'!Q44 -> 5.34 | R40: =('Base original'!S44/'Base original'!S32*100-100)*'Base original'!S32/'Base original'!$V32 -> 3.122677712 | S40: =('Base original'!T44/'Base original'!T32*100-100)*'Base original'!T32/'Base original'!$V32 -> 5.666082389 | T40: =('Base original'!U44/'Base original'!U32*100-100)*'Base original'!U32/'Base original'!$V32 -> 4.547032205 | U40: =('Base original'!V44/'Base original'!V32*100-100)*'Base original'!V32/'Base original'!$V32 -> 13.33579231 | V40: =('Base original'!V44/'Base original'!V32*100-100)*'Base original'!V32/('Base original'!$AC32) -> 2.801016042 | W40: =('Base original'!W44/'Base original'!W32*100-100)*'Base original'!W32/('Base original'!$AC32) -> 15.87892971 | X40: =('Base original'!X44/'Base original'!X32*100-100)*'Base original'!X32/('Base original'!$AC32) -> 0.4703363153 | Y40: =('Base original'!Y44/'Base original'!Y32*100-100)*'Base original'!Y32/('Base original'!$AC32) -> 1.204624063 | Z40: =('Base original'!Z44/'Base original'!Z32*100-100)*'Base original'!Z32/('Base original'!$AC32) -> 0.2092643525 | AA40: =-('Base original'!AA44/'Base original'!AA32*100-100)*'Base original'!AA32/('Base original'!$AC32) -> -0.1169841892 | AB40: =-('Base original'!AB44/'Base original'!AB32*100-100)*'Base original'!AB32/('Base original'!$AC32) -> -0.002376705543 | AC40: =(('Base original'!Y44-'Base original'!AA44)/('Base original'!Y32-'Base original'!AA32)*100-100)*(('Base original'!Y32-'Base original'!AA32)/'Base original'!AC32) -> 1.087639874 | AD40: =(('Base original'!Z44-'Base original'!AB44)/('Base original'!Z32-'Base original'!AB32)*100-100)*(('Base original'!Z32-'Base original'!AB32)/'Base original'!AC32) -> 0.206887647 | AE40: =('Base original'!AC44/'Base original'!AC32*100-100)*'Base original'!AC32/('Base original'!$AC32) -> 20.44480958 | AF40: =('Base original'!AC44/'Base original'!AC32*100-100)*'Base original'!AC32/('Base original'!$AN32) -> 12.44141393 | AG40: =('Base original'!AD44/'Base original'!AD32*100-100)*'Base original'!AD32/('Base original'!$AN32) -> 3.42230842 | AH40: =('Base original'!AE44/'Base original'!AE32*100-100)*'Base original'!AE32/('Base original'!$AN32) -> 3.1227271 | AI40: =('Base original'!AF44/'Base original'!AF32*100-100)*'Base original'!AF32/('Base original'!$AN32) -> 1.325684196 | AJ40: =('Base original'!AG44/'Base original'!AG32*100-100)*'Base original'!AG32/('Base original'!$AN32) -> -0.293949047 | AK40: =('Base original'!AH44/'Base original'!AH32*100-100)*'Base original'!AH32/('Base original'!$AN32) -> 0.0996147525 | AL40: =('Base original'!AI44/'Base original'!AI32*100-100)*'Base original'!AI32/('Base original'!$AN32) -> 3.01365569 | AM40: =('Base original'!AJ44/'Base original'!AJ32*100-100)*'Base original'!AJ32/('Base original'!$AN32) -> -1.889662511 | AN40: =('Base original'!AK44/'Base original'!AK32*100-100)*'Base original'!AK32/('Base original'!$AN32) -> -0.2864532559 | AO40: =-('Base original'!AL44/'Base original'!AL32*100-100)*'Base original'!AL32/('Base original'!$AN32) -> -0.2337463018 | AP40: =-('Base original'!AM44/'Base original'!AM32*100-100)*'Base original'!AM32/('Base original'!$AN32) -> -0.05298509102 | AQ40: =(('Base original'!AJ44-'Base original'!AL44)/('Base original'!AJ32-'Base original'!AL32)*100-100)*(('Base original'!AJ32-'Base original'!AL32)/'Base original'!AN32) -> -2.123408813 | AR40: =(('Base original'!AK44-'Base original'!AM44)/('Base original'!AK32-'Base original'!AM32)*100-100)*(('Base original'!AK32-'Base original'!AM32)/'Base original'!AN32) -> -0.3394383469 | AS40: =('Base original'!AN44/'Base original'!AN32*100-100)*'Base original'!AN32/('Base original'!$AN32) -> 20.66860788
A41: 2008-11-01 | B41: ='Base original'!B45/'Base original'!B33*100-100 -> 19.53722489 | C41: ='Base original'!C45/'Base original'!C33*100-100 -> 8.077160323 | D41: ='Base original'!D45/'Base original'!D33*100-100 -> 22.72275315 | E41: ='Base original'!E45/'Base original'!E33*100-100 -> 51.40255611 | F41: ='Base original'!F45/'Base original'!F33*100-100 -> 21.62517545 | G41: ='Base original'!G45 -> 36.07184204 | K41: ='Base original'!K45 -> 15.12878623 | N41: ='Base original'!N45 -> 5.927597244 | Q41: ='Base original'!Q45 -> 5.69 | R41: =('Base original'!S45/'Base original'!S33*100-100)*'Base original'!S33/'Base original'!$V33 -> 3.029090343 | S41: =('Base original'!T45/'Base original'!T33*100-100)*'Base original'!T33/'Base original'!$V33 -> 5.545356422 | T41: =('Base original'!U45/'Base original'!U33*100-100)*'Base original'!U33/'Base original'!$V33 -> -1.13212121 | U41: =('Base original'!V45/'Base original'!V33*100-100)*'Base original'!V33/'Base original'!$V33 -> 7.442325556 | V41: =('Base original'!V45/'Base original'!V33*100-100)*'Base original'!V33/('Base original'!$AC33) -> 1.579599488 | W41: =('Base original'!W45/'Base original'!W33*100-100)*'Base original'!W33/('Base original'!$AC33) -> 15.53392955 | X41: =('Base original'!X45/'Base original'!X33*100-100)*'Base original'!X33/('Base original'!$AC33) -> 0.4620129465 | Y41: =('Base original'!Y45/'Base original'!Y33*100-100)*'Base original'!Y33/('Base original'!$AC33) -> -0.2249632472 | Z41: =('Base original'!Z45/'Base original'!Z33*100-100)*'Base original'!Z33/('Base original'!$AC33) -> 0.2228786114 | AA41: =-('Base original'!AA45/'Base original'!AA33*100-100)*'Base original'!AA33/('Base original'!$AC33) -> 1.087470208 | AB41: =-('Base original'!AB45/'Base original'!AB33*100-100)*'Base original'!AB33/('Base original'!$AC33) -> -0.005899075686 | AC41: =(('Base original'!Y45-'Base original'!AA45)/('Base original'!Y33-'Base original'!AA33)*100-100)*(('Base original'!Y33-'Base original'!AA33)/'Base original'!AC33) -> 0.8625069608 | AD41: =(('Base original'!Z45-'Base original'!AB45)/('Base original'!Z33-'Base original'!AB33)*100-100)*(('Base original'!Z33-'Base original'!AB33)/'Base original'!AC33) -> 0.2169795358 | AE41: =('Base original'!AC45/'Base original'!AC33*100-100)*'Base original'!AC33/('Base original'!$AC33) -> 18.65502849 | AF41: =('Base original'!AC45/'Base original'!AC33*100-100)*'Base original'!AC33/('Base original'!$AN33) -> 11.45071358 | AG41: =('Base original'!AD45/'Base original'!AD33*100-100)*'Base original'!AD33/('Base original'!$AN33) -> 3.692018604 | AH41: =('Base original'!AE45/'Base original'!AE33*100-100)*'Base original'!AE33/('Base original'!$AN33) -> 2.763507683 | AI41: =('Base original'!AF45/'Base original'!AF33*100-100)*'Base original'!AF33/('Base original'!$AN33) -> 1.445215473 | AJ41: =('Base original'!AG45/'Base original'!AG33*100-100)*'Base original'!AG33/('Base original'!$AN33) -> -0.3029197115 | AK41: =('Base original'!AH45/'Base original'!AH33*100-100)*'Base original'!AH33/('Base original'!$AN33) -> 0.110629061 | AL41: =('Base original'!AI45/'Base original'!AI33*100-100)*'Base original'!AI33/('Base original'!$AN33) -> 2.903376466 | AM41: =('Base original'!AJ45/'Base original'!AJ33*100-100)*'Base original'!AJ33/('Base original'!$AN33) -> -2.679586413 | AN41: =('Base original'!AK45/'Base original'!AK33*100-100)*'Base original'!AK33/('Base original'!$AN33) -> -0.3510536305 | AO41: =-('Base original'!AL45/'Base original'!AL33*100-100)*'Base original'!AL33/('Base original'!$AN33) -> 0.003443971016 | AP41: =-('Base original'!AM45/'Base original'!AM33*100-100)*'Base original'!AM33/('Base original'!$AN33) -> -0.01756016842 | AQ41: =(('Base original'!AJ45-'Base original'!AL45)/('Base original'!AJ33-'Base original'!AL33)*100-100)*(('Base original'!AJ33-'Base original'!AL33)/'Base original'!AN33) -> -2.676142442 | AR41: =(('Base original'!AK45-'Base original'!AM45)/('Base original'!AK33-'Base original'!AM33)*100-100)*(('Base original'!AK33-'Base original'!AM33)/'Base original'!AN33) -> -0.3686137989 | AS41: =('Base original'!AN45/'Base original'!AN33*100-100)*'Base original'!AN33/('Base original'!$AN33) -> 19.01778491
A42: 2008-12-01 | B42: ='Base original'!B46/'Base original'!B34*100-100 -> 15.25357333 | C42: ='Base original'!C46/'Base original'!C34*100-100 -> 6.764548534 | D42: ='Base original'!D46/'Base original'!D34*100-100 -> 21.1695724 | E42: ='Base original'!E46/'Base original'!E34*100-100 -> 44.87859877 | F42: ='Base original'!F46/'Base original'!F34*100-100 -> 17.98661627 | G42: ='Base original'!G46 -> 36.85158168 | K42: ='Base original'!K46 -> 14.91091061 | N42: ='Base original'!N46 -> 5.831500249 | Q42: ='Base original'!Q46 -> 5.77 | R42: =('Base original'!S46/'Base original'!S34*100-100)*'Base original'!S34/'Base original'!$V34 -> 2.709810402 | S42: =('Base original'!T46/'Base original'!T34*100-100)*'Base original'!T34/'Base original'!$V34 -> 2.015723811 | T42: =('Base original'!U46/'Base original'!U34*100-100)*'Base original'!U34/'Base original'!$V34 -> 1.967944276 | U42: =('Base original'!V46/'Base original'!V34*100-100)*'Base original'!V34/'Base original'!$V34 -> 6.693478488 | V42: =('Base original'!V46/'Base original'!V34*100-100)*'Base original'!V34/('Base original'!$AC34) -> 1.472985241 | W42: =('Base original'!W46/'Base original'!W34*100-100)*'Base original'!W34/('Base original'!$AC34) -> 15.63701007 | X42: =('Base original'!X46/'Base original'!X34*100-100)*'Base original'!X34/('Base original'!$AC34) -> 0.4498205475 | Y42: =('Base original'!Y46/'Base original'!Y34*100-100)*'Base original'!Y34/('Base original'!$AC34) -> 0.7282808865 | Z42: =('Base original'!Z46/'Base original'!Z34*100-100)*'Base original'!Z34/('Base original'!$AC34) -> 0.2633185964 | AA42: =-('Base original'!AA46/'Base original'!AA34*100-100)*'Base original'!AA34/('Base original'!$AC34) -> 0.07064698255 | AB42: =-('Base original'!AB46/'Base original'!AB34*100-100)*'Base original'!AB34/('Base original'!$AC34) -> -0.01225242871 | AC42: =(('Base original'!Y46-'Base original'!AA46)/('Base original'!Y34-'Base original'!AA34)*100-100)*(('Base original'!Y34-'Base original'!AA34)/'Base original'!AC34) -> 0.798927869 | AD42: =(('Base original'!Z46-'Base original'!AB46)/('Base original'!Z34-'Base original'!AB34)*100-100)*(('Base original'!Z34-'Base original'!AB34)/'Base original'!AC34) -> 0.2510661677 | AE42: =('Base original'!AC46/'Base original'!AC34*100-100)*'Base original'!AC34/('Base original'!$AC34) -> 18.60980989 | AF42: =('Base original'!AC46/'Base original'!AC34*100-100)*'Base original'!AC34/('Base original'!$AN34) -> 11.56201626 | AG42: =('Base original'!AD46/'Base original'!AD34*100-100)*'Base original'!AD34/('Base original'!$AN34) -> 3.406096586 | AH42: =('Base original'!AE46/'Base original'!AE34*100-100)*'Base original'!AE34/('Base original'!$AN34) -> 3.033972966 | AI42: =('Base original'!AF46/'Base original'!AF34*100-100)*'Base original'!AF34/('Base original'!$AN34) -> 1.360692133 | AJ42: =('Base original'!AG46/'Base original'!AG34*100-100)*'Base original'!AG34/('Base original'!$AN34) -> -0.433872036 | AK42: =('Base original'!AH46/'Base original'!AH34*100-100)*'Base original'!AH34/('Base original'!$AN34) -> 0.1536894442 | AL42: =('Base original'!AI46/'Base original'!AI34*100-100)*'Base original'!AI34/('Base original'!$AN34) -> 2.979215956 | AM42: =('Base original'!AJ46/'Base original'!AJ34*100-100)*'Base original'!AJ34/('Base original'!$AN34) -> -2.70339287 | AN42: =('Base original'!AK46/'Base original'!AK34*100-100)*'Base original'!AK34/('Base original'!$AN34) -> -0.3329015668 | AO42: =-('Base original'!AL46/'Base original'!AL34*100-100)*'Base original'!AL34/('Base original'!$AN34) -> 0.08700115547 | AP42: =-('Base original'!AM46/'Base original'!AM34*100-100)*'Base original'!AM34/('Base original'!$AN34) -> -0.0002969322712 | AQ42: =(('Base original'!AJ46-'Base original'!AL46)/('Base original'!AJ34-'Base original'!AL34)*100-100)*(('Base original'!AJ34-'Base original'!AL34)/'Base original'!AN34) -> -2.616391714 | AR42: =(('Base original'!AK46-'Base original'!AM46)/('Base original'!AK34-'Base original'!AM34)*100-100)*(('Base original'!AK34-'Base original'!AM34)/'Base original'!AN34) -> -0.3331984991 | AS42: =('Base original'!AN46/'Base original'!AN34*100-100)*'Base original'!AN34/('Base original'!$AN34) -> 19.1122211
A43: 2009-01-01 | B43: ='Base original'!B47/'Base original'!B35*100-100 -> 13.92605067 | C43: ='Base original'!C47/'Base original'!C35*100-100 -> 5.380483709 | D43: ='Base original'!D47/'Base original'!D35*100-100 -> 18.63429965 | E43: ='Base original'!E47/'Base original'!E35*100-100 -> 46.9582296 | F43: ='Base original'!F47/'Base original'!F35*100-100 -> 16.53815593 | G43: ='Base original'!G47 -> 36.33417145 | K43: ='Base original'!K47 -> 13.51124586 | N43: ='Base original'!N47 -> 5.323566282 | Q43: ='Base original'!Q47 -> 5.92 | R43: =('Base original'!S47/'Base original'!S35*100-100)*'Base original'!S35/'Base original'!$V35 -> 2.497035505 | S43: =('Base original'!T47/'Base original'!T35*100-100)*'Base original'!T35/'Base original'!$V35 -> 1.28869768 | T43: =('Base original'!U47/'Base original'!U35*100-100)*'Base original'!U35/'Base original'!$V35 -> 1.591517135 | U43: =('Base original'!V47/'Base original'!V35*100-100)*'Base original'!V35/'Base original'!$V35 -> 5.377250321 | V43: =('Base original'!V47/'Base original'!V35*100-100)*'Base original'!V35/('Base original'!$AC35) -> 1.148333169 | W43: =('Base original'!W47/'Base original'!W35*100-100)*'Base original'!W35/('Base original'!$AC35) -> 11.74995762 | X43: =('Base original'!X47/'Base original'!X35*100-100)*'Base original'!X35/('Base original'!$AC35) -> 0.4020317147 | Y43: =('Base original'!Y47/'Base original'!Y35*100-100)*'Base original'!Y35/('Base original'!$AC35) -> 4.375051013 | Z43: =('Base original'!Z47/'Base original'!Z35*100-100)*'Base original'!Z35/('Base original'!$AC35) -> 0.2500926075 | AA43: =-('Base original'!AA47/'Base original'!AA35*100-100)*'Base original'!AA35/('Base original'!$AC35) -> -3.426791929 | AB43: =-('Base original'!AB47/'Base original'!AB35*100-100)*'Base original'!AB35/('Base original'!$AC35) -> -0.01339408107 | AC43: =(('Base original'!Y47-'Base original'!AA47)/('Base original'!Y35-'Base original'!AA35)*100-100)*(('Base original'!Y35-'Base original'!AA35)/'Base original'!AC35) -> 0.9482590834 | AD43: =(('Base original'!Z47-'Base original'!AB47)/('Base original'!Z35-'Base original'!AB35)*100-100)*(('Base original'!Z35-'Base original'!AB35)/'Base original'!AC35) -> 0.2366985264 | AE43: =('Base original'!AC47/'Base original'!AC35*100-100)*'Base original'!AC35/('Base original'!$AC35) -> 14.48528011 | AF43: =('Base original'!AC47/'Base original'!AC35*100-100)*'Base original'!AC35/('Base original'!$AN35) -> 9.142544653 | AG43: =('Base original'!AD47/'Base original'!AD35*100-100)*'Base original'!AD35/('Base original'!$AN35) -> 3.090532512 | AH43: =('Base original'!AE47/'Base original'!AE35*100-100)*'Base original'!AE35/('Base original'!$AN35) -> 2.521748779 | AI43: =('Base original'!AF47/'Base original'!AF35*100-100)*'Base original'!AF35/('Base original'!$AN35) -> 1.258826979 | AJ43: =('Base original'!AG47/'Base original'!AG35*100-100)*'Base original'!AG35/('Base original'!$AN35) -> -0.6089393887 | AK43: =('Base original'!AH47/'Base original'!AH35*100-100)*'Base original'!AH35/('Base original'!$AN35) -> 0.1739638124 | AL43: =('Base original'!AI47/'Base original'!AI35*100-100)*'Base original'!AI35/('Base original'!$AN35) -> 3.261854504 | AM43: =('Base original'!AJ47/'Base original'!AJ35*100-100)*'Base original'!AJ35/('Base original'!$AN35) -> -2.020595625 | AN43: =('Base original'!AK47/'Base original'!AK35*100-100)*'Base original'!AK35/('Base original'!$AN35) -> -0.281221683 | AO43: =-('Base original'!AL47/'Base original'!AL35*100-100)*'Base original'!AL35/('Base original'!$AN35) -> -0.2055335551 | AP43: =-('Base original'!AM47/'Base original'!AM35*100-100)*'Base original'!AM35/('Base original'!$AN35) -> 0.01954946411 | AQ43: =(('Base original'!AJ47-'Base original'!AL47)/('Base original'!AJ35-'Base original'!AL35)*100-100)*(('Base original'!AJ35-'Base original'!AL35)/'Base original'!AN35) -> -2.22612918 | AR43: =(('Base original'!AK47-'Base original'!AM47)/('Base original'!AK35-'Base original'!AM35)*100-100)*(('Base original'!AK35-'Base original'!AM35)/'Base original'!AN35) -> -0.2616722189 | AS43: =('Base original'!AN47/'Base original'!AN35*100-100)*'Base original'!AN35/('Base original'!$AN35) -> 16.35273045
A44: 2009-02-01 | B44: ='Base original'!B48/'Base original'!B36*100-100 -> 11.42682459 | C44: ='Base original'!C48/'Base original'!C36*100-100 -> 3.850262605 | D44: ='Base original'!D48/'Base original'!D36*100-100 -> 16.59682269 | E44: ='Base original'!E48/'Base original'!E36*100-100 -> 36.02129932 | F44: ='Base original'!F48/'Base original'!F36*100-100 -> 13.60115863 | G44: ='Base original'!G48 -> 36.18977679 | K44: ='Base original'!K48 -> 12.21579471 | N44: ='Base original'!N48 -> 5.117256562 | Q44: ='Base original'!Q48 -> 5.53 | R44: =('Base original'!S48/'Base original'!S36*100-100)*'Base original'!S36/'Base original'!$V36 -> 2.138468809 | S44: =('Base original'!T48/'Base original'!T36*100-100)*'Base original'!T36/'Base original'!$V36 -> 2.741020794 | T44: =('Base original'!U48/'Base original'!U36*100-100)*'Base original'!U36/'Base original'!$V36 -> -1.153906742 | U44: =('Base original'!V48/'Base original'!V36*100-100)*'Base original'!V36/'Base original'!$V36 -> 3.725582861 | V44: =('Base original'!V48/'Base original'!V36*100-100)*'Base original'!V36/('Base original'!$AC36) -> 0.7839075221 | W44: =('Base original'!W48/'Base original'!W36*100-100)*'Base original'!W36/('Base original'!$AC36) -> 10.27614924 | X44: =('Base original'!X48/'Base original'!X36*100-100)*'Base original'!X36/('Base original'!$AC36) -> 0.3449275963 | Y44: =('Base original'!Y48/'Base original'!Y36*100-100)*'Base original'!Y36/('Base original'!$AC36) -> 5.009633113 | Z44: =('Base original'!Z48/'Base original'!Z36*100-100)*'Base original'!Z36/('Base original'!$AC36) -> 0.2392740983 | AA44: =-('Base original'!AA48/'Base original'!AA36*100-100)*'Base original'!AA36/('Base original'!$AC36) -> -4.166891094 | AB44: =-('Base original'!AB48/'Base original'!AB36*100-100)*'Base original'!AB36/('Base original'!$AC36) -> -0.01885189866 | AC44: =(('Base original'!Y48-'Base original'!AA48)/('Base original'!Y36-'Base original'!AA36)*100-100)*(('Base original'!Y36-'Base original'!AA36)/'Base original'!AC36) -> 0.842742019 | AD44: =(('Base original'!Z48-'Base original'!AB48)/('Base original'!Z36-'Base original'!AB36)*100-100)*(('Base original'!Z36-'Base original'!AB36)/'Base original'!AC36) -> 0.2204221997 | AE44: =('Base original'!AC48/'Base original'!AC36*100-100)*'Base original'!AC36/('Base original'!$AC36) -> 12.46814858 | AF44: =('Base original'!AC48/'Base original'!AC36*100-100)*'Base original'!AC36/('Base original'!$AN36) -> 7.926264732 | AG44: =('Base original'!AD48/'Base original'!AD36*100-100)*'Base original'!AD36/('Base original'!$AN36) -> 3.023530543 | AH44: =('Base original'!AE48/'Base original'!AE36*100-100)*'Base original'!AE36/('Base original'!$AN36) -> 2.302877214 | AI44: =('Base original'!AF48/'Base original'!AF36*100-100)*'Base original'!AF36/('Base original'!$AN36) -> 1.505970544 | AJ44: =('Base original'!AG48/'Base original'!AG36*100-100)*'Base original'!AG36/('Base original'!$AN36) -> -0.4855717881 | AK44: =('Base original'!AH48/'Base original'!AH36*100-100)*'Base original'!AH36/('Base original'!$AN36) -> 0.209663761 | AL44: =('Base original'!AI48/'Base original'!AI36*100-100)*'Base original'!AI36/('Base original'!$AN36) -> 3.473675477 | AM44: =('Base original'!AJ48/'Base original'!AJ36*100-100)*'Base original'!AJ36/('Base original'!$AN36) -> -1.239149703 | AN44: =('Base original'!AK48/'Base original'!AK36*100-100)*'Base original'!AK36/('Base original'!$AN36) -> -0.2531242139 | AO44: =-('Base original'!AL48/'Base original'!AL36*100-100)*'Base original'!AL36/('Base original'!$AN36) -> -0.5785508178 | AP44: =-('Base original'!AM48/'Base original'!AM36*100-100)*'Base original'!AM36/('Base original'!$AN36) -> 0.01316983423 | AQ44: =(('Base original'!AJ48-'Base original'!AL48)/('Base original'!AJ36-'Base original'!AL36)*100-100)*(('Base original'!AJ36-'Base original'!AL36)/'Base original'!AN36) -> -1.817700521 | AR44: =(('Base original'!AK48-'Base original'!AM48)/('Base original'!AK36-'Base original'!AM36)*100-100)*(('Base original'!AK36-'Base original'!AM36)/'Base original'!AN36) -> -0.2399543797 | AS44: =('Base original'!AN48/'Base original'!AN36*100-100)*'Base original'!AN36/('Base original'!$AN36) -> 15.89875558
A45: 2009-03-01 | B45: ='Base original'!B49/'Base original'!B37*100-100 -> 9.11651237 | C45: ='Base original'!C49/'Base original'!C37*100-100 -> 2.820031559 | D45: ='Base original'!D49/'Base original'!D37*100-100 -> 15.1063322 | E45: ='Base original'!E49/'Base original'!E37*100-100 -> 30.72665462 | F45: ='Base original'!F49/'Base original'!F37*100-100 -> 11.36667338 | G45: ='Base original'!G49 -> 32.23109006 | K45: ='Base original'!K49 -> 10.05881629 | N45: ='Base original'!N49 -> 4.683590798 | Q45: ='Base original'!Q49 -> 4.9 | R45: =('Base original'!S49/'Base original'!S37*100-100)*'Base original'!S37/'Base original'!$V37 -> 2.282784086 | S45: =('Base original'!T49/'Base original'!T37*100-100)*'Base original'!T37/'Base original'!$V37 -> 5.492144887 | T45: =('Base original'!U49/'Base original'!U37*100-100)*'Base original'!U37/'Base original'!$V37 -> -2.42137462 | U45: =('Base original'!V49/'Base original'!V37*100-100)*'Base original'!V37/'Base original'!$V37 -> 5.353554352 | V45: =('Base original'!V49/'Base original'!V37*100-100)*'Base original'!V37/('Base original'!$AC37) -> 1.108323906 | W45: =('Base original'!W49/'Base original'!W37*100-100)*'Base original'!W37/('Base original'!$AC37) -> 3.606561409 | X45: =('Base original'!X49/'Base original'!X37*100-100)*'Base original'!X37/('Base original'!$AC37) -> 0.3143803387 | Y45: =('Base original'!Y49/'Base original'!Y37*100-100)*'Base original'!Y37/('Base original'!$AC37) -> 4.403579099 | Z45: =('Base original'!Z49/'Base original'!Z37*100-100)*'Base original'!Z37/('Base original'!$AC37) -> 0.230354303 | AA45: =-('Base original'!AA49/'Base original'!AA37*100-100)*'Base original'!AA37/('Base original'!$AC37) -> -3.766005935 | AB45: =-('Base original'!AB49/'Base original'!AB37*100-100)*'Base original'!AB37/('Base original'!$AC37) -> -0.02274851212 | AC45: =(('Base original'!Y49-'Base original'!AA49)/('Base original'!Y37-'Base original'!AA37)*100-100)*(('Base original'!Y37-'Base original'!AA37)/'Base original'!AC37) -> 0.6375731641 | AD45: =(('Base original'!Z49-'Base original'!AB49)/('Base original'!Z37-'Base original'!AB37)*100-100)*(('Base original'!Z37-'Base original'!AB37)/'Base original'!AC37) -> 0.2076057908 | AE45: =('Base original'!AC49/'Base original'!AC37*100-100)*'Base original'!AC37/('Base original'!$AC37) -> 5.874444608 | AF45: =('Base original'!AC49/'Base original'!AC37*100-100)*'Base original'!AC37/('Base original'!$AN37) -> 3.753104783 | AG45: =('Base original'!AD49/'Base original'!AD37*100-100)*'Base original'!AD37/('Base original'!$AN37) -> 3.032703495 | AH45: =('Base original'!AE49/'Base original'!AE37*100-100)*'Base original'!AE37/('Base original'!$AN37) -> 2.992113819 | AI45: =('Base original'!AF49/'Base original'!AF37*100-100)*'Base original'!AF37/('Base original'!$AN37) -> 1.524338748 | AJ45: =('Base original'!AG49/'Base original'!AG37*100-100)*'Base original'!AG37/('Base original'!$AN37) -> -0.6301874588 | AK45: =('Base original'!AH49/'Base original'!AH37*100-100)*'Base original'!AH37/('Base original'!$AN37) -> 0.2534890755 | AL45: =('Base original'!AI49/'Base original'!AI37*100-100)*'Base original'!AI37/('Base original'!$AN37) -> 3.505507757 | AM45: =('Base original'!AJ49/'Base original'!AJ37*100-100)*'Base original'!AJ37/('Base original'!$AN37) -> -1.096444999 | AN45: =('Base original'!AK49/'Base original'!AK37*100-100)*'Base original'!AK37/('Base original'!$AN37) -> -0.2530962722 | AO45: =-('Base original'!AL49/'Base original'!AL37*100-100)*'Base original'!AL37/('Base original'!$AN37) -> -0.7433148148 | AP45: =-('Base original'!AM49/'Base original'!AM37*100-100)*'Base original'!AM37/('Base original'!$AN37) -> 0.02186605145 | AQ45: =(('Base original'!AJ49-'Base original'!AL49)/('Base original'!AJ37-'Base original'!AL37)*100-100)*(('Base original'!AJ37-'Base original'!AL37)/'Base original'!AN37) -> -1.839759814 | AR45: =(('Base original'!AK49-'Base original'!AM49)/('Base original'!AK37-'Base original'!AM37)*100-100)*(('Base original'!AK37-'Base original'!AM37)/'Base original'!AN37) -> -0.2312302207 | AS45: =('Base original'!AN49/'Base original'!AN37*100-100)*'Base original'!AN37/('Base original'!$AN37) -> 12.36008018
A46: 2009-04-01 | B46: ='Base original'!B50/'Base original'!B38*100-100 -> 7.729474345 | C46: ='Base original'!C50/'Base original'!C38*100-100 -> 2.022545014 | D46: ='Base original'!D50/'Base original'!D38*100-100 -> 13.1399209 | E46: ='Base original'!E50/'Base original'!E38*100-100 -> 9.965763716 | F46: ='Base original'!F50/'Base original'!F38*100-100 -> 8.393857943 | G46: ='Base original'!G50 -> 29.97497029 | K46: ='Base original'!K50 -> 8.766351447 | N46: ='Base original'!N50 -> 3.947299689 | Q46: ='Base original'!Q50 -> 4.42 | R46: =('Base original'!S50/'Base original'!S38*100-100)*'Base original'!S38/'Base original'!$V38 -> 2.46304931 | S46: =('Base original'!T50/'Base original'!T38*100-100)*'Base original'!T38/'Base original'!$V38 -> 6.840703672 | T46: =('Base original'!U50/'Base original'!U38*100-100)*'Base original'!U38/'Base original'!$V38 -> -1.497827012 | U46: =('Base original'!V50/'Base original'!V38*100-100)*'Base original'!V38/'Base original'!$V38 -> 7.80592597 | V46: =('Base original'!V50/'Base original'!V38*100-100)*'Base original'!V38/('Base original'!$AC38) -> 1.59314815 | W46: =('Base original'!W50/'Base original'!W38*100-100)*'Base original'!W38/('Base original'!$AC38) -> 0.4568304333 | X46: =('Base original'!X50/'Base original'!X38*100-100)*'Base original'!X38/('Base original'!$AC38) -> 0.3172152942 | Y46: =('Base original'!Y50/'Base original'!Y38*100-100)*'Base original'!Y38/('Base original'!$AC38) -> 5.672092328 | Z46: =('Base original'!Z50/'Base original'!Z38*100-100)*'Base original'!Z38/('Base original'!$AC38) -> 0.2135646917 | AA46: =-('Base original'!AA50/'Base original'!AA38*100-100)*'Base original'!AA38/('Base original'!$AC38) -> -5.504796619 | AB46: =-('Base original'!AB50/'Base original'!AB38*100-100)*'Base original'!AB38/('Base original'!$AC38) -> -0.01212287749 | AC46: =(('Base original'!Y50-'Base original'!AA50)/('Base original'!Y38-'Base original'!AA38)*100-100)*(('Base original'!Y38-'Base original'!AA38)/'Base original'!AC38) -> 0.1672957093 | AD46: =(('Base original'!Z50-'Base original'!AB50)/('Base original'!Z38-'Base original'!AB38)*100-100)*(('Base original'!Z38-'Base original'!AB38)/'Base original'!AC38) -> 0.2014418142 | AE46: =('Base original'!AC50/'Base original'!AC38*100-100)*'Base original'!AC38/('Base original'!$AC38) -> 2.735931401 | AF46: =('Base original'!AC50/'Base original'!AC38*100-100)*'Base original'!AC38/('Base original'!$AN38) -> 1.741589797 | AG46: =('Base original'!AD50/'Base original'!AD38*100-100)*'Base original'!AD38/('Base original'!$AN38) -> 2.344413176 | AH46: =('Base original'!AE50/'Base original'!AE38*100-100)*'Base original'!AE38/('Base original'!$AN38) -> 3.174886947 | AI46: =('Base original'!AF50/'Base original'!AF38*100-100)*'Base original'!AF38/('Base original'!$AN38) -> 1.432654069 | AJ46: =('Base original'!AG50/'Base original'!AG38*100-100)*'Base original'!AG38/('Base original'!$AN38) -> -0.7747830247 | AK46: =('Base original'!AH50/'Base original'!AH38*100-100)*'Base original'!AH38/('Base original'!$AN38) -> 0.2653348904 | AL46: =('Base original'!AI50/'Base original'!AI38*100-100)*'Base original'!AI38/('Base original'!$AN38) -> 3.833658303 | AM46: =('Base original'!AJ50/'Base original'!AJ38*100-100)*'Base original'!AJ38/('Base original'!$AN38) -> -1.150856326 | AN46: =('Base original'!AK50/'Base original'!AK38*100-100)*'Base original'!AK38/('Base original'!$AN38) -> -0.2300940955 | AO46: =-('Base original'!AL50/'Base original'!AL38*100-100)*'Base original'!AL38/('Base original'!$AN38) -> -0.714462102 | AP46: =-('Base original'!AM50/'Base original'!AM38*100-100)*'Base original'!AM38/('Base original'!$AN38) -> 0.02366535135 | AQ46: =(('Base original'!AJ50-'Base original'!AL50)/('Base original'!AJ38-'Base original'!AL38)*100-100)*(('Base original'!AJ38-'Base original'!AL38)/'Base original'!AN38) -> -1.865318428 | AR46: =(('Base original'!AK50-'Base original'!AM50)/('Base original'!AK38-'Base original'!AM38)*100-100)*(('Base original'!AK38-'Base original'!AM38)/'Base original'!AN38) -> -0.2064287441 | AS46: =('Base original'!AN50/'Base original'!AN38*100-100)*'Base original'!AN38/('Base original'!$AN38) -> 9.946006986
A47: 2009-05-01 | B47: ='Base original'!B51/'Base original'!B39*100-100 -> 5.808529583 | C47: ='Base original'!C51/'Base original'!C39*100-100 -> 1.33634861 | D47: ='Base original'!D51/'Base original'!D39*100-100 -> 12.17029718 | E47: ='Base original'!E51/'Base original'!E39*100-100 -> -2.399493265 | F47: ='Base original'!F51/'Base original'!F39*100-100 -> 5.867166996 | G47: ='Base original'!G51 -> 29.56658702 | K47: ='Base original'!K51 -> 8.071368334 | N47: ='Base original'!N51 -> 3.776842156 | Q47: ='Base original'!Q51 -> 4.455645369 | R47: =('Base original'!S51/'Base original'!S39*100-100)*'Base original'!S39/'Base original'!$V39 -> 2.268538075 | S47: =('Base original'!T51/'Base original'!T39*100-100)*'Base original'!T39/'Base original'!$V39 -> 6.271840559 | T47: =('Base original'!U51/'Base original'!U39*100-100)*'Base original'!U39/'Base original'!$V39 -> 0.2716869552 | U47: =('Base original'!V51/'Base original'!V39*100-100)*'Base original'!V39/'Base original'!$V39 -> 8.812065589 | V47: =('Base original'!V51/'Base original'!V39*100-100)*'Base original'!V39/('Base original'!$AC39) -> 1.847379374 | W47: =('Base original'!W51/'Base original'!W39*100-100)*'Base original'!W39/('Base original'!$AC39) -> 0.2990745996 | X47: =('Base original'!X51/'Base original'!X39*100-100)*'Base original'!X39/('Base original'!$AC39) -> 0.3270499491 | Y47: =('Base original'!Y51/'Base original'!Y39*100-100)*'Base original'!Y39/('Base original'!$AC39) -> 4.607680944 | Z47: =('Base original'!Z51/'Base original'!Z39*100-100)*'Base original'!Z39/('Base original'!$AC39) -> 0.1990476305 | AA47: =-('Base original'!AA51/'Base original'!AA39*100-100)*'Base original'!AA39/('Base original'!$AC39) -> -4.659606413 | AB47: =-('Base original'!AB51/'Base original'!AB39*100-100)*'Base original'!AB39/('Base original'!$AC39) -> -0.008452983299 | AC47: =(('Base original'!Y51-'Base original'!AA51)/('Base original'!Y39-'Base original'!AA39)*100-100)*(('Base original'!Y39-'Base original'!AA39)/'Base original'!AC39) -> -0.05192546884 | AD47: =(('Base original'!Z51-'Base original'!AB51)/('Base original'!Z39-'Base original'!AB39)*100-100)*(('Base original'!Z39-'Base original'!AB39)/'Base original'!AC39) -> 0.1905946472 | AE47: =('Base original'!AC51/'Base original'!AC39*100-100)*'Base original'!AC39/('Base original'!$AC39) -> 2.612173101 | AF47: =('Base original'!AC51/'Base original'!AC39*100-100)*'Base original'!AC39/('Base original'!$AN39) -> 1.640564762 | AG47: =('Base original'!AD51/'Base original'!AD39*100-100)*'Base original'!AD39/('Base original'!$AN39) -> 1.218510232 | AH47: =('Base original'!AE51/'Base original'!AE39*100-100)*'Base original'!AE39/('Base original'!$AN39) -> 2.770214756 | AI47: =('Base original'!AF51/'Base original'!AF39*100-100)*'Base original'!AF39/('Base original'!$AN39) -> 1.314069748 | AJ47: =('Base original'!AG51/'Base original'!AG39*100-100)*'Base original'!AG39/('Base original'!$AN39) -> -0.6550124505 | AK47: =('Base original'!AH51/'Base original'!AH39*100-100)*'Base original'!AH39/('Base original'!$AN39) -> 0.2581118147 | AL47: =('Base original'!AI51/'Base original'!AI39*100-100)*'Base original'!AI39/('Base original'!$AN39) -> 3.983163323 | AM47: =('Base original'!AJ51/'Base original'!AJ39*100-100)*'Base original'!AJ39/('Base original'!$AN39) -> -1.116757044 | AN47: =('Base original'!AK51/'Base original'!AK39*100-100)*'Base original'!AK39/('Base original'!$AN39) -> -0.2162729261 | AO47: =-('Base original'!AL51/'Base original'!AL39*100-100)*'Base original'!AL39/('Base original'!$AN39) -> -0.5747475131 | AP47: =-('Base original'!AM51/'Base original'!AM39*100-100)*'Base original'!AM39/('Base original'!$AN39) -> 0.03602442077 | AQ47: =(('Base original'!AJ51-'Base original'!AL51)/('Base original'!AJ39-'Base original'!AL39)*100-100)*(('Base original'!AJ39-'Base original'!AL39)/'Base original'!AN39) -> -1.691504557 | AR47: =(('Base original'!AK51-'Base original'!AM51)/('Base original'!AK39-'Base original'!AM39)*100-100)*(('Base original'!AK39-'Base original'!AM39)/'Base original'!AN39) -> -0.1802485053 | AS47: =('Base original'!AN51/'Base original'!AN39*100-100)*'Base original'!AN39/('Base original'!$AN39) -> 8.657869124
A48: 2009-06-01 | B48: ='Base original'!B52/'Base original'!B40*100-100 -> 2.848261871 | C48: ='Base original'!C52/'Base original'!C40*100-100 -> 0.1622425609 | D48: ='Base original'!D52/'Base original'!D40*100-100 -> 10.73803343 | E48: ='Base original'!E52/'Base original'!E40*100-100 -> -23.01216392 | F48: ='Base original'!F52/'Base original'!F40*100-100 -> 1.602554879 | G48: ='Base original'!G52 -> 28.9061915 | K48: ='Base original'!K52 -> 7.984518349 | N48: ='Base original'!N52 -> 3.496964596 | Q48: ='Base original'!Q52 -> 4.61 | R48: =('Base original'!S52/'Base original'!S40*100-100)*'Base original'!S40/'Base original'!$V40 -> 2.197927886 | S48: =('Base original'!T52/'Base original'!T40*100-100)*'Base original'!T40/'Base original'!$V40 -> 6.727222471 | T48: =('Base original'!U52/'Base original'!U40*100-100)*'Base original'!U40/'Base original'!$V40 -> 1.780455026 | U48: =('Base original'!V52/'Base original'!V40*100-100)*'Base original'!V40/'Base original'!$V40 -> 10.70560538 | V48: =('Base original'!V52/'Base original'!V40*100-100)*'Base original'!V40/('Base original'!$AC40) -> 2.239631833 | W48: =('Base original'!W52/'Base original'!W40*100-100)*'Base original'!W40/('Base original'!$AC40) -> -0.488324284 | X48: =('Base original'!X52/'Base original'!X40*100-100)*'Base original'!X40/('Base original'!$AC40) -> 0.3174406942 | Y48: =('Base original'!Y52/'Base original'!Y40*100-100)*'Base original'!Y40/('Base original'!$AC40) -> 4.062722453 | Z48: =('Base original'!Z52/'Base original'!Z40*100-100)*'Base original'!Z40/('Base original'!$AC40) -> 0.1551311935 | AA48: =-('Base original'!AA52/'Base original'!AA40*100-100)*'Base original'!AA40/('Base original'!$AC40) -> -3.600319833 | AB48: =-('Base original'!AB52/'Base original'!AB40*100-100)*'Base original'!AB40/('Base original'!$AC40) -> -0.008574089103 | AC48: =(('Base original'!Y52-'Base original'!AA52)/('Base original'!Y40-'Base original'!AA40)*100-100)*(('Base original'!Y40-'Base original'!AA40)/'Base original'!AC40) -> 0.4624026193 | AD48: =(('Base original'!Z52-'Base original'!AB52)/('Base original'!Z40-'Base original'!AB40)*100-100)*(('Base original'!Z40-'Base original'!AB40)/'Base original'!AC40) -> 0.1465571044 | AE48: =('Base original'!AC52/'Base original'!AC40*100-100)*'Base original'!AC40/('Base original'!$AC40) -> 2.677707967 | AF48: =('Base original'!AC52/'Base original'!AC40*100-100)*'Base original'!AC40/('Base original'!$AN40) -> 1.661511432 | AG48: =('Base original'!AD52/'Base original'!AD40*100-100)*'Base original'!AD40/('Base original'!$AN40) -> 0.004206671286 | AH48: =('Base original'!AE52/'Base original'!AE40*100-100)*'Base original'!AE40/('Base original'!$AN40) -> 2.520785905 | AI48: =('Base original'!AF52/'Base original'!AF40*100-100)*'Base original'!AF40/('Base original'!$AN40) -> 1.265341978 | AJ48: =('Base original'!AG52/'Base original'!AG40*100-100)*'Base original'!AG40/('Base original'!$AN40) -> -0.8014946056 | AK48: =('Base original'!AH52/'Base original'!AH40*100-100)*'Base original'!AH40/('Base original'!$AN40) -> 0.2286449569 | AL48: =('Base original'!AI52/'Base original'!AI40*100-100)*'Base original'!AI40/('Base original'!$AN40) -> 3.744679798 | AM48: =('Base original'!AJ52/'Base original'!AJ40*100-100)*'Base original'!AJ40/('Base original'!$AN40) -> -1.016777195 | AN48: =('Base original'!AK52/'Base original'!AK40*100-100)*'Base original'!AK40/('Base original'!$AN40) -> -0.1867019697 | AO48: =-('Base original'!AL52/'Base original'!AL40*100-100)*'Base original'!AL40/('Base original'!$AN40) -> -0.4533306939 | AP48: =-('Base original'!AM52/'Base original'!AM40*100-100)*'Base original'!AM40/('Base original'!$AN40) -> 0.05196476294 | AQ48: =(('Base original'!AJ52-'Base original'!AL52)/('Base original'!AJ40-'Base original'!AL40)*100-100)*(('Base original'!AJ40-'Base original'!AL40)/'Base original'!AN40) -> -1.470107889 | AR48: =(('Base original'!AK52-'Base original'!AM52)/('Base original'!AK40-'Base original'!AM40)*100-100)*(('Base original'!AK40-'Base original'!AM40)/'Base original'!AN40) -> -0.1347372068 | AS48: =('Base original'!AN52/'Base original'!AN40*100-100)*'Base original'!AN40/('Base original'!$AN40) -> 7.01883104
A49: 2009-07-01 | B49: ='Base original'!B53/'Base original'!B41*100-100 -> 1.768445658 | C49: ='Base original'!C53/'Base original'!C41*100-100 -> -0.2000263149 | D49: ='Base original'!D53/'Base original'!D41*100-100 -> 9.231442079 | E49: ='Base original'!E53/'Base original'!E41*100-100 -> -19.89023915 | F49: ='Base original'!F53/'Base original'!F41*100-100 -> 1.082394406 | G49: ='Base original'!G53 -> 27.90935239 | K49: ='Base original'!K53 -> 7.240847234 | N49: ='Base original'!N53 -> 2.713315794 | Q49: ='Base original'!Q53 -> 4.62 | R49: =('Base original'!S53/'Base original'!S41*100-100)*'Base original'!S41/'Base original'!$V41 -> 2.337641454 | S49: =('Base original'!T53/'Base original'!T41*100-100)*'Base original'!T41/'Base original'!$V41 -> 9.510361601 | T49: =('Base original'!U53/'Base original'!U41*100-100)*'Base original'!U41/'Base original'!$V41 -> 4.753673293 | U49: =('Base original'!V53/'Base original'!V41*100-100)*'Base original'!V41/'Base original'!$V41 -> 16.60167635 | V49: =('Base original'!V53/'Base original'!V41*100-100)*'Base original'!V41/('Base original'!$AC41) -> 3.307153454 | W49: =('Base original'!W53/'Base original'!W41*100-100)*'Base original'!W41/('Base original'!$AC41) -> -0.5219292362 | X49: =('Base original'!X53/'Base original'!X41*100-100)*'Base original'!X41/('Base original'!$AC41) -> 0.2836876593 | Y49: =('Base original'!Y53/'Base original'!Y41*100-100)*'Base original'!Y41/('Base original'!$AC41) -> 7.448953239 | Z49: =('Base original'!Z53/'Base original'!Z41*100-100)*'Base original'!Z41/('Base original'!$AC41) -> 0.1199216005 | AA49: =-('Base original'!AA53/'Base original'!AA41*100-100)*'Base original'!AA41/('Base original'!$AC41) -> -6.553445193 | AB49: =-('Base original'!AB53/'Base original'!AB41*100-100)*'Base original'!AB41/('Base original'!$AC41) -> -0.001001015029 | AC49: =(('Base original'!Y53-'Base original'!AA53)/('Base original'!Y41-'Base original'!AA41)*100-100)*(('Base original'!Y41-'Base original'!AA41)/'Base original'!AC41) -> 0.8955080452 | AD49: =(('Base original'!Z53-'Base original'!AB53)/('Base original'!Z41-'Base original'!AB41)*100-100)*(('Base original'!Z41-'Base original'!AB41)/'Base original'!AC41) -> 0.1189205855 | AE49: =('Base original'!AC53/'Base original'!AC41*100-100)*'Base original'!AC41/('Base original'!$AC41) -> 4.083340507 | AF49: =('Base original'!AC53/'Base original'!AC41*100-100)*'Base original'!AC41/('Base original'!$AN41) -> 2.503664168 | AG49: =('Base original'!AD53/'Base original'!AD41*100-100)*'Base original'!AD41/('Base original'!$AN41) -> -0.8474846743 | AH49: =('Base original'!AE53/'Base original'!AE41*100-100)*'Base original'!AE41/('Base original'!$AN41) -> 1.255882923 | AI49: =('Base original'!AF53/'Base original'!AF41*100-100)*'Base original'!AF41/('Base original'!$AN41) -> 1.341196053 | AJ49: =('Base original'!AG53/'Base original'!AG41*100-100)*'Base original'!AG41/('Base original'!$AN41) -> -0.814341444 | AK49: =('Base original'!AH53/'Base original'!AH41*100-100)*'Base original'!AH41/('Base original'!$AN41) -> 0.2321253649 | AL49: =('Base original'!AI53/'Base original'!AI41*100-100)*'Base original'!AI41/('Base original'!$AN41) -> 3.533682115 | AM49: =('Base original'!AJ53/'Base original'!AJ41*100-100)*'Base original'!AJ41/('Base original'!$AN41) -> -0.6590592724 | AN49: =('Base original'!AK53/'Base original'!AK41*100-100)*'Base original'!AK41/('Base original'!$AN41) -> -0.1362555024 | AO49: =-('Base original'!AL53/'Base original'!AL41*100-100)*'Base original'!AL41/('Base original'!$AN41) -> -0.4964119384 | AP49: =-('Base original'!AM53/'Base original'!AM41*100-100)*'Base original'!AM41/('Base original'!$AN41) -> 0.06984628906 | AQ49: =(('Base original'!AJ53-'Base original'!AL53)/('Base original'!AJ41-'Base original'!AL41)*100-100)*(('Base original'!AJ41-'Base original'!AL41)/'Base original'!AN41) -> -1.155471211 | AR49: =(('Base original'!AK53-'Base original'!AM53)/('Base original'!AK41-'Base original'!AM41)*100-100)*(('Base original'!AK41-'Base original'!AM41)/'Base original'!AN41) -> -0.06640921333 | AS49: =('Base original'!AN53/'Base original'!AN41*100-100)*'Base original'!AN41/('Base original'!$AN41) -> 5.982844082
A50: 2009-08-01 | B50: ='Base original'!B54/'Base original'!B42*100-100 -> 1.47751355 | C50: ='Base original'!C54/'Base original'!C42*100-100 -> -0.8235564826 | D50: ='Base original'!D54/'Base original'!D42*100-100 -> 7.815388836 | E50: ='Base original'!E54/'Base original'!E42*100-100 -> -19.64061604 | F50: ='Base original'!F54/'Base original'!F42*100-100 -> 0.592747986 | G50: ='Base original'!G54 -> 24.57374351 | K50: ='Base original'!K54 -> 5.987396699 | N50: ='Base original'!N54 -> 3.394973906 | Q50: ='Base original'!Q54 -> 4.56 | R50: =('Base original'!S54/'Base original'!S42*100-100)*'Base original'!S42/'Base original'!$V42 -> 2.720912668 | S50: =('Base original'!T54/'Base original'!T42*100-100)*'Base original'!T42/'Base original'!$V42 -> 10.31025162 | T50: =('Base original'!U54/'Base original'!U42*100-100)*'Base original'!U42/'Base original'!$V42 -> 3.717653138 | U50: =('Base original'!V54/'Base original'!V42*100-100)*'Base original'!V42/'Base original'!$V42 -> 16.74881743 | V50: =('Base original'!V54/'Base original'!V42*100-100)*'Base original'!V42/('Base original'!$AC42) -> 3.361562426 | W50: =('Base original'!W54/'Base original'!W42*100-100)*'Base original'!W42/('Base original'!$AC42) -> -0.769485454 | X50: =('Base original'!X54/'Base original'!X42*100-100)*'Base original'!X42/('Base original'!$AC42) -> 0.2576918628 | Y50: =('Base original'!Y54/'Base original'!Y42*100-100)*'Base original'!Y42/('Base original'!$AC42) -> 7.819312529 | Z50: =('Base original'!Z54/'Base original'!Z42*100-100)*'Base original'!Z42/('Base original'!$AC42) -> 0.08815774252 | AA50: =-('Base original'!AA54/'Base original'!AA42*100-100)*'Base original'!AA42/('Base original'!$AC42) -> -7.150550288 | AB50: =-('Base original'!AB54/'Base original'!AB42*100-100)*'Base original'!AB42/('Base original'!$AC42) -> 0.005584653373 | AC50: =(('Base original'!Y54-'Base original'!AA54)/('Base original'!Y42-'Base original'!AA42)*100-100)*(('Base original'!Y42-'Base original'!AA42)/'Base original'!AC42) -> 0.6687622414 | AD50: =(('Base original'!Z54-'Base original'!AB54)/('Base original'!Z42-'Base original'!AB42)*100-100)*(('Base original'!Z42-'Base original'!AB42)/'Base original'!AC42) -> 0.0937423959 | AE50: =('Base original'!AC54/'Base original'!AC42*100-100)*'Base original'!AC42/('Base original'!$AC42) -> 3.612273472 | AF50: =('Base original'!AC54/'Base original'!AC42*100-100)*'Base original'!AC42/('Base original'!$AN42) -> 2.18563474 | AG50: =('Base original'!AD54/'Base original'!AD42*100-100)*'Base original'!AD42/('Base original'!$AN42) -> -0.8255716006 | AH50: =('Base original'!AE54/'Base original'!AE42*100-100)*'Base original'!AE42/('Base original'!$AN42) -> -0.1557978273 | AI50: =('Base original'!AF54/'Base original'!AF42*100-100)*'Base original'!AF42/('Base original'!$AN42) -> 1.302498799 | AJ50: =('Base original'!AG54/'Base original'!AG42*100-100)*'Base original'!AG42/('Base original'!$AN42) -> -0.8428288348 | AK50: =('Base original'!AH54/'Base original'!AH42*100-100)*'Base original'!AH42/('Base original'!$AN42) -> 0.2146896473 | AL50: =('Base original'!AI54/'Base original'!AI42*100-100)*'Base original'!AI42/('Base original'!$AN42) -> 3.178468764 | AM50: =('Base original'!AJ54/'Base original'!AJ42*100-100)*'Base original'!AJ42/('Base original'!$AN42) -> -0.09437172806 | AN50: =('Base original'!AK54/'Base original'!AK42*100-100)*'Base original'!AK42/('Base original'!$AN42) -> -0.08073489268 | AO50: =-('Base original'!AL54/'Base original'!AL42*100-100)*'Base original'!AL42/('Base original'!$AN42) -> -0.573350486 | AP50: =-('Base original'!AM54/'Base original'!AM42*100-100)*'Base original'!AM42/('Base original'!$AN42) -> 0.07880401333 | AQ50: =(('Base original'!AJ54-'Base original'!AL54)/('Base original'!AJ42-'Base original'!AL42)*100-100)*(('Base original'!AJ42-'Base original'!AL42)/'Base original'!AN42) -> -0.667722214 | AR50: =(('Base original'!AK54-'Base original'!AM54)/('Base original'!AK42-'Base original'!AM42)*100-100)*(('Base original'!AK42-'Base original'!AM42)/'Base original'!AN42) -> -0.001930879347 | AS50: =('Base original'!AN54/'Base original'!AN42*100-100)*'Base original'!AN42/('Base original'!$AN42) -> 4.387440595
A51: 2009-09-01 | B51: ='Base original'!B55/'Base original'!B43*100-100 -> 0.190409256 | C51: ='Base original'!C55/'Base original'!C43*100-100 -> -0.8847249328 | D51: ='Base original'!D55/'Base original'!D43*100-100 -> 6.790161495 | E51: ='Base original'!E55/'Base original'!E43*100-100 -> -27.82090243 | F51: ='Base original'!F55/'Base original'!F43*100-100 -> -1.312811188 | G51: ='Base original'!G55 -> 26.52326424 | K51: ='Base original'!K55 -> 5.774980921 | N51: ='Base original'!N55 -> 2.545047012 | Q51: ='Base original'!Q55 -> 4.49 | R51: =('Base original'!S55/'Base original'!S43*100-100)*'Base original'!S43/'Base original'!$V43 -> 2.919564812 | S51: =('Base original'!T55/'Base original'!T43*100-100)*'Base original'!T43/'Base original'!$V43 -> 11.69493687 | T51: =('Base original'!U55/'Base original'!U43*100-100)*'Base original'!U43/'Base original'!$V43 -> 6.027488645 | U51: =('Base original'!V55/'Base original'!V43*100-100)*'Base original'!V43/'Base original'!$V43 -> 20.64199033 | V51: =('Base original'!V55/'Base original'!V43*100-100)*'Base original'!V43/('Base original'!$AC43) -> 4.140282801 | W51: =('Base original'!W55/'Base original'!W43*100-100)*'Base original'!W43/('Base original'!$AC43) -> -1.953553902 | X51: =('Base original'!X55/'Base original'!X43*100-100)*'Base original'!X43/('Base original'!$AC43) -> 0.2298298708 | Y51: =('Base original'!Y55/'Base original'!Y43*100-100)*'Base original'!Y43/('Base original'!$AC43) -> 6.194977588 | Z51: =('Base original'!Z55/'Base original'!Z43*100-100)*'Base original'!Z43/('Base original'!$AC43) -> 0.07024765743 | AA51: =-('Base original'!AA55/'Base original'!AA43*100-100)*'Base original'!AA43/('Base original'!$AC43) -> -5.903558034 | AB51: =-('Base original'!AB55/'Base original'!AB43*100-100)*'Base original'!AB43/('Base original'!$AC43) -> 0.002558037946 | AC51: =(('Base original'!Y55-'Base original'!AA55)/('Base original'!Y43-'Base original'!AA43)*100-100)*(('Base original'!Y43-'Base original'!AA43)/'Base original'!AC43) -> 0.2914195536 | AD51: =(('Base original'!Z55-'Base original'!AB55)/('Base original'!Z43-'Base original'!AB43)*100-100)*(('Base original'!Z43-'Base original'!AB43)/'Base original'!AC43) -> 0.07280569537 | AE51: =('Base original'!AC55/'Base original'!AC43*100-100)*'Base original'!AC43/('Base original'!$AC43) -> 2.780784019 | AF51: =('Base original'!AC55/'Base original'!AC43*100-100)*'Base original'!AC43/('Base original'!$AN43) -> 1.667195579 | AG51: =('Base original'!AD55/'Base original'!AD43*100-100)*'Base original'!AD43/('Base original'!$AN43) -> -1.004894703 | AH51: =('Base original'!AE55/'Base original'!AE43*100-100)*'Base original'!AE43/('Base original'!$AN43) -> -0.4623365041 | AI51: =('Base original'!AF55/'Base original'!AF43*100-100)*'Base original'!AF43/('Base original'!$AN43) -> 1.257711016 | AJ51: =('Base original'!AG55/'Base original'!AG43*100-100)*'Base original'!AG43/('Base original'!$AN43) -> -0.8269912971 | AK51: =('Base original'!AH55/'Base original'!AH43*100-100)*'Base original'!AH43/('Base original'!$AN43) -> 0.1762517829 | AL51: =('Base original'!AI55/'Base original'!AI43*100-100)*'Base original'!AI43/('Base original'!$AN43) -> 2.163154411 | AM51: =('Base original'!AJ55/'Base original'!AJ43*100-100)*'Base original'!AJ43/('Base original'!$AN43) -> 0.8602597059 | AN51: =('Base original'!AK55/'Base original'!AK43*100-100)*'Base original'!AK43/('Base original'!$AN43) -> -0.001415676971 | AO51: =-('Base original'!AL55/'Base original'!AL43*100-100)*'Base original'!AL43/('Base original'!$AN43) -> -0.9772890022 | AP51: =-('Base original'!AM55/'Base original'!AM43*100-100)*'Base original'!AM43/('Base original'!$AN43) -> 0.08352494128 | AQ51: =(('Base original'!AJ55-'Base original'!AL55)/('Base original'!AJ43-'Base original'!AL43)*100-100)*(('Base original'!AJ43-'Base original'!AL43)/'Base original'!AN43) -> -0.1170292963 | AR51: =(('Base original'!AK55-'Base original'!AM55)/('Base original'!AK43-'Base original'!AM43)*100-100)*(('Base original'!AK43-'Base original'!AM43)/'Base original'!AN43) -> 0.08210926431 | AS51: =('Base original'!AN55/'Base original'!AN43*100-100)*'Base original'!AN43/('Base original'!$AN43) -> 2.935170253
A52: 2009-10-01 | B52: ='Base original'!B56/'Base original'!B44*100-100 -> -3.124849522 | C52: ='Base original'!C56/'Base original'!C44*100-100 -> -0.301030871 | D52: ='Base original'!D56/'Base original'!D44*100-100 -> 6.665499943 | E52: ='Base original'!E56/'Base original'!E44*100-100 -> -38.26890364 | F52: ='Base original'!F56/'Base original'!F44*100-100 -> -4.686929542 | G52: ='Base original'!G56 -> 26.66781426 | K52: ='Base original'!K56 -> 5.613465454 | N52: ='Base original'!N56 -> 2.660928912 | Q52: ='Base original'!Q56 -> 4.35 | R52: =('Base original'!S56/'Base original'!S44*100-100)*'Base original'!S44/'Base original'!$V44 -> 2.546920751 | S52: =('Base original'!T56/'Base original'!T44*100-100)*'Base original'!T44/'Base original'!$V44 -> 9.66063457 | T52: =('Base original'!U56/'Base original'!U44*100-100)*'Base original'!U44/'Base original'!$V44 -> 6.298660779 | U52: =('Base original'!V56/'Base original'!V44*100-100)*'Base original'!V44/'Base original'!$V44 -> 18.5062161 | V52: =('Base original'!V56/'Base original'!V44*100-100)*'Base original'!V44/('Base original'!$AC44) -> 3.657576327 | W52: =('Base original'!W56/'Base original'!W44*100-100)*'Base original'!W44/('Base original'!$AC44) -> -6.998859676 | X52: =('Base original'!X56/'Base original'!X44*100-100)*'Base original'!X44/('Base original'!$AC44) -> 0.2022605366 | Y52: =('Base original'!Y56/'Base original'!Y44*100-100)*'Base original'!Y44/('Base original'!$AC44) -> 6.82809562 | Z52: =('Base original'!Z56/'Base original'!Z44*100-100)*'Base original'!Z44/('Base original'!$AC44) -> 0.06052637071 | AA52: =-('Base original'!AA56/'Base original'!AA44*100-100)*'Base original'!AA44/('Base original'!$AC44) -> -6.287911992 | AB52: =-('Base original'!AB56/'Base original'!AB44*100-100)*'Base original'!AB44/('Base original'!$AC44) -> -0.01271243523 | AC52: =(('Base original'!Y56-'Base original'!AA56)/('Base original'!Y44-'Base original'!AA44)*100-100)*(('Base original'!Y44-'Base original'!AA44)/'Base original'!AC44) -> 0.5401836283 | AD52: =(('Base original'!Z56-'Base original'!AB56)/('Base original'!Z44-'Base original'!AB44)*100-100)*(('Base original'!Z44-'Base original'!AB44)/'Base original'!AC44) -> 0.04781393549 | AE52: =('Base original'!AC56/'Base original'!AC44*100-100)*'Base original'!AC44/('Base original'!$AC44) -> -2.551025248 | AF52: =('Base original'!AC56/'Base original'!AC44*100-100)*'Base original'!AC44/('Base original'!$AN44) -> -1.549512961 | AG52: =('Base original'!AD56/'Base original'!AD44*100-100)*'Base original'!AD44/('Base original'!$AN44) -> -1.479903007 | AH52: =('Base original'!AE56/'Base original'!AE44*100-100)*'Base original'!AE44/('Base original'!$AN44) -> -0.4419771071 | AI52: =('Base original'!AF56/'Base original'!AF44*100-100)*'Base original'!AF44/('Base original'!$AN44) -> 1.226702563 | AJ52: =('Base original'!AG56/'Base original'!AG44*100-100)*'Base original'!AG44/('Base original'!$AN44) -> -0.8573318643 | AK52: =('Base original'!AH56/'Base original'!AH44*100-100)*'Base original'!AH44/('Base original'!$AN44) -> 0.1457890588 | AL52: =('Base original'!AI56/'Base original'!AI44*100-100)*'Base original'!AI44/('Base original'!$AN44) -> 1.393351558 | AM52: =('Base original'!AJ56/'Base original'!AJ44*100-100)*'Base original'!AJ44/('Base original'!$AN44) -> 2.092908544 | AN52: =('Base original'!AK56/'Base original'!AK44*100-100)*'Base original'!AK44/('Base original'!$AN44) -> 0.1113298267 | AO52: =-('Base original'!AL56/'Base original'!AL44*100-100)*'Base original'!AL44/('Base original'!$AN44) -> -1.577864035 | AP52: =-('Base original'!AM56/'Base original'!AM44*100-100)*'Base original'!AM44/('Base original'!$AN44) -> 0.08712769047 | AQ52: =(('Base original'!AJ56-'Base original'!AL56)/('Base original'!AJ44-'Base original'!AL44)*100-100)*(('Base original'!AJ44-'Base original'!AL44)/'Base original'!AN44) -> 0.5150445089 | AR52: =(('Base original'!AK56-'Base original'!AM56)/('Base original'!AK44-'Base original'!AM44)*100-100)*(('Base original'!AK44-'Base original'!AM44)/'Base original'!AN44) -> 0.1984575172 | AS52: =('Base original'!AN56/'Base original'!AN44*100-100)*'Base original'!AN44/('Base original'!$AN44) -> -0.8493797338
A53: 2009-11-01 | B53: ='Base original'!B57/'Base original'!B45*100-100 -> -4.158929895 | C53: ='Base original'!C57/'Base original'!C45*100-100 -> -0.2367642625 | D53: ='Base original'!D57/'Base original'!D45*100-100 -> 6.886516476 | E53: ='Base original'!E57/'Base original'!E45*100-100 -> -42.58371947 | F53: ='Base original'!F57/'Base original'!F45*100-100 -> -5.625516256 | G53: ='Base original'!G57 -> 27.25833994 | K53: ='Base original'!K57 -> 5.247571939 | N53: ='Base original'!N57 -> 2.546599361 | Q53: ='Base original'!Q57 -> 4.28 | R53: =('Base original'!S57/'Base original'!S45*100-100)*'Base original'!S45/'Base original'!$V45 -> 2.473061812 | S53: =('Base original'!T57/'Base original'!T45*100-100)*'Base original'!T45/'Base original'!$V45 -> 11.49006107 | T53: =('Base original'!U57/'Base original'!U45*100-100)*'Base original'!U45/'Base original'!$V45 -> 5.871941495 | U53: =('Base original'!V57/'Base original'!V45*100-100)*'Base original'!V45/'Base original'!$V45 -> 19.83506438 | V53: =('Base original'!V57/'Base original'!V45*100-100)*'Base original'!V45/('Base original'!$AC45) -> 3.81207281 | W53: =('Base original'!W57/'Base original'!W45*100-100)*'Base original'!W45/('Base original'!$AC45) -> -8.748927644 | X53: =('Base original'!X57/'Base original'!X45*100-100)*'Base original'!X45/('Base original'!$AC45) -> 0.1343832296 | Y53: =('Base original'!Y57/'Base original'!Y45*100-100)*'Base original'!Y45/('Base original'!$AC45) -> 5.976409108 | Z53: =('Base original'!Z57/'Base original'!Z45*100-100)*'Base original'!Z45/('Base original'!$AC45) -> 0.03252111536 | AA53: =-('Base original'!AA57/'Base original'!AA45*100-100)*'Base original'!AA45/('Base original'!$AC45) -> -5.36691855 | AB53: =-('Base original'!AB57/'Base original'!AB45*100-100)*'Base original'!AB45/('Base original'!$AC45) -> -0.0102796629 | AC53: =(('Base original'!Y57-'Base original'!AA57)/('Base original'!Y45-'Base original'!AA45)*100-100)*(('Base original'!Y45-'Base original'!AA45)/'Base original'!AC45) -> 0.6094905586 | AD53: =(('Base original'!Z57-'Base original'!AB57)/('Base original'!Z45-'Base original'!AB45)*100-100)*(('Base original'!Z45-'Base original'!AB45)/'Base original'!AC45) -> 0.02224145246 | AE53: =('Base original'!AC57/'Base original'!AC45*100-100)*'Base original'!AC45/('Base original'!$AC45) -> -4.170739594 | AF53: =('Base original'!AC57/'Base original'!AC45*100-100)*'Base original'!AC45/('Base original'!$AN45) -> -2.552254596 | AG53: =('Base original'!AD57/'Base original'!AD45*100-100)*'Base original'!AD45/('Base original'!$AN45) -> -1.705658651 | AH53: =('Base original'!AE57/'Base original'!AE45*100-100)*'Base original'!AE45/('Base original'!$AN45) -> -0.06839561948 | AI53: =('Base original'!AF57/'Base original'!AF45*100-100)*'Base original'!AF45/('Base original'!$AN45) -> 1.261658994 | AJ53: =('Base original'!AG57/'Base original'!AG45*100-100)*'Base original'!AG45/('Base original'!$AN45) -> -1.089183084 | AK53: =('Base original'!AH57/'Base original'!AH45*100-100)*'Base original'!AH45/('Base original'!$AN45) -> 0.0534126326 | AL53: =('Base original'!AI57/'Base original'!AI45*100-100)*'Base original'!AI45/('Base original'!$AN45) -> 1.413204472 | AM53: =('Base original'!AJ57/'Base original'!AJ45*100-100)*'Base original'!AJ45/('Base original'!$AN45) -> 2.649243702 | AN53: =('Base original'!AK57/'Base original'!AK45*100-100)*'Base original'!AK45/('Base original'!$AN45) -> 0.1711034226 | AO53: =-('Base original'!AL57/'Base original'!AL45*100-100)*'Base original'!AL45/('Base original'!$AN45) -> -1.491550625 | AP53: =-('Base original'!AM57/'Base original'!AM45*100-100)*'Base original'!AM45/('Base original'!$AN45) -> 0.08189174506 | AQ53: =(('Base original'!AJ57-'Base original'!AL57)/('Base original'!AJ45-'Base original'!AL45)*100-100)*(('Base original'!AJ45-'Base original'!AL45)/'Base original'!AN45) -> 1.157693078 | AR53: =(('Base original'!AK57-'Base original'!AM57)/('Base original'!AK45-'Base original'!AM45)*100-100)*(('Base original'!AK45-'Base original'!AM45)/'Base original'!AN45) -> 0.2529951677 | AS53: =('Base original'!AN57/'Base original'!AN45*100-100)*'Base original'!AN45/('Base original'!$AN45) -> -1.276527607
A54: 2009-12-01 | B54: ='Base original'!B58/'Base original'!B46*100-100 -> 0.5395345086 | C54: ='Base original'!C58/'Base original'!C46*100-100 -> 0.8077955756 | D54: ='Base original'!D58/'Base original'!D46*100-100 -> 7.131900088 | E54: ='Base original'!E58/'Base original'!E46*100-100 -> -40.92991794 | F54: ='Base original'!F58/'Base original'!F46*100-100 -> -2.339024026 | G54: ='Base original'!G58 -> 26.55652398 | K54: ='Base original'!K58 -> 4.739766636 | N54: ='Base original'!N58 -> 2.220797364 | Q54: ='Base original'!Q58 -> 4.541432542 | R54: =('Base original'!S58/'Base original'!S46*100-100)*'Base original'!S46/'Base original'!$V46 -> 2.495396886 | S54: =('Base original'!T58/'Base original'!T46*100-100)*'Base original'!T46/'Base original'!$V46 -> 15.13892616 | T54: =('Base original'!U58/'Base original'!U46*100-100)*'Base original'!U46/'Base original'!$V46 -> 5.230433294 | U54: =('Base original'!V58/'Base original'!V46*100-100)*'Base original'!V46/'Base original'!$V46 -> 22.86475634 | V54: =('Base original'!V58/'Base original'!V46*100-100)*'Base original'!V46/('Base original'!$AC46) -> 4.52616483 | W54: =('Base original'!W58/'Base original'!W46*100-100)*'Base original'!W46/('Base original'!$AC46) -> -10.37435369 | X54: =('Base original'!X58/'Base original'!X46*100-100)*'Base original'!X46/('Base original'!$AC46) -> 0.1181359791 | Y54: =('Base original'!Y58/'Base original'!Y46*100-100)*'Base original'!Y46/('Base original'!$AC46) -> 5.377842819 | Z54: =('Base original'!Z58/'Base original'!Z46*100-100)*'Base original'!Z46/('Base original'!$AC46) -> 0.006776792599 | AA54: =-('Base original'!AA58/'Base original'!AA46*100-100)*'Base original'!AA46/('Base original'!$AC46) -> -4.930025038 | AB54: =-('Base original'!AB58/'Base original'!AB46*100-100)*'Base original'!AB46/('Base original'!$AC46) -> -0.003296818021 | AC54: =(('Base original'!Y58-'Base original'!AA58)/('Base original'!Y46-'Base original'!AA46)*100-100)*(('Base original'!Y46-'Base original'!AA46)/'Base original'!AC46) -> 0.4478177812 | AD54: =(('Base original'!Z58-'Base original'!AB58)/('Base original'!Z46-'Base original'!AB46)*100-100)*(('Base original'!Z46-'Base original'!AB46)/'Base original'!AC46) -> 0.003479974578 | AE54: =('Base original'!AC58/'Base original'!AC46*100-100)*'Base original'!AC46/('Base original'!$AC46) -> -5.278755122 | AF54: =('Base original'!AC58/'Base original'!AC46*100-100)*'Base original'!AC46/('Base original'!$AN46) -> -3.265783886 | AG54: =('Base original'!AD58/'Base original'!AD46*100-100)*'Base original'!AD46/('Base original'!$AN46) -> -1.448815543 | AH54: =('Base original'!AE58/'Base original'!AE46*100-100)*'Base original'!AE46/('Base original'!$AN46) -> -0.1316692993 | AI54: =('Base original'!AF58/'Base original'!AF46*100-100)*'Base original'!AF46/('Base original'!$AN46) -> 1.264002611 | AJ54: =('Base original'!AG58/'Base original'!AG46*100-100)*'Base original'!AG46/('Base original'!$AN46) -> -0.9649705274 | AK54: =('Base original'!AH58/'Base original'!AH46*100-100)*'Base original'!AH46/('Base original'!$AN46) -> -0.00736532225 | AL54: =('Base original'!AI58/'Base original'!AI46*100-100)*'Base original'!AI46/('Base original'!$AN46) -> 1.363037867 | AM54: =('Base original'!AJ58/'Base original'!AJ46*100-100)*'Base original'!AJ46/('Base original'!$AN46) -> 2.784205123 | AN54: =('Base original'!AK58/'Base original'!AK46*100-100)*'Base original'!AK46/('Base original'!$AN46) -> 0.1861726839 | AO54: =-('Base original'!AL58/'Base original'!AL46*100-100)*'Base original'!AL46/('Base original'!$AN46) -> -1.267175365 | AP54: =-('Base original'!AM58/'Base original'!AM46*100-100)*'Base original'!AM46/('Base original'!$AN46) -> 0.07739253995 | AQ54: =(('Base original'!AJ58-'Base original'!AL58)/('Base original'!AJ46-'Base original'!AL46)*100-100)*(('Base original'!AJ46-'Base original'!AL46)/'Base original'!AN46) -> 1.517029758 | AR54: =(('Base original'!AK58-'Base original'!AM58)/('Base original'!AK46-'Base original'!AM46)*100-100)*(('Base original'!AK46-'Base original'!AM46)/'Base original'!AN46) -> 0.2635652239 | AS54: =('Base original'!AN58/'Base original'!AN46*100-100)*'Base original'!AN46/('Base original'!$AN46) -> -1.410969118
A55: 2010-01-01 | B55: ='Base original'!B59/'Base original'!B47*100-100 -> 1.702202424 | C55: ='Base original'!C59/'Base original'!C47*100-100 -> 1.406485298 | D55: ='Base original'!D59/'Base original'!D47*100-100 -> 7.481898842 | E55: ='Base original'!E59/'Base original'!E47*100-100 -> -29.95339864 | F55: ='Base original'!F59/'Base original'!F47*100-100 -> -0.271676367 | G55: ='Base original'!G59 -> 30.35391496 | K55: ='Base original'!K59 -> 7.040624887 | N55: ='Base original'!N59 -> 1.837065704 | Q55: ='Base original'!Q59 -> 4.583830998 | R55: =('Base original'!S59/'Base original'!S47*100-100)*'Base original'!S47/'Base original'!$V47 -> 2.779741091 | S55: =('Base original'!T59/'Base original'!T47*100-100)*'Base original'!T47/'Base original'!$V47 -> 17.13693178 | T55: =('Base original'!U59/'Base original'!U47*100-100)*'Base original'!U47/'Base original'!$V47 -> 8.241574288 | U55: =('Base original'!V59/'Base original'!V47*100-100)*'Base original'!V47/'Base original'!$V47 -> 28.15824715 | V55: =('Base original'!V59/'Base original'!V47*100-100)*'Base original'!V47/('Base original'!$AC47) -> 5.534908973 | W55: =('Base original'!W59/'Base original'!W47*100-100)*'Base original'!W47/('Base original'!$AC47) -> -9.493142146 | X55: =('Base original'!X59/'Base original'!X47*100-100)*'Base original'!X47/('Base original'!$AC47) -> 0.1860934452 | Y55: =('Base original'!Y59/'Base original'!Y47*100-100)*'Base original'!Y47/('Base original'!$AC47) -> 3.788591997 | Z55: =('Base original'!Z59/'Base original'!Z47*100-100)*'Base original'!Z47/('Base original'!$AC47) -> 0.005484089742 | AA55: =-('Base original'!AA59/'Base original'!AA47*100-100)*'Base original'!AA47/('Base original'!$AC47) -> -3.318971112 | AB55: =-('Base original'!AB59/'Base original'!AB47*100-100)*'Base original'!AB47/('Base original'!$AC47) -> -0.0001828029914 | AC55: =(('Base original'!Y59-'Base original'!AA59)/('Base original'!Y47-'Base original'!AA47)*100-100)*(('Base original'!Y47-'Base original'!AA47)/'Base original'!AC47) -> 0.4696208849 | AD55: =(('Base original'!Z59-'Base original'!AB59)/('Base original'!Z47-'Base original'!AB47)*100-100)*(('Base original'!Z47-'Base original'!AB47)/'Base original'!AC47) -> 0.00530128675 | AE55: =('Base original'!AC59/'Base original'!AC47*100-100)*'Base original'!AC47/('Base original'!$AC47) -> -3.297217556 | AF55: =('Base original'!AC59/'Base original'!AC47*100-100)*'Base original'!AC47/('Base original'!$AN47) -> -2.047674243 | AG55: =('Base original'!AD59/'Base original'!AD47*100-100)*'Base original'!AD47/('Base original'!$AN47) -> -1.175110944 | AH55: =('Base original'!AE59/'Base original'!AE47*100-100)*'Base original'!AE47/('Base original'!$AN47) -> -0.259294116 | AI55: =('Base original'!AF59/'Base original'!AF47*100-100)*'Base original'!AF47/('Base original'!$AN47) -> 1.337567108 | AJ55: =('Base original'!AG59/'Base original'!AG47*100-100)*'Base original'!AG47/('Base original'!$AN47) -> -0.9670171981 | AK55: =('Base original'!AH59/'Base original'!AH47*100-100)*'Base original'!AH47/('Base original'!$AN47) -> -0.006016894987 | AL55: =('Base original'!AI59/'Base original'!AI47*100-100)*'Base original'!AI47/('Base original'!$AN47) -> 1.04410157 | AM55: =('Base original'!AJ59/'Base original'!AJ47*100-100)*'Base original'!AJ47/('Base original'!$AN47) -> 2.834184592 | AN55: =('Base original'!AK59/'Base original'!AK47*100-100)*'Base original'!AK47/('Base original'!$AN47) -> 0.2069584823 | AO55: =-('Base original'!AL59/'Base original'!AL47*100-100)*'Base original'!AL47/('Base original'!$AN47) -> -1.169434628 | AP55: =-('Base original'!AM59/'Base original'!AM47*100-100)*'Base original'!AM47/('Base original'!$AN47) -> 0.02338642203 | AQ55: =(('Base original'!AJ59-'Base original'!AL59)/('Base original'!AJ47-'Base original'!AL47)*100-100)*(('Base original'!AJ47-'Base original'!AL47)/'Base original'!AN47) -> 1.664749964 | AR55: =(('Base original'!AK59-'Base original'!AM59)/('Base original'!AK47-'Base original'!AM47)*100-100)*(('Base original'!AK47-'Base original'!AM47)/'Base original'!AN47) -> 0.2303449043 | AS55: =('Base original'!AN59/'Base original'!AN47*100-100)*'Base original'!AN47/('Base original'!$AN47) -> -0.1783498495
A56: 2010-02-01 | B56: ='Base original'!B60/'Base original'!B48*100-100 -> 3.517441588 | C56: ='Base original'!C60/'Base original'!C48*100-100 -> 2.311812815 | D56: ='Base original'!D60/'Base original'!D48*100-100 -> 8.937570741 | E56: ='Base original'!E60/'Base original'!E48*100-100 -> -27.59056686 | F56: ='Base original'!F60/'Base original'!F48*100-100 -> 1.557876943 | G56: ='Base original'!G60 -> 29.546126 | K56: ='Base original'!K60 -> 5.62794949 | N56: ='Base original'!N60 -> 1.978243918 | Q56: ='Base original'!Q60 -> 4.602983966 | R56: =('Base original'!S60/'Base original'!S48*100-100)*'Base original'!S48/'Base original'!$V48 -> 3.377249601 | S56: =('Base original'!T60/'Base original'!T48*100-100)*'Base original'!T48/'Base original'!$V48 -> 16.2170628 | T56: =('Base original'!U60/'Base original'!U48*100-100)*'Base original'!U48/'Base original'!$V48 -> 12.11747285 | U56: =('Base original'!V60/'Base original'!V48*100-100)*'Base original'!V48/'Base original'!$V48 -> 31.71178525 | V56: =('Base original'!V60/'Base original'!V48*100-100)*'Base original'!V48/('Base original'!$AC48) -> 6.153860323 | W56: =('Base original'!W60/'Base original'!W48*100-100)*'Base original'!W48/('Base original'!$AC48) -> -9.173228709 | X56: =('Base original'!X60/'Base original'!X48*100-100)*'Base original'!X48/('Base original'!$AC48) -> 0.1711196456 | Y56: =('Base original'!Y60/'Base original'!Y48*100-100)*'Base original'!Y48/('Base original'!$AC48) -> 1.212757531 | Z56: =('Base original'!Z60/'Base original'!Z48*100-100)*'Base original'!Z48/('Base original'!$AC48) -> 0.004420744343 | AA56: =-('Base original'!AA60/'Base original'!AA48*100-100)*'Base original'!AA48/('Base original'!$AC48) -> -0.9359084169 | AB56: =-('Base original'!AB60/'Base original'!AB48*100-100)*'Base original'!AB48/('Base original'!$AC48) -> 0.0009209884048 | AC56: =(('Base original'!Y60-'Base original'!AA60)/('Base original'!Y48-'Base original'!AA48)*100-100)*(('Base original'!Y48-'Base original'!AA48)/'Base original'!AC48) -> 0.2768491145 | AD56: =(('Base original'!Z60-'Base original'!AB60)/('Base original'!Z48-'Base original'!AB48)*100-100)*(('Base original'!Z48-'Base original'!AB48)/'Base original'!AC48) -> 0.005341732748 | AE56: =('Base original'!AC60/'Base original'!AC48*100-100)*'Base original'!AC48/('Base original'!$AC48) -> -2.566057893 | AF56: =('Base original'!AC60/'Base original'!AC48*100-100)*'Base original'!AC48/('Base original'!$AN48) -> -1.583010618 | AG56: =('Base original'!AD60/'Base original'!AD48*100-100)*'Base original'!AD48/('Base original'!$AN48) -> -1.106096142 | AH56: =('Base original'!AE60/'Base original'!AE48*100-100)*'Base original'!AE48/('Base original'!$AN48) -> -0.1144276572 | AI56: =('Base original'!AF60/'Base original'!AF48*100-100)*'Base original'!AF48/('Base original'!$AN48) -> 1.357337006 | AJ56: =('Base original'!AG60/'Base original'!AG48*100-100)*'Base original'!AG48/('Base original'!$AN48) -> -1.070188357 | AK56: =('Base original'!AH60/'Base original'!AH48*100-100)*'Base original'!AH48/('Base original'!$AN48) -> -0.05817970256 | AL56: =('Base original'!AI60/'Base original'!AI48*100-100)*'Base original'!AI48/('Base original'!$AN48) -> 0.7925848151 | AM56: =('Base original'!AJ60/'Base original'!AJ48*100-100)*'Base original'!AJ48/('Base original'!$AN48) -> 2.611155049 | AN56: =('Base original'!AK60/'Base original'!AK48*100-100)*'Base original'!AK48/('Base original'!$AN48) -> 0.2189693102 | AO56: =-('Base original'!AL60/'Base original'!AL48*100-100)*'Base original'!AL48/('Base original'!$AN48) -> -0.7742900258 | AP56: =-('Base original'!AM60/'Base original'!AM48*100-100)*'Base original'!AM48/('Base original'!$AN48) -> 0.02238554962 | AQ56: =(('Base original'!AJ60-'Base original'!AL60)/('Base original'!AJ48-'Base original'!AL48)*100-100)*(('Base original'!AJ48-'Base original'!AL48)/'Base original'!AN48) -> 1.836865023 | AR56: =(('Base original'!AK60-'Base original'!AM60)/('Base original'!AK48-'Base original'!AM48)*100-100)*(('Base original'!AK48-'Base original'!AM48)/'Base original'!AN48) -> 0.2413548598 | AS56: =('Base original'!AN60/'Base original'!AN48*100-100)*'Base original'!AN48/('Base original'!$AN48) -> 0.2962392277
A57: 2010-03-01 | B57: ='Base original'!B61/'Base original'!B49*100-100 -> 4.861404973 | C57: ='Base original'!C61/'Base original'!C49*100-100 -> 2.952607812 | D57: ='Base original'!D61/'Base original'!D49*100-100 -> 9.482597953 | E57: ='Base original'!E61/'Base original'!E49*100-100 -> -23.64631771 | F57: ='Base original'!F61/'Base original'!F49*100-100 -> 3.004634872 | G57: ='Base original'!G61 -> 27.98245903 | K57: ='Base original'!K61 -> 5.420358692 | N57: ='Base original'!N61 -> 2.201231503 | Q57: ='Base original'!Q61 -> 4.275585515 | R57: =('Base original'!S61/'Base original'!S49*100-100)*'Base original'!S49/'Base original'!$V49 -> 3.851538642 | S57: =('Base original'!T61/'Base original'!T49*100-100)*'Base original'!T49/'Base original'!$V49 -> 16.22832981 | T57: =('Base original'!U61/'Base original'!U49*100-100)*'Base original'!U49/'Base original'!$V49 -> 13.39159032 | U57: =('Base original'!V61/'Base original'!V49*100-100)*'Base original'!V49/'Base original'!$V49 -> 33.47145877 | V57: =('Base original'!V61/'Base original'!V49*100-100)*'Base original'!V49/('Base original'!$AC49) -> 6.895363603 | W57: =('Base original'!W61/'Base original'!W49*100-100)*'Base original'!W49/('Base original'!$AC49) -> -4.578907024 | X57: =('Base original'!X61/'Base original'!X49*100-100)*'Base original'!X49/('Base original'!$AC49) -> 0.2346072844 | Y57: =('Base original'!Y61/'Base original'!Y49*100-100)*'Base original'!Y49/('Base original'!$AC49) -> 1.961835667 | Z57: =('Base original'!Z61/'Base original'!Z49*100-100)*'Base original'!Z49/('Base original'!$AC49) -> 0.0009678518335 | AA57: =-('Base original'!AA61/'Base original'!AA49*100-100)*'Base original'!AA49/('Base original'!$AC49) -> -1.24562531 | AB57: =-('Base original'!AB61/'Base original'!AB49*100-100)*'Base original'!AB49/('Base original'!$AC49) -> 0.006581392468 | AC57: =(('Base original'!Y61-'Base original'!AA61)/('Base original'!Y49-'Base original'!AA49)*100-100)*(('Base original'!Y49-'Base original'!AA49)/'Base original'!AC49) -> 0.7162103568 | AD57: =(('Base original'!Z61-'Base original'!AB61)/('Base original'!Z49-'Base original'!AB49)*100-100)*(('Base original'!Z49-'Base original'!AB49)/'Base original'!AC49) -> 0.007549244301 | AE57: =('Base original'!AC61/'Base original'!AC49*100-100)*'Base original'!AC49/('Base original'!$AC49) -> 3.274823464 | AF57: =('Base original'!AC61/'Base original'!AC49*100-100)*'Base original'!AC49/('Base original'!$AN49) -> 1.971473186 | AG57: =('Base original'!AD61/'Base original'!AD49*100-100)*'Base original'!AD49/('Base original'!$AN49) -> -1.058801594 | AH57: =('Base original'!AE61/'Base original'!AE49*100-100)*'Base original'!AE49/('Base original'!$AN49) -> -0.4689211551 | AI57: =('Base original'!AF61/'Base original'!AF49*100-100)*'Base original'!AF49/('Base original'!$AN49) -> 1.640175263 | AJ57: =('Base original'!AG61/'Base original'!AG49*100-100)*'Base original'!AG49/('Base original'!$AN49) -> -0.7689887431 | AK57: =('Base original'!AH61/'Base original'!AH49*100-100)*'Base original'!AH49/('Base original'!$AN49) -> -0.109539236 | AL57: =('Base original'!AI61/'Base original'!AI49*100-100)*'Base original'!AI49/('Base original'!$AN49) -> 0.7011676416 | AM57: =('Base original'!AJ61/'Base original'!AJ49*100-100)*'Base original'!AJ49/('Base original'!$AN49) -> 2.83147272 | AN57: =('Base original'!AK61/'Base original'!AK49*100-100)*'Base original'!AK49/('Base original'!$AN49) -> 0.2469294055 | AO57: =-('Base original'!AL61/'Base original'!AL49*100-100)*'Base original'!AL49/('Base original'!$AN49) -> -0.7616472837 | AP57: =-('Base original'!AM61/'Base original'!AM49*100-100)*'Base original'!AM49/('Base original'!$AN49) -> 0.02225744051 | AQ57: =(('Base original'!AJ61-'Base original'!AL61)/('Base original'!AJ49-'Base original'!AL49)*100-100)*(('Base original'!AJ49-'Base original'!AL49)/'Base original'!AN49) -> 2.069825436 | AR57: =(('Base original'!AK61-'Base original'!AM61)/('Base original'!AK49-'Base original'!AM49)*100-100)*(('Base original'!AK49-'Base original'!AM49)/'Base original'!AN49) -> 0.269186846 | AS57: =('Base original'!AN61/'Base original'!AN49*100-100)*'Base original'!AN49/('Base original'!$AN49) -> 4.245577645
A58: 2010-04-01 | B58: ='Base original'!B62/'Base original'!B50*100-100 -> 4.553444536 | C58: ='Base original'!C62/'Base original'!C50*100-100 -> 3.933644279 | D58: ='Base original'!D62/'Base original'!D50*100-100 -> 9.893436373 | E58: ='Base original'!E62/'Base original'!E50*100-100 -> -16.44825398 | F58: ='Base original'!F62/'Base original'!F50*100-100 -> 3.816014654 | G58: ='Base original'!G62 -> 27.30835546 | K58: ='Base original'!K62 -> 5.444336526 | N58: ='Base original'!N62 -> 1.820821489 | Q58: ='Base original'!Q62 -> 4.127527784 | R58: =('Base original'!S62/'Base original'!S50*100-100)*'Base original'!S50/'Base original'!$V50 -> 4.187404727 | S58: =('Base original'!T62/'Base original'!T50*100-100)*'Base original'!T50/'Base original'!$V50 -> 15.27484435 | T58: =('Base original'!U62/'Base original'!U50*100-100)*'Base original'!U50/'Base original'!$V50 -> 12.1636761 | U58: =('Base original'!V62/'Base original'!V50*100-100)*'Base original'!V50/'Base original'!$V50 -> 31.62592518 | V58: =('Base original'!V62/'Base original'!V50*100-100)*'Base original'!V50/('Base original'!$AC50) -> 6.773220997 | W58: =('Base original'!W62/'Base original'!W50*100-100)*'Base original'!W50/('Base original'!$AC50) -> -2.690211673 | X58: =('Base original'!X62/'Base original'!X50*100-100)*'Base original'!X50/('Base original'!$AC50) -> 0.3488877482 | Y58: =('Base original'!Y62/'Base original'!Y50*100-100)*'Base original'!Y50/('Base original'!$AC50) -> 2.645961536 | Z58: =('Base original'!Z62/'Base original'!Z50*100-100)*'Base original'!Z50/('Base original'!$AC50) -> 0.02281340405 | AA58: =-('Base original'!AA62/'Base original'!AA50*100-100)*'Base original'!AA50/('Base original'!$AC50) -> -0.9595396412 | AB58: =-('Base original'!AB62/'Base original'!AB50*100-100)*'Base original'!AB50/('Base original'!$AC50) -> 0.00216334004 | AC58: =(('Base original'!Y62-'Base original'!AA62)/('Base original'!Y50-'Base original'!AA50)*100-100)*(('Base original'!Y50-'Base original'!AA50)/'Base original'!AC50) -> 1.686421895 | AD58: =(('Base original'!Z62-'Base original'!AB62)/('Base original'!Z50-'Base original'!AB50)*100-100)*(('Base original'!Z50-'Base original'!AB50)/'Base original'!AC50) -> 0.02497674409 | AE58: =('Base original'!AC62/'Base original'!AC50*100-100)*'Base original'!AC50/('Base original'!$AC50) -> 6.143295711 | AF58: =('Base original'!AC62/'Base original'!AC50*100-100)*'Base original'!AC50/('Base original'!$AN50) -> 3.654138382 | AG58: =('Base original'!AD62/'Base original'!AD50*100-100)*'Base original'!AD50/('Base original'!$AN50) -> -0.6291243146 | AH58: =('Base original'!AE62/'Base original'!AE50*100-100)*'Base original'!AE50/('Base original'!$AN50) -> -0.2670678338 | AI58: =('Base original'!AF62/'Base original'!AF50*100-100)*'Base original'!AF50/('Base original'!$AN50) -> 1.868538988 | AJ58: =('Base original'!AG62/'Base original'!AG50*100-100)*'Base original'!AG50/('Base original'!$AN50) -> -0.8725619678 | AK58: =('Base original'!AH62/'Base original'!AH50*100-100)*'Base original'!AH50/('Base original'!$AN50) -> -0.13172071 | AL58: =('Base original'!AI62/'Base original'!AI50*100-100)*'Base original'!AI50/('Base original'!$AN50) -> 0.1540640986 | AM58: =('Base original'!AJ62/'Base original'!AJ50*100-100)*'Base original'!AJ50/('Base original'!$AN50) -> 3.228678149 | AN58: =('Base original'!AK62/'Base original'!AK50*100-100)*'Base original'!AK50/('Base original'!$AN50) -> 0.2601659494 | AO58: =-('Base original'!AL62/'Base original'!AL50*100-100)*'Base original'!AL50/('Base original'!$AN50) -> -1.298841068 | AP58: =-('Base original'!AM62/'Base original'!AM50*100-100)*'Base original'!AM50/('Base original'!$AN50) -> 0.01087924159 | AQ58: =(('Base original'!AJ62-'Base original'!AL62)/('Base original'!AJ50-'Base original'!AL50)*100-100)*(('Base original'!AJ50-'Base original'!AL50)/'Base original'!AN50) -> 1.92983708 | AR58: =(('Base original'!AK62-'Base original'!AM62)/('Base original'!AK50-'Base original'!AM50)*100-100)*(('Base original'!AK50-'Base original'!AM50)/'Base original'!AN50) -> 0.271045191 | AS58: =('Base original'!AN62/'Base original'!AN50*100-100)*'Base original'!AN50/('Base original'!$AN50) -> 5.977148913
A59: 2010-05-01 | B59: ='Base original'!B63/'Base original'!B51*100-100 -> 5.650506744 | C59: ='Base original'!C63/'Base original'!C51*100-100 -> 4.835744686 | D59: ='Base original'!D63/'Base original'!D51*100-100 -> 10.69826596 | E59: ='Base original'!E63/'Base original'!E51*100-100 -> -8.87418305 | F59: ='Base original'!F63/'Base original'!F51*100-100 -> 5.450700634 | G59: ='Base original'!G63 -> 27.304549 | K59: ='Base original'!K63 -> 5.104336024 | N59: ='Base original'!N63 -> 2.343192732 | Q59: ='Base original'!Q63 -> 4.180987597 | R59: =('Base original'!S63/'Base original'!S51*100-100)*'Base original'!S51/'Base original'!$V51 -> 4.310808784 | S59: =('Base original'!T63/'Base original'!T51*100-100)*'Base original'!T51/'Base original'!$V51 -> 15.73277573 | T59: =('Base original'!U63/'Base original'!U51*100-100)*'Base original'!U51/'Base original'!$V51 -> 12.53363684 | U59: =('Base original'!V63/'Base original'!V51*100-100)*'Base original'!V51/'Base original'!$V51 -> 32.57722135 | V59: =('Base original'!V63/'Base original'!V51*100-100)*'Base original'!V51/('Base original'!$AC51) -> 7.242201061 | W59: =('Base original'!W63/'Base original'!W51*100-100)*'Base original'!W51/('Base original'!$AC51) -> -1.353548628 | X59: =('Base original'!X63/'Base original'!X51*100-100)*'Base original'!X51/('Base original'!$AC51) -> 0.2910688543 | Y59: =('Base original'!Y63/'Base original'!Y51*100-100)*'Base original'!Y51/('Base original'!$AC51) -> 1.618923398 | Z59: =('Base original'!Z63/'Base original'!Z51*100-100)*'Base original'!Z51/('Base original'!$AC51) -> 0.04707313007 | AA59: =-('Base original'!AA63/'Base original'!AA51*100-100)*'Base original'!AA51/('Base original'!$AC51) -> -0.2820465043 | AB59: =-('Base original'!AB63/'Base original'!AB51*100-100)*'Base original'!AB51/('Base original'!$AC51) -> 0.0007845521678 | AC59: =(('Base original'!Y63-'Base original'!AA63)/('Base original'!Y51-'Base original'!AA51)*100-100)*(('Base original'!Y51-'Base original'!AA51)/'Base original'!AC51) -> 1.336876894 | AD59: =(('Base original'!Z63-'Base original'!AB63)/('Base original'!Z51-'Base original'!AB51)*100-100)*(('Base original'!Z51-'Base original'!AB51)/'Base original'!AC51) -> 0.04785768224 | AE59: =('Base original'!AC63/'Base original'!AC51*100-100)*'Base original'!AC51/('Base original'!$AC51) -> 7.564455864 | AF59: =('Base original'!AC63/'Base original'!AC51*100-100)*'Base original'!AC51/('Base original'!$AN51) -> 4.486491203 | AG59: =('Base original'!AD63/'Base original'!AD51*100-100)*'Base original'!AD51/('Base original'!$AN51) -> 0.1184237313 | AH59: =('Base original'!AE63/'Base original'!AE51*100-100)*'Base original'!AE51/('Base original'!$AN51) -> -0.8721244729 | AI59: =('Base original'!AF63/'Base original'!AF51*100-100)*'Base original'!AF51/('Base original'!$AN51) -> 2.091377054 | AJ59: =('Base original'!AG63/'Base original'!AG51*100-100)*'Base original'!AG51/('Base original'!$AN51) -> -0.8241965974 | AK59: =('Base original'!AH63/'Base original'!AH51*100-100)*'Base original'!AH51/('Base original'!$AN51) -> -0.156579904 | AL59: =('Base original'!AI63/'Base original'!AI51*100-100)*'Base original'!AI51/('Base original'!$AN51) -> -0.3087392758 | AM59: =('Base original'!AJ63/'Base original'!AJ51*100-100)*'Base original'!AJ51/('Base original'!$AN51) -> 3.208608405 | AN59: =('Base original'!AK63/'Base original'!AK51*100-100)*'Base original'!AK51/('Base original'!$AN51) -> 0.2259124618 | AO59: =-('Base original'!AL63/'Base original'!AL51*100-100)*'Base original'!AL51/('Base original'!$AN51) -> -1.279860404 | AP59: =-('Base original'!AM63/'Base original'!AM51*100-100)*'Base original'!AM51/('Base original'!$AN51) -> -0.009306383597 | AQ59: =(('Base original'!AJ63-'Base original'!AL63)/('Base original'!AJ51-'Base original'!AL51)*100-100)*(('Base original'!AJ51-'Base original'!AL51)/'Base original'!AN51) -> 1.928748001 | AR59: =(('Base original'!AK63-'Base original'!AM63)/('Base original'!AK51-'Base original'!AM51)*100-100)*(('Base original'!AK51-'Base original'!AM51)/'Base original'!AN51) -> 0.2166060782 | AS59: =('Base original'!AN63/'Base original'!AN51*100-100)*'Base original'!AN51/('Base original'!$AN51) -> 6.680005816
A60: 2010-06-01 | B60: ='Base original'!B64/'Base original'!B52*100-100 -> 7.173842755 | C60: ='Base original'!C64/'Base original'!C52*100-100 -> 6.269150753 | D60: ='Base original'!D64/'Base original'!D52*100-100 -> 11.28307223 | E60: ='Base original'!E64/'Base original'!E52*100-100 -> 8.30301237 | F60: ='Base original'!F64/'Base original'!F52*100-100 -> 8.114126449 | G60: ='Base original'!G64 -> 27.30581746 | K60: ='Base original'!K64 -> 5.264501639 | N60: ='Base original'!N64 -> 2.17113661 | Q60: ='Base original'!Q64 -> 4.064804216 | R60: =('Base original'!S64/'Base original'!S52*100-100)*'Base original'!S52/'Base original'!$V52 -> 4.344419668 | S60: =('Base original'!T64/'Base original'!T52*100-100)*'Base original'!T52/'Base original'!$V52 -> 15.55501985 | T60: =('Base original'!U64/'Base original'!U52*100-100)*'Base original'!U52/'Base original'!$V52 -> 12.02076643 | U60: =('Base original'!V64/'Base original'!V52*100-100)*'Base original'!V52/'Base original'!$V52 -> 31.92020594 | V60: =('Base original'!V64/'Base original'!V52*100-100)*'Base original'!V52/('Base original'!$AC52) -> 7.199867946 | W60: =('Base original'!W64/'Base original'!W52*100-100)*'Base original'!W52/('Base original'!$AC52) -> -1.36054686 | X60: =('Base original'!X64/'Base original'!X52*100-100)*'Base original'!X52/('Base original'!$AC52) -> 0.3318833262 | Y60: =('Base original'!Y64/'Base original'!Y52*100-100)*'Base original'!Y52/('Base original'!$AC52) -> 0.220996621 | Z60: =('Base original'!Z64/'Base original'!Z52*100-100)*'Base original'!Z52/('Base original'!$AC52) -> 0.06932846545 | AA60: =-('Base original'!AA64/'Base original'!AA52*100-100)*'Base original'!AA52/('Base original'!$AC52) -> 0.0207791199 | AB60: =-('Base original'!AB64/'Base original'!AB52*100-100)*'Base original'!AB52/('Base original'!$AC52) -> 0.006602710995 | AC60: =(('Base original'!Y64-'Base original'!AA64)/('Base original'!Y52-'Base original'!AA52)*100-100)*(('Base original'!Y52-'Base original'!AA52)/'Base original'!AC52) -> 0.2417757409 | AD60: =(('Base original'!Z64-'Base original'!AB64)/('Base original'!Z52-'Base original'!AB52)*100-100)*(('Base original'!Z52-'Base original'!AB52)/'Base original'!AC52) -> 0.07593117645 | AE60: =('Base original'!AC64/'Base original'!AC52*100-100)*'Base original'!AC52/('Base original'!$AC52) -> 6.488911329 | AF60: =('Base original'!AC64/'Base original'!AC52*100-100)*'Base original'!AC52/('Base original'!$AN52) -> 3.863028617 | AG60: =('Base original'!AD64/'Base original'!AD52*100-100)*'Base original'!AD52/('Base original'!$AN52) -> 0.9209578609 | AH60: =('Base original'!AE64/'Base original'!AE52*100-100)*'Base original'!AE52/('Base original'!$AN52) -> -2.049668832 | AI60: =('Base original'!AF64/'Base original'!AF52*100-100)*'Base original'!AF52/('Base original'!$AN52) -> 2.265977162 | AJ60: =('Base original'!AG64/'Base original'!AG52*100-100)*'Base original'!AG52/('Base original'!$AN52) -> -0.6530869892 | AK60: =('Base original'!AH64/'Base original'!AH52*100-100)*'Base original'!AH52/('Base original'!$AN52) -> -0.1630116224 | AL60: =('Base original'!AI64/'Base original'!AI52*100-100)*'Base original'!AI52/('Base original'!$AN52) -> -0.2477545438 | AM60: =('Base original'!AJ64/'Base original'!AJ52*100-100)*'Base original'!AJ52/('Base original'!$AN52) -> 3.206010851 | AN60: =('Base original'!AK64/'Base original'!AK52*100-100)*'Base original'!AK52/('Base original'!$AN52) -> 0.1979261685 | AO60: =-('Base original'!AL64/'Base original'!AL52*100-100)*'Base original'!AL52/('Base original'!$AN52) -> -0.9211890831 | AP60: =-('Base original'!AM64/'Base original'!AM52*100-100)*'Base original'!AM52/('Base original'!$AN52) -> -0.02867154777 | AQ60: =(('Base original'!AJ64-'Base original'!AL64)/('Base original'!AJ52-'Base original'!AL52)*100-100)*(('Base original'!AJ52-'Base original'!AL52)/'Base original'!AN52) -> 2.284821768 | AR60: =(('Base original'!AK64-'Base original'!AM64)/('Base original'!AK52-'Base original'!AM52)*100-100)*(('Base original'!AK52-'Base original'!AM52)/'Base original'!AN52) -> 0.1692546207 | AS60: =('Base original'!AN64/'Base original'!AN52*100-100)*'Base original'!AN52/('Base original'!$AN52) -> 6.390518042
A61: 2010-07-01 | B61: ='Base original'!B65/'Base original'!B53*100-100 -> 6.222826542 | C61: ='Base original'!C65/'Base original'!C53*100-100 -> 7.126986628 | D61: ='Base original'!D65/'Base original'!D53*100-100 -> 11.19337961 | E61: ='Base original'!E65/'Base original'!E53*100-100 -> 3.943659891 | F61: ='Base original'!F65/'Base original'!F53*100-100 -> 7.322157004 | G61: ='Base original'!G65 -> 28.12090691 | K61: ='Base original'!K65 -> 5.864711137 | N61: ='Base original'!N65 -> 2.049669513 | Q61: ='Base original'!Q65 -> 4.025876708 | R61: =('Base original'!S65/'Base original'!S53*100-100)*'Base original'!S53/'Base original'!$V53 -> 4.466432801 | S61: =('Base original'!T65/'Base original'!T53*100-100)*'Base original'!T53/'Base original'!$V53 -> 14.24655881 | T61: =('Base original'!U65/'Base original'!U53*100-100)*'Base original'!U53/'Base original'!$V53 -> 11.82630731 | U61: =('Base original'!V65/'Base original'!V53*100-100)*'Base original'!V53/'Base original'!$V53 -> 30.53929892 | V61: =('Base original'!V65/'Base original'!V53*100-100)*'Base original'!V53/('Base original'!$AC53) -> 6.815300958 | W61: =('Base original'!W65/'Base original'!W53*100-100)*'Base original'!W53/('Base original'!$AC53) -> -2.673839993 | X61: =('Base original'!X65/'Base original'!X53*100-100)*'Base original'!X53/('Base original'!$AC53) -> 0.3804658302 | Y61: =('Base original'!Y65/'Base original'!Y53*100-100)*'Base original'!Y53/('Base original'!$AC53) -> -1.347403003 | Z61: =('Base original'!Z65/'Base original'!Z53*100-100)*'Base original'!Z53/('Base original'!$AC53) -> 0.07309252552 | AA61: =-('Base original'!AA65/'Base original'!AA53*100-100)*'Base original'!AA53/('Base original'!$AC53) -> 1.253152115 | AB61: =-('Base original'!AB65/'Base original'!AB53*100-100)*'Base original'!AB53/('Base original'!$AC53) -> 0.0007693950055 | AC61: =(('Base original'!Y65-'Base original'!AA65)/('Base original'!Y53-'Base original'!AA53)*100-100)*(('Base original'!Y53-'Base original'!AA53)/'Base original'!AC53) -> -0.09425088817 | AD61: =(('Base original'!Z65-'Base original'!AB65)/('Base original'!Z53-'Base original'!AB53)*100-100)*(('Base original'!Z53-'Base original'!AB53)/'Base original'!AC53) -> 0.07386192053 | AE61: =('Base original'!AC65/'Base original'!AC53*100-100)*'Base original'!AC53/('Base original'!$AC53) -> 4.501537828 | AF61: =('Base original'!AC65/'Base original'!AC53*100-100)*'Base original'!AC53/('Base original'!$AN53) -> 2.710609983 | AG61: =('Base original'!AD65/'Base original'!AD53*100-100)*'Base original'!AD53/('Base original'!$AN53) -> 1.016811735 | AH61: =('Base original'!AE65/'Base original'!AE53*100-100)*'Base original'!AE53/('Base original'!$AN53) -> -2.116437047 | AI61: =('Base original'!AF65/'Base original'!AF53*100-100)*'Base original'!AF53/('Base original'!$AN53) -> 2.342292257 | AJ61: =('Base original'!AG65/'Base original'!AG53*100-100)*'Base original'!AG53/('Base original'!$AN53) -> -0.6496522409 | AK61: =('Base original'!AH65/'Base original'!AH53*100-100)*'Base original'!AH53/('Base original'!$AN53) -> -0.2297931977 | AL61: =('Base original'!AI65/'Base original'!AI53*100-100)*'Base original'!AI53/('Base original'!$AN53) -> -0.06810403238 | AM61: =('Base original'!AJ65/'Base original'!AJ53*100-100)*'Base original'!AJ53/('Base original'!$AN53) -> 3.210502846 | AN61: =('Base original'!AK65/'Base original'!AK53*100-100)*'Base original'!AK53/('Base original'!$AN53) -> 0.2011848712 | AO61: =-('Base original'!AL65/'Base original'!AL53*100-100)*'Base original'!AL53/('Base original'!$AN53) -> -1.205256056 | AP61: =-('Base original'!AM65/'Base original'!AM53*100-100)*'Base original'!AM53/('Base original'!$AN53) -> -0.0266393324 | AQ61: =(('Base original'!AJ65-'Base original'!AL65)/('Base original'!AJ53-'Base original'!AL53)*100-100)*(('Base original'!AJ53-'Base original'!AL53)/'Base original'!AN53) -> 2.00524679 | AR61: =(('Base original'!AK65-'Base original'!AM65)/('Base original'!AK53-'Base original'!AM53)*100-100)*(('Base original'!AK53-'Base original'!AM53)/'Base original'!AN53) -> 0.1745455388 | AS61: =('Base original'!AN65/'Base original'!AN53*100-100)*'Base original'!AN53/('Base original'!$AN53) -> 5.185519785
